Department Family,Entity,Date,Expense Type,Expense Area,Supplier,Transaction Number,Amount,Description
Department for Education,Core,30/03/2021,"Marketing, Media and Comms",COMMUNICATIONS DIRECTORATE,Cabinet Office,CORE-PINV-018579,"50,000.00","Publicity, advertising, media advertising campaigns (excluding recruitment adverts)"
Department for Education,Core,02/03/2021,"Marketing, Media and Comms",COMMUNICATIONS DIRECTORATE,CM Monitor (BritainThinks) Limited,CORE-PINV-016435,"24,950.00",Marketing services
Department for Education,Core,23/03/2021,"Marketing, Media and Comms",COMMUNICATIONS DIRECTORATE,CM Monitor (BritainThinks) Limited,CORE-PINV-017954,"24,950.00",Marketing services
Department for Education,Core,30/03/2021,"Marketing, Media and Comms",COMMUNICATIONS DIRECTORATE,Kantar UK Ltd,CORE-PINV-018583,"32,745.00",Marketing services
Department for Education,Core,03/03/2021,Grants expenditure,CHILDRENS SOCIAL CARE,LANCASHIRE COUNTY COUNCIL,CORE-MAIN-015560,"1,155,367.00",Grants to local authorities
Department for Education,Core,11/03/2021,Grants expenditure,CHILDRENS SOCIAL CARE,DAYBREAK FAMILY GROUP CONFERENCES,CORE-MAIN-016003,"44,817.00",Grants to educational establishments or not for profit organisations including other businesses
Department for Education,Core,11/03/2021,Grants expenditure,CHILDRENS SOCIAL CARE,PAUSE CREATING SPACE FOR CHANGE,CORE-MAIN-016004,"573,667.00",Grants to educational establishments or not for profit organisations including other businesses
Department for Education,Core,11/03/2021,Grants expenditure,CHILDRENS SOCIAL CARE,LONDON BOROUGH OF RICHMOND UPON THAMES DCSF,CORE-MAIN-016005,"404,287.00",Grants to local authorities
Department for Education,Core,11/03/2021,Grants expenditure,CHILDRENS SOCIAL CARE,HAMPSHIRE COUNTY COUNCIL,CORE-MAIN-016006,"470,786.00",Grants to local authorities
Department for Education,Core,11/03/2021,Grants expenditure,CHILDRENS SOCIAL CARE,ISLINGTON LONDON BOROUGH COUNCIL,CORE-MAIN-016007,"97,550.00",Grants to local authorities
Department for Education,Core,11/03/2021,Grants expenditure,CHILDRENS SOCIAL CARE,LEEDS CITY COUNCIL,CORE-MAIN-016008,"685,980.00",Grants to local authorities
Department for Education,Core,11/03/2021,Grants expenditure,CHILDRENS SOCIAL CARE,LINCOLNSHIRE COUNTY COUNCIL,CORE-MAIN-016009,"489,973.00",Grants to local authorities
Department for Education,Core,11/03/2021,Grants expenditure,CHILDRENS SOCIAL CARE,NORTH YORKSHIRE COUNTY COUNCIL,CORE-MAIN-016010,"480,235.00",Grants to local authorities
Department for Education,Core,11/03/2021,Grants expenditure,CHILDRENS SOCIAL CARE,CAMDEN LONDON BOROUGH COUNCIL,CORE-MAIN-016011,"298,084.00",Grants to local authorities
Department for Education,Core,11/03/2021,Grants expenditure,CHILDRENS SOCIAL CARE,CHESHIRE WEST & CHESTER COUNCIL,CORE-MAIN-016012,"360,427.00",Grants to local authorities
Department for Education,Core,11/03/2021,Grants expenditure,CHILDRENS SOCIAL CARE,ESSEX COUNTY COUNCIL,CORE-MAIN-016013,"270,000.00",Grants to local authorities
Department for Education,Core,11/03/2021,Grants expenditure,CHILDRENS SOCIAL CARE,STOCKPORT METRO BOROUGH COUNCIL,CORE-MAIN-016014,"227,511.00",Grants to local authorities
Department for Education,Core,11/03/2021,Grants expenditure,CHILDRENS SOCIAL CARE,NORTH TYNESIDE METRO BOROUGH COUNCIL,CORE-MAIN-016015,"349,000.00",Grants to local authorities
Department for Education,Core,11/03/2021,Grants expenditure,CHILDRENS SOCIAL CARE,SOUTH TYNESIDE COUNCIL,CORE-MAIN-016016,"241,478.00",Grants to local authorities
Department for Education,Core,11/03/2021,Grants expenditure,CHILDRENS SOCIAL CARE,BARNARDOS,CORE-MAIN-016020,"29,815.31",Grants to educational establishments or not for profit organisations including other businesses
Department for Education,Core,15/03/2021,Other Goods & Services,CHILDRENS SOCIAL CARE,What Works for Children's Social Care,CORE-PINV-016749,"24,468.64",Research and Development
Department for Education,Core,31/03/2021,Grants expenditure,CHILDRENS SOCIAL CARE,PAUSE CREATING SPACE FOR CHANGE,CORE-MAIN-017018,"384,767.54",Grants to educational establishments or not for profit organisations including other businesses
Department for Education,Core,31/03/2021,Grants expenditure,CHILDRENS SOCIAL CARE,THE FOSTERING NETWORK,CORE-MAIN-017019,"76,223.00",Grants to educational establishments or not for profit organisations including other businesses
Department for Education,Core,31/03/2021,Grants expenditure,CHILDRENS SOCIAL CARE,NEWCASTLE CITY COUNCIL,CORE-MAIN-017020,"40,000.00",Grants to local authorities
Department for Education,Core,31/03/2021,Grants expenditure,CHILDRENS SOCIAL CARE,What Works for Children's Social Care,CORE-MAIN-017021,"945,000.00",Grants to educational establishments or not for profit organisations including other businesses
Department for Education,Core,31/03/2021,Grants expenditure,CHILDRENS SOCIAL CARE,EARLY INTERVENTION FOUNDATION,CORE-MAIN-017022,"164,396.00",Grants to educational establishments or not for profit organisations including other businesses
Department for Education,Core,31/03/2021,Grants expenditure,CHILDRENS SOCIAL CARE,BEXLEY LONDON BOROUGH COUNCIL,CORE-MAIN-017024,"37,000.00",Grants to local authorities
Department for Education,Core,31/03/2021,Grants expenditure,CHILDRENS SOCIAL CARE,London Borough of Richmond upon Thames,CORE-MAIN-017025,"35,750.00",Grants to local authorities
Department for Education,Core,31/03/2021,Grants expenditure,CHILDRENS SOCIAL CARE,North East Lincolnshire Council,CORE-MAIN-017026,"40,000.00",Grants to local authorities
Department for Education,Core,31/03/2021,Grants expenditure,CHILDRENS SOCIAL CARE,BIRMINGHAM CITY COUNCIL,CORE-MAIN-017027,"40,000.00",Grants to local authorities
Department for Education,Core,31/03/2021,Grants expenditure,CHILDRENS SOCIAL CARE,KINGSTON UPON HULL CITY COUNCIL,CORE-MAIN-017028,"40,000.00",Grants to local authorities
Department for Education,Core,31/03/2021,Grants expenditure,CHILDRENS SOCIAL CARE,HACKNEY LONDON BOROUGH COUNCIL,CORE-MAIN-017029,"40,000.00",Grants to local authorities
Department for Education,Core,31/03/2021,Grants expenditure,CHILDRENS SOCIAL CARE,BROMLEY LONDON BOROUGH COUNCIL,CORE-MAIN-017030,"40,000.00",Grants to local authorities
Department for Education,Core,31/03/2021,Grants expenditure,CHILDRENS SOCIAL CARE,Salford City Council,CORE-MAIN-017031,"40,000.00",Grants to local authorities
Department for Education,Core,31/03/2021,Grants expenditure,CHILDRENS SOCIAL CARE,SUNDERLAND CITY METRO BOROUGH COUNCIL,CORE-MAIN-017032,"39,600.00",Grants to local authorities
Department for Education,Core,31/03/2021,Grants expenditure,CHILDRENS SOCIAL CARE,London Borough of Tower Hamlets,CORE-MAIN-017033,"35,000.00",Grants to local authorities
Department for Education,Core,31/03/2021,Grants expenditure,CHILDRENS SOCIAL CARE,BARNET LONDON BOROUGH COUNCIL,CORE-MAIN-017034,"40,000.00",Grants to local authorities
Department for Education,Core,31/03/2021,Grants expenditure,CHILDRENS SOCIAL CARE,SWINDON BOROUGH COUNCIL,CORE-MAIN-017035,"37,000.00",Grants to local authorities
Department for Education,Core,31/03/2021,Grants expenditure,CHILDRENS SOCIAL CARE,SUFFOLK COUNTY COUNCIL,CORE-MAIN-017036,"40,000.00",Grants to local authorities
Department for Education,Core,31/03/2021,Grants expenditure,CHILDRENS SOCIAL CARE,SOMERSET COUNTY COUNCIL,CORE-MAIN-017037,"40,000.00",Grants to local authorities
Department for Education,Core,31/03/2021,Grants expenditure,CHILDRENS SOCIAL CARE,What Works for Children's Social Care,CUPS0022685,"2,875,492.00",Grants to educational establishments or not for profit organisations including other businesses
Department for Education,Core,30/03/2021,Other Goods & Services,CHILDRENS SOCIAL CARE,MUTUAL VENTURES LTD,CORE-PINV-017552,"93,852.00",Other Professional Services
Department for Education,Core,30/03/2021,Other Goods & Services,CHILDRENS SOCIAL CARE,LIVERPOOL JOHN MOORES UNIVERSITY,CORE-PINV-018584,"114,321.60",Research and Development
Department for Education,Core,05/03/2021,Other Goods & Services,CHILDRENS SOCIAL CARE,BARNARDOS,CORE-PINV-016564,"1,050,000.00",Other Professional Services
Department for Education,Core,11/03/2021,Grants expenditure,CHILDRENS SOCIAL CARE,NSPCC,CORE-MAIN-016021,"63,182.00",Grants to educational establishments or not for profit organisations including other businesses
Department for Education,Core,15/03/2021,Other Goods & Services,CHILDRENS SOCIAL CARE,CORAM,CORE-PINV-017433,"69,581.33",Other Professional Services
Department for Education,Core,31/03/2021,Grants expenditure,CHILDRENS SOCIAL CARE,NSPCC,CORE-MAIN-017041,"63,182.00",Grants to educational establishments or not for profit organisations including other businesses
Department for Education,Core,31/03/2021,Grants expenditure,CHILDRENS SOCIAL CARE,NSPCC,CUPS0022683,"100,000.00",Grants to educational establishments or not for profit organisations including other businesses
Department for Education,Core,26/03/2021,Other Goods & Services,CHILDRENS SOCIAL CARE,THE DARTINGTON HALL TRUST,CORE-PINV-018420,"62,134.80",Other Professional Services
Department for Education,Core,29/03/2021,Other Goods & Services,CHILDRENS SOCIAL CARE,BARNARDOS,CORE-PINV-018511,"1,050,000.00",Other Professional Services
Department for Education,Core,03/03/2021,Grants expenditure,CHILDRENS SOCIAL CARE,TORBAY COUNCIL,CORE-MAIN-015561,"70,609.25",Grants to local authorities
Department for Education,Core,03/03/2021,Grants expenditure,CHILDRENS SOCIAL CARE,NORTHAMPTONSHIRE COUNTY COUNCIL,CORE-MAIN-015562,"638,049.17",Grants to local authorities
Department for Education,Core,03/03/2021,Grants expenditure,CHILDRENS SOCIAL CARE,NORTHAMPTONSHIRE COUNTY COUNCIL,CORE-MAIN-015563,"298,908.43",Grants to local authorities
Department for Education,Core,03/03/2021,Other Goods & Services,CHILDRENS SOCIAL CARE,MUTUAL VENTURES LTD,CORE-PINV-016529,"66,600.00",Other Professional Services
Department for Education,Core,03/03/2021,Other Goods & Services,CHILDRENS SOCIAL CARE,MUTUAL VENTURES LTD,CORE-PINV-016530,"46,768.00",Other Professional Services
Department for Education,Core,03/03/2021,Other Goods & Services,CHILDRENS SOCIAL CARE,MUTUAL VENTURES LTD,CORE-PINV-016531,"78,652.30",Other Professional Services
Department for Education,Core,08/03/2021,Other Goods & Services,CHILDRENS SOCIAL CARE,MUTUAL VENTURES LTD,CORE-PINV-016907,"90,255.42",Other Professional Services
Department for Education,Core,11/03/2021,Grants expenditure,CHILDRENS SOCIAL CARE,DONCASTER CHILDRENS SERVICES TRUST,CORE-MAIN-016022,"1,341,995.00",Grants to educational establishments or not for profit organisations including other businesses
Department for Education,Core,11/03/2021,Grants expenditure,CHILDRENS SOCIAL CARE,HAMPSHIRE COUNTY COUNCIL,CORE-MAIN-016024,"383,112.00",Grants to local authorities
Department for Education,Core,11/03/2021,Grants expenditure,CHILDRENS SOCIAL CARE,ISLINGTON LONDON BOROUGH COUNCIL,CORE-MAIN-016025,"256,395.00",Grants to local authorities
Department for Education,Core,11/03/2021,Grants expenditure,CHILDRENS SOCIAL CARE,LEEDS CITY COUNCIL,CORE-MAIN-016026,"370,101.00",Grants to local authorities
Department for Education,Core,11/03/2021,Grants expenditure,CHILDRENS SOCIAL CARE,NORTH YORKSHIRE COUNTY COUNCIL,CORE-MAIN-016027,"116,915.00",Grants to local authorities
Department for Education,Core,11/03/2021,Grants expenditure,CHILDRENS SOCIAL CARE,LINCOLNSHIRE COUNTY COUNCIL,CORE-MAIN-016028,"72,671.51",Grants to local authorities
Department for Education,Core,11/03/2021,Grants expenditure,CHILDRENS SOCIAL CARE,WESTMINSTER CITY COUNCIL,CORE-MAIN-016029,"136,170.76",Grants to local authorities
Department for Education,Core,11/03/2021,Grants expenditure,CHILDRENS SOCIAL CARE,HAMMERSMITH & FULHAM LONDON BOROUGH COUNCIL,CORE-MAIN-016030,"136,170.77",Grants to local authorities
Department for Education,Core,11/03/2021,Grants expenditure,CHILDRENS SOCIAL CARE,ROYAL BOROUGH OF KENSINGTON & CHELSEA COUNCIL,CORE-MAIN-016031,"136,170.77",Grants to local authorities
Department for Education,Core,11/03/2021,Grants expenditure,CHILDRENS SOCIAL CARE,CAMDEN LONDON BOROUGH COUNCIL,CORE-MAIN-016032,"77,960.00",Grants to local authorities
Department for Education,Core,11/03/2021,Grants expenditure,CHILDRENS SOCIAL CARE,ESSEX COUNTY COUNCIL,CORE-MAIN-016033,"623,067.00",Grants to local authorities
Department for Education,Core,11/03/2021,Grants expenditure,CHILDRENS SOCIAL CARE,NORTH TYNESIDE METRO BOROUGH COUNCIL,CORE-MAIN-016034,"167,126.00",Grants to local authorities
Department for Education,Core,11/03/2021,Grants expenditure,CHILDRENS SOCIAL CARE,SOUTH TYNESIDE COUNCIL,CORE-MAIN-016035,"173,578.00",Grants to local authorities
Department for Education,Core,11/03/2021,Grants expenditure,CHILDRENS SOCIAL CARE,Gloucestershire County Council,CORE-MAIN-016036,"38,712.00",Grants to local authorities
Department for Education,Core,10/03/2021,Other Goods & Services,CHILDRENS SOCIAL CARE,BURGES SALMON COMPANY LTD,CORE-PINV-017204,"35,590.64",Other Professional Services
Department for Education,Core,15/03/2021,Other Goods & Services,CHILDRENS SOCIAL CARE,BURGES SALMON COMPANY LTD,CORE-PINV-017471,"35,250.48",Other Professional Services
Department for Education,Core,31/03/2021,Grants expenditure,CHILDRENS SOCIAL CARE,TOGETHER FOR CHILDREN SUNDERLAND,CORE-MAIN-017042,"117,469.00",Grants to educational establishments or not for profit organisations including other businesses
Department for Education,Core,31/03/2021,Grants expenditure,CHILDRENS SOCIAL CARE,Brighter Futures for Children Ltd,CORE-MAIN-017043,"245,734.00",Grants to educational establishments or not for profit organisations including other businesses
Department for Education,Core,31/03/2021,Grants expenditure,CHILDRENS SOCIAL CARE,SLOUGH CHILDRENS SERVICES TRUST LTD,CORE-MAIN-017044,"94,274.92",Grants to educational establishments or not for profit organisations including other businesses
Department for Education,Core,31/03/2021,Grants expenditure,CHILDRENS SOCIAL CARE,SANDWELL CHILDRENS TRUST,CORE-MAIN-017045,"429,236.00",Grants to educational establishments or not for profit organisations including other businesses
Department for Education,Core,31/03/2021,Grants expenditure,CHILDRENS SOCIAL CARE,LUTON BOROUGH COUNCIL,CORE-MAIN-017046,"227,633.00",Grants to local authorities
Department for Education,Core,31/03/2021,Grants expenditure,CHILDRENS SOCIAL CARE,LEEDS CITY COUNCIL,CORE-MAIN-017047,"273,390.00",Grants to local authorities
Department for Education,Core,31/03/2021,Grants expenditure,CHILDRENS SOCIAL CARE,SLOUGH CHILDRENS SERVICES TRUST LTD,CORE-MAIN-017048,"203,285.66",Grants to educational establishments or not for profit organisations including other businesses
Department for Education,Core,31/03/2021,Grants expenditure,CHILDRENS SOCIAL CARE,TORBAY COUNCIL,CORE-MAIN-017049,"166,872.50",Grants to local authorities
Department for Education,Core,31/03/2021,Grants expenditure,CHILDRENS SOCIAL CARE,LOCAL GOVERNMENT ASSOCIATION,CORE-MAIN-017050,"211,581.00",Grants to educational establishments or not for profit organisations including other businesses
Department for Education,Core,31/03/2021,Grants expenditure,CHILDRENS SOCIAL CARE,Brighter Futures for Children Ltd,CORE-MAIN-017051,"110,057.00",Grants to educational establishments or not for profit organisations including other businesses
Department for Education,Core,31/03/2021,Grants expenditure,CHILDRENS SOCIAL CARE,NEWHAM LONDON BOROUGH COUNCIL,CORE-MAIN-017052,"41,000.00",Grants to local authorities
Department for Education,Core,31/03/2021,Grants expenditure,CHILDRENS SOCIAL CARE,LUTON BOROUGH COUNCIL,CORE-MAIN-017053,"162,953.00",Grants to local authorities
Department for Education,Core,31/03/2021,Grants expenditure,CHILDRENS SOCIAL CARE,STOKE ON TRENT CITY COUNCIL,CORE-MAIN-017054,"104,854.00",Grants to local authorities
Department for Education,Core,03/03/2021,Grants expenditure,CHILDRENS SOCIAL CARE,REDBRIDGE LONDON BOROUGH COUNCIL,CORE-MAIN-015564,"50,983.33",Grants to local authorities
Department for Education,Core,03/03/2021,Grants expenditure,CHILDRENS SOCIAL CARE,SHEFFIELD CITY COUNCIL,CORE-MAIN-015565,"154,339.49",Grants to local authorities
Department for Education,Core,01/03/2021,Other Goods & Services,CHILDRENS SOCIAL CARE,Mott MacDonald,CORE-PINV-015950,"271,989.60",Other Professional Services
Department for Education,Core,02/03/2021,Learning & Development,CHILDRENS SOCIAL CARE,THE FRONTLINE ORGANISATION,CORE-PINV-016468,"1,210,250.00",Training & Development costs
Department for Education,Core,03/03/2021,Other Goods & Services,CHILDRENS SOCIAL CARE,CAPITA BUSINESS SERVICES LTD,CORE-PINV-016476,"39,780.00",Other Professional Services
Department for Education,Core,03/03/2021,Professional Services,CHILDRENS SOCIAL CARE,ALPHA PLUS CONSULTANCY LTD,CORE-PINV-016470,"55,422.00",EDUCATIONAL SERVICES
Department for Education,Core,11/03/2021,Grants expenditure,CHILDRENS SOCIAL CARE,WIRRAL METRO BOROUGH COUNCIL,CORE-MAIN-016037,"68,644.41",Grants to local authorities
Department for Education,Core,11/03/2021,Grants expenditure,CHILDRENS SOCIAL CARE,SOMERSET COUNTY COUNCIL,CORE-MAIN-016038,"110,833.50",Grants to local authorities
Department for Education,Core,11/03/2021,Grants expenditure,CHILDRENS SOCIAL CARE,KENT COUNTY COUNCIL,CORE-MAIN-016039,"44,333.40",Grants to local authorities
Department for Education,Core,11/03/2021,Grants expenditure,CHILDRENS SOCIAL CARE,THE FRONTLINE ORGANISATION,CORE-MAIN-016040,"27,153.93",Grants to educational establishments or not for profit organisations including other businesses
Department for Education,Core,11/03/2021,Grants expenditure,CHILDRENS SOCIAL CARE,BROMLEY LONDON BOROUGH COUNCIL,CORE-MAIN-016041,"46,803.53",Grants to local authorities
Department for Education,Core,09/03/2021,Learning & Development,CHILDRENS SOCIAL CARE,THE FRONTLINE ORGANISATION,CORE-PINV-016974,"548,380.77",Training & Development costs
Department for Education,Core,09/03/2021,Learning & Development,CHILDRENS SOCIAL CARE,THE FRONTLINE ORGANISATION,CORE-PINV-016974,"93,534.33",Training & Development costs
Department for Education,Core,17/03/2021,Other Goods & Services,CHILDRENS SOCIAL CARE,SKILLS FOR CARE LTD,CORE-PINV-017557,"440,000.00",Other Professional Services
Department for Education,Core,17/03/2021,Other Goods & Services,CHILDRENS SOCIAL CARE,SKILLS FOR CARE LTD,CORE-PINV-017558,"65,049.00",Other Professional Services
Department for Education,Core,31/03/2021,Grants expenditure,CHILDRENS SOCIAL CARE,"Bournemouth, Christchurch and Poole Council",CORE-MAIN-017055,"35,466.72",Grants to local authorities
Department for Education,Core,31/03/2021,Grants expenditure,CHILDRENS SOCIAL CARE,DERBY CITY COUNCIL,CORE-MAIN-017056,"93,100.14",Grants to local authorities
Department for Education,Core,31/03/2021,Grants expenditure,CHILDRENS SOCIAL CARE,Buckinghamshire Council,CORE-MAIN-017057,"48,766.74",Grants to local authorities
Department for Education,Core,31/03/2021,Grants expenditure,CHILDRENS SOCIAL CARE,BRACKNELL FOREST BOROUGH COUNCIL,CORE-MAIN-017058,"42,116.73",Grants to local authorities
Department for Education,Core,31/03/2021,Grants expenditure,CHILDRENS SOCIAL CARE,Salford City Council,CORE-MAIN-017059,"57,964.15",Grants to local authorities
Department for Education,Core,31/03/2021,Grants expenditure,CHILDRENS SOCIAL CARE,SOUTHWARK LONDON BOROUGH COUNCIL,CORE-MAIN-017060,"119,700.18",Grants to local authorities
Department for Education,Core,31/03/2021,Grants expenditure,CHILDRENS SOCIAL CARE,HAMPSHIRE COUNTY COUNCIL,CORE-MAIN-017061,"66,500.10",Grants to local authorities
Department for Education,Core,31/03/2021,Grants expenditure,CHILDRENS SOCIAL CARE,THE FRONTLINE ORGANISATION,CORE-MAIN-017062,"25,356.77",Grants to educational establishments or not for profit organisations including other businesses
Department for Education,Core,31/03/2021,Grants expenditure,CHILDRENS SOCIAL CARE,HAMMERSMITH & FULHAM LONDON BOROUGH COUNCIL,CORE-MAIN-017063,"90,883.47",Grants to local authorities
Department for Education,Core,31/03/2021,Grants expenditure,CHILDRENS SOCIAL CARE,STOKE ON TRENT CITY COUNCIL,CORE-MAIN-017064,"137,433.54",Grants to local authorities
Department for Education,Core,31/03/2021,Grants expenditure,CHILDRENS SOCIAL CARE,BRIGHTON & HOVE CITY COUNCIL,CORE-MAIN-017065,"28,816.71",Grants to local authorities
Department for Education,Core,31/03/2021,Grants expenditure,CHILDRENS SOCIAL CARE,HERTFORDSHIRE COUNTY COUNCIL,CORE-MAIN-017066,"44,333.40",Grants to local authorities
Department for Education,Core,31/03/2021,Grants expenditure,CHILDRENS SOCIAL CARE,NORTH TYNESIDE METRO BOROUGH COUNCIL,CORE-MAIN-017067,"80,016.79",Grants to local authorities
Department for Education,Core,31/03/2021,Grants expenditure,CHILDRENS SOCIAL CARE,REDBRIDGE LONDON BOROUGH COUNCIL,CORE-MAIN-017068,"50,983.33",Grants to local authorities
Department for Education,Core,31/03/2021,Grants expenditure,CHILDRENS SOCIAL CARE,ISLINGTON LONDON BOROUGH COUNCIL,CORE-MAIN-017069,"62,066.76",Grants to local authorities
Department for Education,Core,31/03/2021,Grants expenditure,CHILDRENS SOCIAL CARE,LANCASHIRE COUNTY COUNCIL,CORE-MAIN-017070,"33,250.05",Grants to local authorities
Department for Education,Core,31/03/2021,Grants expenditure,CHILDRENS SOCIAL CARE,LEEDS CITY COUNCIL,CORE-MAIN-017071,"124,133.52",Grants to local authorities
Department for Education,Core,31/03/2021,Grants expenditure,CHILDRENS SOCIAL CARE,ESSEX COUNTY COUNCIL,CORE-MAIN-017072,"86,450.13",Grants to local authorities
Department for Education,Core,31/03/2021,Grants expenditure,CHILDRENS SOCIAL CARE,SHEFFIELD CITY COUNCIL,CORE-MAIN-017073,"104,183.49",Grants to local authorities
Department for Education,Core,31/03/2021,Grants expenditure,CHILDRENS SOCIAL CARE,ROYAL BOROUGH OF KENSINGTON & CHELSEA COUNCIL,CORE-MAIN-017074,"44,712.00",Grants to local authorities
Department for Education,Core,22/03/2021,Other Goods & Services,CHILDRENS SOCIAL CARE,VSC Plus Limited,CORE-PINV-017891,"89,902.80",Other Professional Services
Department for Education,Core,25/03/2021,Other Goods & Services,CHILDRENS SOCIAL CARE,THE DARTINGTON HALL TRUST,CORE-PINV-018243,"474,586.00",Other Professional Services
Department for Education,Core,29/03/2021,Other Goods & Services,CHILDRENS SOCIAL CARE,Mott MacDonald,CORE-PINV-017532,"270,146.40",Other Professional Services
Department for Education,Core,10/03/2021,Legal,COMMUNICATIONS DIRECTORATE,THE GOVERNMENT LEGAL DEPARTMENT,CORE-PINV-017212,"83,709.60",Legal advisory services from the Government Legal Department including the provision of external specialist advice and opinion
Department for Education,Core,17/03/2021,Consultancy,COMMUNICATIONS DIRECTORATE,THE GOVERNMENT LEGAL DEPARTMENT,CORE-PINV-017564,"33,744.47","Advisory services including fees, travel and expenses"
Department for Education,Core,05/03/2021,Other Goods & Services,Adoption and Children in Care Division,FAMILY LIVES,CORE-PINV-016579,"39,451.95",Other Professional Services
Department for Education,Core,05/03/2021,Consultancy,Adoption and Children in Care Division,FAMILY LIVES,CORE-PINV-016579,"15,530.69",IS/IT Services - Consultancy
Department for Education,Core,02/03/2021,Grants expenditure,Adoption and Children in Care Division,THE SHARE FOUNDATION 3RD PARTY TRUST,CORE-PINV-016757,"125,000.00",Grants to educational establishments or not for profit organisations including other businesses
Department for Education,Core,08/03/2021,Other Goods & Services,Adoption and Children in Care Division,Mott MacDonald,CORE-PINV-016552,"253,916.95",Other Professional Services
Department for Education,Core,11/03/2021,Grants expenditure,Adoption and Children in Care Division,BREAK CHARITY,CORE-MAIN-016043,"79,072.48",Grants to educational establishments or not for profit organisations including other businesses
Department for Education,Core,10/03/2021,Other Goods & Services,Adoption and Children in Care Division,Deloitte MCS Ltd,CORE-PINV-016383,"79,200.00",Other Professional Services
Department for Education,Core,18/03/2021,Other Goods & Services,Adoption and Children in Care Division,CORAM,CORE-PINV-017435,"1,800.00",Other Professional Services
Department for Education,Core,18/03/2021,Other Goods & Services,Adoption and Children in Care Division,CORAM,CORE-PINV-017435,"27,000.00",Other Professional Services
Department for Education,Core,31/03/2021,Grants expenditure,Adoption and Children in Care Division,CAMBRIDGE EDUCATION,CORE-MAIN-017075,"1,781,224.06",Grants to educational establishments or not for profit organisations including other businesses
Department for Education,Core,31/03/2021,Grants expenditure,Adoption and Children in Care Division,ST CHRISTOPHERS FELLOWSHIP,CORE-MAIN-017076,"25,126.62",Grants to educational establishments or not for profit organisations including other businesses
Department for Education,Core,31/03/2021,Grants expenditure,Adoption and Children in Care Division,ADOPTION UK,CORE-MAIN-017079,"63,983.79",Grants to educational establishments or not for profit organisations including other businesses
Department for Education,Core,31/03/2021,Grants expenditure,Adoption and Children in Care Division,KENT COUNTY COUNCIL,CORE-MAIN-017080,"432,131.28",Grants to local authorities
Department for Education,Core,31/03/2021,Grants expenditure,Adoption and Children in Care Division,BREAK CHARITY,CORE-MAIN-017082,"92,490.20",Grants to educational establishments or not for profit organisations including other businesses
Department for Education,Core,31/03/2021,Grants expenditure,Adoption and Children in Care Division,Become,CORE-MAIN-017083,"25,332.00",Grants to educational establishments or not for profit organisations including other businesses
Department for Education,Core,31/03/2021,Grants expenditure,Adoption and Children in Care Division,Drive Forward Foundation,CORE-MAIN-017084,"30,574.00",Grants to educational establishments or not for profit organisations including other businesses
Department for Education,Core,31/03/2021,Grants expenditure,Adoption and Children in Care Division,EAST SUSSEX COUNTY COUNCIL,CORE-MAIN-017086,"101,653.51",Grants to local authorities
Department for Education,Core,31/03/2021,Grants expenditure,Adoption and Children in Care Division,BC TRUST GENERAL FUND,CORE-MAIN-017087,"83,734.00",Grants to local authorities
Department for Education,Core,31/03/2021,Grants expenditure,Adoption and Children in Care Division,Staffordshire County Council,CORE-MAIN-017088,"209,068.16",Grants to local authorities
Department for Education,Core,18/03/2021,Other Goods & Services,Adoption and Children in Care Division,THE SHARE FOUNDATION,CORE-PINV-017728,"73,201.20",Other Professional Services
Department for Education,Core,19/03/2021,Other Goods & Services,Adoption and Children in Care Division,SPECTRA FIRST LTD,CORE-PINV-017822,"49,881.05",Other Professional Services
Department for Education,Core,22/03/2021,Other Goods & Services,Adoption and Children in Care Division,THE SHARE FOUNDATION,CORE-PINV-017731,"26,328.00",Other Professional Services
Department for Education,Core,24/03/2021,Grants expenditure,Adoption and Children in Care Division,THE SHARE FOUNDATION 3RD PARTY TRUST,CORE-PINV-016925,"114,800.00",Grants to educational establishments or not for profit organisations including other businesses
Department for Education,Core,24/03/2021,Other Goods & Services,Adoption and Children in Care Division,ECORYS UK LTD,CORE-PINV-017799,"67,170.43",Research and Development
Department for Education,Core,24/03/2021,Other Goods & Services,Adoption and Children in Care Division,CORAM CHILDRENS LEGAL CENTRE LTD,CORE-PINV-017933,"26,476.12",Other Professional Services
Department for Education,Core,24/03/2021,Other Goods & Services,Adoption and Children in Care Division,CORAM CHILDRENS LEGAL CENTRE LTD,CORE-PINV-017933,913.23,Other Professional Services
Department for Education,Core,25/03/2021,Other Goods & Services,Adoption and Children in Care Division,Deloitte MCS Ltd,CORE-PINV-017938,"79,200.00",Other Professional Services
Department for Education,Core,26/03/2021,Grants expenditure,Adoption and Children in Care Division,THE SHARE FOUNDATION 3RD PARTY TRUST,CORE-PINV-018245,"74,400.00",Grants to educational establishments or not for profit organisations including other businesses
Department for Education,Core,29/03/2021,Other Goods & Services,Adoption and Children in Care Division,FAMILY LIVES,CORE-PINV-018019,"70,924.58",Other Professional Services
Department for Education,Core,30/03/2021,Consultancy,Adoption and Children in Care Division,CAYSH,CORE-PINV-018529,"33,603.50","Advisory services including fees, travel and expenses"
Department for Education,Core,30/03/2021,Other Goods & Services,Adoption and Children in Care Division,Mott MacDonald,CORE-PINV-018218,"416,275.40",Other Professional Services
Department for Education,Core,31/03/2021,"Marketing, Media and Comms",Adoption and Children in Care Division,FAMILY RIGHTS GROUP LTD,CORE-PINV-016730,"58,316.00","Publicity, advertising, media advertising campaigns (excluding recruitment adverts)"
Department for Education,Core,31/03/2021,"Marketing, Media and Comms",Adoption and Children in Care Division,FAMILY RIGHTS GROUP LTD,CORE-PINV-017777,"29,158.00","Publicity, advertising, media advertising campaigns (excluding recruitment adverts)"
Department for Education,Core,31/03/2021,Other Goods & Services,Adoption and Children in Care Division,CORAM CHILDRENS LEGAL CENTRE LTD,CORE-PINV-017934,"25,330.52",Other Professional Services
Department for Education,Core,31/03/2021,Other Goods & Services,Adoption and Children in Care Division,CORAM CHILDRENS LEGAL CENTRE LTD,CORE-PINV-017934,"1,765.11",Other Professional Services
Department for Education,Core,31/03/2021,Other Goods & Services,Adoption and Children in Care Division,CORAM CHILDRENS LEGAL CENTRE LTD,CORE-PINV-017934,102.79,Other Professional Services
Department for Education,Core,11/03/2021,"Marketing, Media and Comms",CHILDRENS SOCIAL CARE,SCROLL PROJECTS LTD,CORE-PINV-017313,"79,944.00","Publicity, advertising, media advertising campaigns (excluding recruitment adverts)"
Department for Education,Core,15/03/2021,Staff - Other,PRIVATE OFFICE,HMCTS HM COURTS & TRIBUNALS SERVICE,CORE-PINV-017405,"104,804.09",Recruitment costs
Department for Education,Core,11/03/2021,Grants expenditure,STRATEGY SOCIAL MOBILITY OPPOTUNITY AREAS,BLACKPOOL BOROUGH COUNCIL,CORE-MAIN-016044,"767,528.94",Grants to local authorities
Department for Education,Core,11/03/2021,Grants expenditure,STRATEGY SOCIAL MOBILITY OPPOTUNITY AREAS,BRADFORD CITY COUNCIL,CORE-MAIN-016045,"1,257,000.00",Grants to local authorities
Department for Education,Core,11/03/2021,Grants expenditure,STRATEGY SOCIAL MOBILITY OPPOTUNITY AREAS,DERBY CITY COUNCIL,CORE-MAIN-016046,"858,000.00",Grants to local authorities
Department for Education,Core,11/03/2021,Grants expenditure,STRATEGY SOCIAL MOBILITY OPPOTUNITY AREAS,DONCASTER METRO BOROUGH COUNCIL,CORE-MAIN-016047,"940,218.00",Grants to local authorities
Department for Education,Core,11/03/2021,Grants expenditure,STRATEGY SOCIAL MOBILITY OPPOTUNITY AREAS,CAMBRIDGESHIRE COUNTY COUNCIL,CORE-MAIN-016048,"885,000.00",Grants to local authorities
Department for Education,Core,11/03/2021,Grants expenditure,STRATEGY SOCIAL MOBILITY OPPOTUNITY AREAS,EAST SUSSEX COUNTY COUNCIL,CORE-MAIN-016049,"625,000.00",Grants to local authorities
Department for Education,Core,11/03/2021,Grants expenditure,STRATEGY SOCIAL MOBILITY OPPOTUNITY AREAS,SUFFOLK COUNTY COUNCIL,CORE-MAIN-016050,"725,000.00",Grants to local authorities
Department for Education,Core,11/03/2021,Grants expenditure,STRATEGY SOCIAL MOBILITY OPPOTUNITY AREAS,NORTH YORKSHIRE COUNTY COUNCIL,CORE-MAIN-016051,"629,223.00",Grants to local authorities
Department for Education,Core,11/03/2021,Grants expenditure,STRATEGY SOCIAL MOBILITY OPPOTUNITY AREAS,NORFOLK COUNTY COUNCIL,CORE-MAIN-016052,"730,000.00",Grants to local authorities
Department for Education,Core,11/03/2021,Grants expenditure,STRATEGY SOCIAL MOBILITY OPPOTUNITY AREAS,OLDHAM METRO BOROUGH COUNCIL,CORE-MAIN-016053,"458,701.37",Grants to local authorities
Department for Education,Core,11/03/2021,Grants expenditure,STRATEGY SOCIAL MOBILITY OPPOTUNITY AREAS,STOKE ON TRENT CITY COUNCIL,CORE-MAIN-016054,"1,002,000.00",Grants to local authorities
Department for Education,Core,11/03/2021,Grants expenditure,STRATEGY SOCIAL MOBILITY OPPOTUNITY AREAS,SOMERSET COUNTY COUNCIL,CORE-MAIN-016055,"588,000.00",Grants to local authorities
Department for Education,Core,29/03/2021,Other Goods & Services,STRATEGY SOCIAL MOBILITY OPPOTUNITY AREAS,York Consulting LLP,CORE-PINV-018553,"39,718.50",Research and Development
Department for Education,Core,31/03/2021,Other Goods & Services,STRATEGY SOCIAL MOBILITY OPPOTUNITY AREAS,NATIONAL CENTRE FOR SOCIAL RESEARCH,CORE-PINV-018642,"40,000.00",Research and Development
Department for Education,Core,09/03/2021,Other Goods & Services,CHILDRENS SOCIAL CARE,FARSIGHT CONSULTING LIMITED,CORE-PINV-016842,"104,782.50",Other Professional Services
Department for Education,Core,16/03/2021,Other Goods & Services,STRATEGY SOCIAL MOBILITY OPPOTUNITY AREAS,Metro Dynamics Limited,CORE-PINV-017531,"75,600.00",Research and Development
Department for Education,Core,22/03/2021,Other Goods & Services,STRATEGY SOCIAL MOBILITY OPPOTUNITY AREAS,UNIVERSITY OF WOLVERHAMPTON,CORE-PINV-017889,"29,162.40",Research and Development
Department for Education,Core,23/03/2021,Other Goods & Services,STRATEGY SOCIAL MOBILITY OPPOTUNITY AREAS,School of International Futures,CORE-PINV-017932,"51,120.00",Research and Development
Department for Education,Core,23/03/2021,IS/IT,STRATEGY SOCIAL MOBILITY OPPOTUNITY AREAS,FORM ADVERTISING LTD,CORE-PINV-017945,"34,980.00",IS/IT Services - Networking
Department for Education,Core,29/03/2021,Other Goods & Services,STRATEGY SOCIAL MOBILITY OPPOTUNITY AREAS,LONDON SCHOOL OF ECONOMICS & POLITICAL SCIENCE LSE,CORE-PINV-018510,"21,600.00",Research and Development
Department for Education,Core,10/03/2021,Other Goods & Services,Children's Social Care - Practice,FARSIGHT CONSULTING LIMITED,CORE-PINV-016970,"137,634.00",Other Professional Services
Department for Education,Core,31/03/2021,Grants expenditure,Children's Social Care - Practice,HAMPSHIRE COUNTY COUNCIL,CORE-MAIN-017089,"44,990.00",Grants to local authorities
Department for Education,Core,31/03/2021,Grants expenditure,Children's Social Care - Practice,BARKING & DAGENHAM LONDON BOROUGH COUNCIL,CORE-MAIN-017090,"64,831.00",Grants to local authorities
Department for Education,Core,31/03/2021,Grants expenditure,Children's Social Care - Practice,BARNET LONDON BOROUGH COUNCIL,CORE-MAIN-017091,"183,858.30",Grants to local authorities
Department for Education,Core,31/03/2021,Grants expenditure,Children's Social Care - Practice,BRADFORD CITY COUNCIL,CORE-MAIN-017094,"30,309.00",Grants to local authorities
Department for Education,Core,31/03/2021,Grants expenditure,Children's Social Care - Practice,BRENT LONDON BOROUGH COUNCIL,CORE-MAIN-017095,"209,171.61",Grants to local authorities
Department for Education,Core,31/03/2021,Grants expenditure,Children's Social Care - Practice,BRIGHTON & HOVE CITY COUNCIL,CORE-MAIN-017096,"155,228.00",Grants to local authorities
Department for Education,Core,31/03/2021,Grants expenditure,Children's Social Care - Practice,CAMDEN LONDON BOROUGH COUNCIL,CORE-MAIN-017098,"151,539.00",Grants to local authorities
Department for Education,Core,31/03/2021,Grants expenditure,Children's Social Care - Practice,CENTRAL BEDFORDSHIRE COUNCIL,CORE-MAIN-017099,"254,657.53",Grants to local authorities
Department for Education,Core,31/03/2021,Grants expenditure,Children's Social Care - Practice,COMMON COUNCIL OF THE CITY OF LONDON,CORE-MAIN-017101,"43,943.14",Grants to local authorities
Department for Education,Core,31/03/2021,Grants expenditure,Children's Social Care - Practice,COVENTRY CITY COUNCIL,CORE-MAIN-017102,"64,955.00",Grants to local authorities
Department for Education,Core,31/03/2021,Grants expenditure,Children's Social Care - Practice,CROYDON LONDON BOROUGH COUNCIL,CORE-MAIN-017103,"198,848.62",Grants to local authorities
Department for Education,Core,31/03/2021,Grants expenditure,Children's Social Care - Practice,DERBYSHIRE COUNTY COUNCIL,CORE-MAIN-017105,"108,351.00",Grants to local authorities
Department for Education,Core,31/03/2021,Grants expenditure,Children's Social Care - Practice,DORSET COUNCIL,CORE-MAIN-017106,"102,978.00",Grants to local authorities
Department for Education,Core,31/03/2021,Grants expenditure,Children's Social Care - Practice,EALING LONDON BOROUGH COUNCIL,CORE-MAIN-017107,"61,086.00",Grants to local authorities
Department for Education,Core,31/03/2021,Grants expenditure,Children's Social Care - Practice,EAST SUSSEX COUNTY COUNCIL,CORE-MAIN-017108,"59,058.00",Grants to local authorities
Department for Education,Core,31/03/2021,Grants expenditure,Children's Social Care - Practice,ENFIELD LONDON BOROUGH COUNCIL,CORE-MAIN-017109,"216,238.00",Grants to local authorities
Department for Education,Core,31/03/2021,Grants expenditure,Children's Social Care - Practice,ESSEX COUNTY COUNCIL,CORE-MAIN-017110,"39,500.00",Grants to local authorities
Department for Education,Core,31/03/2021,Grants expenditure,Children's Social Care - Practice,HACKNEY LONDON BOROUGH COUNCIL,CORE-MAIN-017111,"151,167.00",Grants to local authorities
Department for Education,Core,31/03/2021,Grants expenditure,Children's Social Care - Practice,HAMMERSMITH & FULHAM LONDON BOROUGH COUNCIL,CORE-MAIN-017112,"80,519.48",Grants to local authorities
Department for Education,Core,31/03/2021,Grants expenditure,Children's Social Care - Practice,HAMPSHIRE COUNTY COUNCIL,CORE-MAIN-017113,"27,000.00",Grants to local authorities
Department for Education,Core,31/03/2021,Grants expenditure,Children's Social Care - Practice,HARINGEY LONDON BOROUGH COUNCIL,CORE-MAIN-017114,"121,346.00",Grants to local authorities
Department for Education,Core,31/03/2021,Grants expenditure,Children's Social Care - Practice,ISLINGTON LONDON BOROUGH COUNCIL,CORE-MAIN-017116,"170,585.00",Grants to local authorities
Department for Education,Core,31/03/2021,Grants expenditure,Children's Social Care - Practice,ROYAL BOROUGH OF KENSINGTON & CHELSEA COUNCIL,CORE-MAIN-017117,"80,814.46",Grants to local authorities
Department for Education,Core,31/03/2021,Grants expenditure,Children's Social Care - Practice,LAMBETH LONDON BOROUGH COUNCIL,CORE-MAIN-017119,"62,856.33",Grants to local authorities
Department for Education,Core,31/03/2021,Grants expenditure,Children's Social Care - Practice,LEEDS CITY COUNCIL,CORE-MAIN-017120,"68,920.96",Grants to local authorities
Department for Education,Core,31/03/2021,Grants expenditure,Children's Social Care - Practice,LEICESTERSHIRE COUNTY COUNCIL,CORE-MAIN-017121,"147,886.60",Grants to local authorities
Department for Education,Core,31/03/2021,Grants expenditure,Children's Social Care - Practice,LIVERPOOL CITY COUNCIL,CORE-MAIN-017122,"42,843.86",Grants to local authorities
Department for Education,Core,31/03/2021,Grants expenditure,Children's Social Care - Practice,MANCHESTER CITY COUNCIL,CORE-MAIN-017123,"133,423.00",Grants to local authorities
Department for Education,Core,31/03/2021,Grants expenditure,Children's Social Care - Practice,NORFOLK COUNTY COUNCIL,CORE-MAIN-017124,"340,314.00",Grants to local authorities
Department for Education,Core,31/03/2021,Grants expenditure,Children's Social Care - Practice,Oxfordshire County Council,CORE-MAIN-017127,"76,213.00",Grants to local authorities
Department for Education,Core,31/03/2021,Grants expenditure,Children's Social Care - Practice,PORTSMOUTH CITY COUNCIL,CORE-MAIN-017128,"80,742.00",Grants to local authorities
Department for Education,Core,31/03/2021,Grants expenditure,Children's Social Care - Practice,REDBRIDGE LONDON BOROUGH COUNCIL,CORE-MAIN-017129,"196,208.00",Grants to local authorities
Department for Education,Core,31/03/2021,Grants expenditure,Children's Social Care - Practice,REDCAR & CLEVELAND BOROUGH COUNCIL,CORE-MAIN-017130,"44,303.53",Grants to local authorities
Department for Education,Core,31/03/2021,Grants expenditure,Children's Social Care - Practice,ROCHDALE BOROUGH COUNCIL,CORE-MAIN-017132,"36,752.55",Grants to local authorities
Department for Education,Core,31/03/2021,Grants expenditure,Children's Social Care - Practice,Sandwell Metro Borough Council,CORE-MAIN-017134,"79,923.68",Grants to local authorities
Department for Education,Core,31/03/2021,Grants expenditure,Children's Social Care - Practice,SHEFFIELD CITY COUNCIL,CORE-MAIN-017135,"84,235.00",Grants to local authorities
Department for Education,Core,31/03/2021,Grants expenditure,Children's Social Care - Practice,SLOUGH BOROUGH COUNCIL,CORE-MAIN-017136,"36,148.80",Grants to local authorities
Department for Education,Core,31/03/2021,Grants expenditure,Children's Social Care - Practice,SURREY COUNTY COUNCIL,CORE-MAIN-017137,"272,177.28",Grants to local authorities
Department for Education,Core,31/03/2021,Grants expenditure,Children's Social Care - Practice,WARWICKSHIRE COUNTY COUNCIL,CORE-MAIN-017140,"39,167.63",Grants to local authorities
Department for Education,Core,31/03/2021,Grants expenditure,Children's Social Care - Practice,WESTMINSTER CITY COUNCIL,CORE-MAIN-017141,"284,118.80",Grants to local authorities
Department for Education,Core,31/03/2021,Grants expenditure,Children's Social Care - Practice,WIGAN METRO BOROUGH COUNCIL,CORE-MAIN-017142,"34,297.95",Grants to local authorities
Department for Education,Core,31/03/2021,Grants expenditure,Children's Social Care - Practice,West Sussex County Council,CORE-MAIN-017145,"64,300.00",Grants to local authorities
Department for Education,Core,09/03/2021,Other Goods & Services,STRATEGY SOCIAL MOBILITY OPPOTUNITY AREAS,CONTACT,CORE-PINV-016766,"153,355.72",Other Professional Services
Department for Education,Core,09/03/2021,Other Goods & Services,STRATEGY SOCIAL MOBILITY OPPOTUNITY AREAS,NASEN,CORE-PINV-016908,"83,085.72",Other Professional Services
Department for Education,Core,15/03/2021,Professional Services,STRATEGY SOCIAL MOBILITY OPPOTUNITY AREAS,UNIVERSITY OF EAST ANGLIA,CORE-PINV-017422,"60,238.00",EDUCATIONAL SERVICES
Department for Education,Core,16/03/2021,Other Goods & Services,STRATEGY SOCIAL MOBILITY OPPOTUNITY AREAS,UNIVERSITY COLLEGE LONDON,CORE-PINV-017539,"804,658.33",Other Professional Services
Department for Education,Core,31/03/2021,Grants expenditure,STRATEGY SOCIAL MOBILITY OPPOTUNITY AREAS,THE FAMILY FUND TRUST,CORE-MAIN-017158,"2,186,000.00",Grants to educational establishments or not for profit organisations including other businesses
Department for Education,Core,24/03/2021,Grants expenditure,STRATEGY SOCIAL MOBILITY OPPOTUNITY AREAS,HMCTS HM COURTS & TRIBUNALS SERVICE,CORE-PINV-018035,"477,220.00",Grants paid to other Government Departments
Department for Education,Core,24/03/2021,Grants expenditure,STRATEGY SOCIAL MOBILITY OPPOTUNITY AREAS,HMCTS HM COURTS & TRIBUNALS SERVICE,CORE-PINV-018037,"66,836.00",Grants paid to other Government Departments
Department for Education,Core,24/03/2021,Grants expenditure,STRATEGY SOCIAL MOBILITY OPPOTUNITY AREAS,HMCTS HM COURTS & TRIBUNALS SERVICE,CORE-PINV-018042,"51,471.00",Grants paid to other Government Departments
Department for Education,Core,24/03/2021,Grants expenditure,STRATEGY SOCIAL MOBILITY OPPOTUNITY AREAS,HMCTS HM COURTS & TRIBUNALS SERVICE,CORE-PINV-018043,"242,572.00",Grants paid to other Government Departments
Department for Education,Core,24/03/2021,Grants expenditure,STRATEGY SOCIAL MOBILITY OPPOTUNITY AREAS,HMCTS HM COURTS & TRIBUNALS SERVICE,CORE-PINV-018044,"431,104.00",Grants paid to other Government Departments
Department for Education,Core,24/03/2021,Grants expenditure,STRATEGY SOCIAL MOBILITY OPPOTUNITY AREAS,HMCTS HM COURTS & TRIBUNALS SERVICE,CORE-PINV-018045,"267,600.00",Grants paid to other Government Departments
Department for Education,Core,24/03/2021,Grants expenditure,STRATEGY SOCIAL MOBILITY OPPOTUNITY AREAS,HMCTS HM COURTS & TRIBUNALS SERVICE,CORE-PINV-018046,"239,128.00",Grants paid to other Government Departments
Department for Education,Core,24/03/2021,Grants expenditure,STRATEGY SOCIAL MOBILITY OPPOTUNITY AREAS,HMCTS HM COURTS & TRIBUNALS SERVICE,CORE-PINV-018047,"150,788.00",Grants paid to other Government Departments
Department for Education,Core,24/03/2021,Grants expenditure,STRATEGY SOCIAL MOBILITY OPPOTUNITY AREAS,HMCTS HM COURTS & TRIBUNALS SERVICE,CORE-PINV-018049,"54,180.00",Grants paid to other Government Departments
Department for Education,Core,24/03/2021,Grants expenditure,STRATEGY SOCIAL MOBILITY OPPOTUNITY AREAS,HMCTS HM COURTS & TRIBUNALS SERVICE,CORE-PINV-018050,"66,836.00",Grants paid to other Government Departments
Department for Education,Core,24/03/2021,Grants expenditure,STRATEGY SOCIAL MOBILITY OPPOTUNITY AREAS,HMCTS HM COURTS & TRIBUNALS SERVICE,CORE-PINV-018052,"353,455.00",Grants paid to other Government Departments
Department for Education,Core,24/03/2021,Grants expenditure,STRATEGY SOCIAL MOBILITY OPPOTUNITY AREAS,HMCTS HM COURTS & TRIBUNALS SERVICE,CORE-PINV-018053,"55,550.00",Grants paid to other Government Departments
Department for Education,Core,24/03/2021,Grants expenditure,STRATEGY SOCIAL MOBILITY OPPOTUNITY AREAS,HMCTS HM COURTS & TRIBUNALS SERVICE,CORE-PINV-018054,"33,330.00",Grants paid to other Government Departments
Department for Education,Core,24/03/2021,Grants expenditure,STRATEGY SOCIAL MOBILITY OPPOTUNITY AREAS,HMCTS HM COURTS & TRIBUNALS SERVICE,CORE-PINV-018056,"139,380.00",Grants paid to other Government Departments
Department for Education,Core,24/03/2021,Grants expenditure,STRATEGY SOCIAL MOBILITY OPPOTUNITY AREAS,HMCTS HM COURTS & TRIBUNALS SERVICE,CORE-PINV-018057,"111,100.00",Grants paid to other Government Departments
Department for Education,Core,24/03/2021,Grants expenditure,STRATEGY SOCIAL MOBILITY OPPOTUNITY AREAS,HMCTS HM COURTS & TRIBUNALS SERVICE,CORE-PINV-018058,"33,330.00",Grants paid to other Government Departments
Department for Education,Core,24/03/2021,Grants expenditure,STRATEGY SOCIAL MOBILITY OPPOTUNITY AREAS,HMCTS HM COURTS & TRIBUNALS SERVICE,CORE-PINV-018059,"239,907.00",Grants paid to other Government Departments
Department for Education,Core,24/03/2021,Grants expenditure,STRATEGY SOCIAL MOBILITY OPPOTUNITY AREAS,HMCTS HM COURTS & TRIBUNALS SERVICE,CORE-PINV-018060,"97,734.00",Grants paid to other Government Departments
Department for Education,Core,24/03/2021,Grants expenditure,STRATEGY SOCIAL MOBILITY OPPOTUNITY AREAS,HMCTS HM COURTS & TRIBUNALS SERVICE,CORE-PINV-018061,"45,632.00",Grants paid to other Government Departments
Department for Education,Core,24/03/2021,Grants expenditure,STRATEGY SOCIAL MOBILITY OPPOTUNITY AREAS,HMCTS HM COURTS & TRIBUNALS SERVICE,CORE-PINV-018062,"327,456.00",Grants paid to other Government Departments
Department for Education,Core,24/03/2021,Grants expenditure,STRATEGY SOCIAL MOBILITY OPPOTUNITY AREAS,HMCTS HM COURTS & TRIBUNALS SERVICE,CORE-PINV-018063,"302,835.00",Grants paid to other Government Departments
Department for Education,Core,24/03/2021,Grants expenditure,STRATEGY SOCIAL MOBILITY OPPOTUNITY AREAS,HMCTS HM COURTS & TRIBUNALS SERVICE,CORE-PINV-018064,"379,470.00",Grants paid to other Government Departments
Department for Education,Core,26/03/2021,Other Goods & Services,STRATEGY SOCIAL MOBILITY OPPOTUNITY AREAS,Mott MacDonald,CORE-PINV-017844,"223,207.00",Other Professional Services
Department for Education,Core,26/03/2021,Other Goods & Services,STRATEGY SOCIAL MOBILITY OPPOTUNITY AREAS,COUNCIL FOR DISABLED CHILDREN,CORE-PINV-018335,"122,798.00",Other Professional Services
Department for Education,Core,26/03/2021,Other Goods & Services,STRATEGY SOCIAL MOBILITY OPPOTUNITY AREAS,NATIONAL CHILDRENS BUREAU,CORE-PINV-018441,"139,278.98",Other Professional Services
Department for Education,Core,26/03/2021,Other Goods & Services,STRATEGY SOCIAL MOBILITY OPPOTUNITY AREAS,NATIONAL CHILDRENS BUREAU,CORE-PINV-018440,"122,691.56",Other Professional Services
Department for Education,Core,29/03/2021,Other Goods & Services,STRATEGY SOCIAL MOBILITY OPPOTUNITY AREAS,NATIONAL CHILDRENS BUREAU,CORE-PINV-018482,"110,679.98",Other Professional Services
Department for Education,Core,29/03/2021,Other Goods & Services,STRATEGY SOCIAL MOBILITY OPPOTUNITY AREAS,NATIONAL CHILDRENS BUREAU,CORE-PINV-018498,"1,969,688.80",Other Professional Services
Department for Education,Core,30/03/2021,Grants expenditure,STRATEGY SOCIAL MOBILITY OPPOTUNITY AREAS,HMCTS HM COURTS & TRIBUNALS SERVICE,CORE-PINV-018066,"453,805.00",Grants paid to other Government Departments
Department for Education,Core,31/03/2021,Other Goods & Services,STRATEGY SOCIAL MOBILITY OPPOTUNITY AREAS,THE UNIVERSITY OF MANCHESTER,CORE-PINV-018464,"1,027,452.42",Other Professional Services
Department for Education,Core,09/03/2021,Other Goods & Services,STRATEGY SOCIAL MOBILITY OPPOTUNITY AREAS,EDUCATION DEVELOPMENT TRUST,CORE-PINV-016684,"40,717.03",Other Professional Services
Department for Education,Core,26/03/2021,Other Goods & Services,STRATEGY SOCIAL MOBILITY OPPOTUNITY AREAS,ECORYS UK LTD,CORE-PINV-018302,"91,907.69",Research and Development
Department for Education,Core,30/03/2021,Other Goods & Services,STRATEGY SOCIAL MOBILITY OPPOTUNITY AREAS,EDUCATION DEVELOPMENT TRUST,CORE-PINV-018519,"56,441.65",Other Professional Services
Department for Education,Core,02/03/2021,Learning & Development,ASSESSMENT AND CURRICULUM AND GENERAL QUALIFICATIONS,Tribal Education Limited,CORE-PINV-016414,"334,597.46",Training & Development costs
Department for Education,Core,11/03/2021,Grants expenditure,ASSESSMENT AND CURRICULUM AND GENERAL QUALIFICATIONS,"St Thomas More's Catholic Primary School, Colchest",CORE-MAIN-016056,"177,453.21",Grants to educational establishments or not for profit organisations including other businesses
Department for Education,Core,11/03/2021,Grants expenditure,ASSESSMENT AND CURRICULUM AND GENERAL QUALIFICATIONS,THE WILLINK SCHOOL,CORE-MAIN-016057,"177,160.00",Grants to educational establishments or not for profit organisations including other businesses
Department for Education,Core,11/03/2021,Grants expenditure,ASSESSMENT AND CURRICULUM AND GENERAL QUALIFICATIONS,Comberton Village College ,CORE-MAIN-016058,"183,528.77",Grants to educational establishments or not for profit organisations including other businesses
Department for Education,Core,11/03/2021,Grants expenditure,ASSESSMENT AND CURRICULUM AND GENERAL QUALIFICATIONS,Beauchamp College,CORE-MAIN-016059,"146,339.43",Grants to educational establishments or not for profit organisations including other businesses
Department for Education,Core,11/03/2021,Grants expenditure,ASSESSMENT AND CURRICULUM AND GENERAL QUALIFICATIONS,Elmhurst Primary School,CORE-MAIN-016060,"240,946.34",Grants to educational establishments or not for profit organisations including other businesses
Department for Education,Core,11/03/2021,Grants expenditure,ASSESSMENT AND CURRICULUM AND GENERAL QUALIFICATIONS,Redriff Primary School,CORE-MAIN-016061,"183,548.28",Grants to educational establishments or not for profit organisations including other businesses
Department for Education,Core,11/03/2021,Grants expenditure,ASSESSMENT AND CURRICULUM AND GENERAL QUALIFICATIONS,CHURCHILL COMMUNITY COLLEGE,CORE-MAIN-016062,"237,224.51",Grants to educational establishments or not for profit organisations including other businesses
Department for Education,Core,11/03/2021,Grants expenditure,ASSESSMENT AND CURRICULUM AND GENERAL QUALIFICATIONS,Lancaster Royal Grammar School,CORE-MAIN-016063,"223,181.00",Grants to educational establishments or not for profit organisations including other businesses
Department for Education,Core,11/03/2021,Grants expenditure,ASSESSMENT AND CURRICULUM AND GENERAL QUALIFICATIONS,CARDINAL NEWMAN COLLEGE,CORE-MAIN-016064,"234,461.62",Grants to educational establishments or not for profit organisations including other businesses
Department for Education,Core,11/03/2021,Grants expenditure,ASSESSMENT AND CURRICULUM AND GENERAL QUALIFICATIONS,TRURO COLLEGE,CORE-MAIN-016065,"234,103.66",Grants to educational establishments or not for profit organisations including other businesses
Department for Education,Core,11/03/2021,Grants expenditure,ASSESSMENT AND CURRICULUM AND GENERAL QUALIFICATIONS,Cabot Learning Federation,CORE-MAIN-016066,"254,298.80",Grants to educational establishments or not for profit organisations including other businesses
Department for Education,Core,11/03/2021,Grants expenditure,ASSESSMENT AND CURRICULUM AND GENERAL QUALIFICATIONS,Harris Federation,CORE-MAIN-016067,"283,702.97",Grants to educational establishments or not for profit organisations including other businesses
Department for Education,Core,11/03/2021,Grants expenditure,ASSESSMENT AND CURRICULUM AND GENERAL QUALIFICATIONS,St John the Baptist School,CORE-MAIN-016068,"147,613.11",Grants to educational establishments or not for profit organisations including other businesses
Department for Education,Core,11/03/2021,Grants expenditure,ASSESSMENT AND CURRICULUM AND GENERAL QUALIFICATIONS,Balcarras School,CORE-MAIN-016069,"86,393.77",Grants to educational establishments or not for profit organisations including other businesses
Department for Education,Core,11/03/2021,Grants expenditure,ASSESSMENT AND CURRICULUM AND GENERAL QUALIFICATIONS,Painsley Catholic College,CORE-MAIN-016070,"300,754.06",Grants to educational establishments or not for profit organisations including other businesses
Department for Education,Core,11/03/2021,Grants expenditure,ASSESSMENT AND CURRICULUM AND GENERAL QUALIFICATIONS,Altrincham Grammar School for Girls,CORE-MAIN-016071,"343,555.27",Grants to educational establishments or not for profit organisations including other businesses
Department for Education,Core,11/03/2021,Grants expenditure,ASSESSMENT AND CURRICULUM AND GENERAL QUALIFICATIONS,ST PAULS CATHOLIC COLLEGE,CORE-MAIN-016072,"213,351.62",Grants to educational establishments or not for profit organisations including other businesses
Department for Education,Core,11/03/2021,Grants expenditure,ASSESSMENT AND CURRICULUM AND GENERAL QUALIFICATIONS,"The Priory School, A Business and Enterprise Colle",CORE-MAIN-016073,"142,118.45",Grants to educational establishments or not for profit organisations including other businesses
Department for Education,Core,11/03/2021,Grants expenditure,ASSESSMENT AND CURRICULUM AND GENERAL QUALIFICATIONS,Harrogate Grammar School,CORE-MAIN-016074,"205,107.00",Grants to educational establishments or not for profit organisations including other businesses
Department for Education,Core,11/03/2021,Grants expenditure,ASSESSMENT AND CURRICULUM AND GENERAL QUALIFICATIONS,Herts & Essex Multi Academy Trust,CORE-MAIN-016075,"145,027.49",Grants to educational establishments or not for profit organisations including other businesses
Department for Education,Core,11/03/2021,Grants expenditure,ASSESSMENT AND CURRICULUM AND GENERAL QUALIFICATIONS,LONDON CENTRAL & WEST MATHS HUB,CORE-MAIN-016076,"206,385.59",Grants to educational establishments or not for profit organisations including other businesses
Department for Education,Core,11/03/2021,Grants expenditure,ASSESSMENT AND CURRICULUM AND GENERAL QUALIFICATIONS,ASHTON-ON-MERSEY SCHOOL,CORE-MAIN-016077,"199,109.24",Grants to educational establishments or not for profit organisations including other businesses
Department for Education,Core,11/03/2021,Grants expenditure,ASSESSMENT AND CURRICULUM AND GENERAL QUALIFICATIONS,Alsager School,CORE-MAIN-016078,"226,046.13",Grants to educational establishments or not for profit organisations including other businesses
Department for Education,Core,11/03/2021,Grants expenditure,ASSESSMENT AND CURRICULUM AND GENERAL QUALIFICATIONS,THE WOODROFFE SCHOOL,CORE-MAIN-016079,"191,386.00",Grants to educational establishments or not for profit organisations including other businesses
Department for Education,Core,11/03/2021,Grants expenditure,ASSESSMENT AND CURRICULUM AND GENERAL QUALIFICATIONS,BISHOP CHALLONER CATHOLIC COLLEGE,CORE-MAIN-016080,"365,742.24",Grants to educational establishments or not for profit organisations including other businesses
Department for Education,Core,11/03/2021,Grants expenditure,ASSESSMENT AND CURRICULUM AND GENERAL QUALIFICATIONS,Tudor Grange Academies Trust,CORE-MAIN-016081,"141,810.00",Grants to educational establishments or not for profit organisations including other businesses
Department for Education,Core,16/03/2021,Professional Services,ASSESSMENT AND CURRICULUM AND GENERAL QUALIFICATIONS,MATHEMATICS IN EDUCATION & INDUSTRY,CORE-PINV-017530,"697,765.00",EDUCATIONAL SERVICES
Department for Education,Core,10/03/2021,Grants expenditure,ASSESSMENT AND CURRICULUM AND GENERAL QUALIFICATIONS,THE HERTFORDSHIRE & ESSEX HIGH SCHOOL & SCIENCE COLLEGE,CUPS0022660,"-286,370.00",Grants to educational establishments or not for profit organisations including other businesses
Department for Education,Core,31/03/2021,Grants expenditure,ASSESSMENT AND CURRICULUM AND GENERAL QUALIFICATIONS,Denbigh School,CORE-MAIN-017159,"158,125.18",Grants to educational establishments or not for profit organisations including other businesses
Department for Education,Core,31/03/2021,Grants expenditure,ASSESSMENT AND CURRICULUM AND GENERAL QUALIFICATIONS,Trinity Multi Academy Trust,CORE-MAIN-017161,"361,250.68",Grants to educational establishments or not for profit organisations including other businesses
Department for Education,Core,31/03/2021,Grants expenditure,ASSESSMENT AND CURRICULUM AND GENERAL QUALIFICATIONS,Sir Isaac Newton Free School  Norwich,CORE-MAIN-017162,"224,429.76",Grants to educational establishments or not for profit organisations including other businesses
Department for Education,Core,31/03/2021,Grants expenditure,ASSESSMENT AND CURRICULUM AND GENERAL QUALIFICATIONS,The Minster School,CORE-MAIN-017163,"195,097.41",Grants to educational establishments or not for profit organisations including other businesses
Department for Education,Core,31/03/2021,Grants expenditure,ASSESSMENT AND CURRICULUM AND GENERAL QUALIFICATIONS,Carmel College,CORE-MAIN-017164,"264,186.20",Grants to educational establishments or not for profit organisations including other businesses
Department for Education,Core,31/03/2021,Grants expenditure,ASSESSMENT AND CURRICULUM AND GENERAL QUALIFICATIONS,Sir Joseph Williamson's Mathematical School,CORE-MAIN-017165,"159,161.03",Grants to educational establishments or not for profit organisations including other businesses
Department for Education,Core,31/03/2021,Grants expenditure,ASSESSMENT AND CURRICULUM AND GENERAL QUALIFICATIONS,Belleville Primary School,CORE-MAIN-017166,"152,164.95",Grants to educational establishments or not for profit organisations including other businesses
Department for Education,Core,31/03/2021,Grants expenditure,ASSESSMENT AND CURRICULUM AND GENERAL QUALIFICATIONS,The St Marylebone CofE School,CORE-MAIN-017167,"114,920.37",Grants to educational establishments or not for profit organisations including other businesses
Department for Education,Core,31/03/2021,Grants expenditure,ASSESSMENT AND CURRICULUM AND GENERAL QUALIFICATIONS,Mary Rose Academy,CORE-MAIN-017169,"247,180.37",Grants to educational establishments or not for profit organisations including other businesses
Department for Education,Core,31/03/2021,Grants expenditure,ASSESSMENT AND CURRICULUM AND GENERAL QUALIFICATIONS,The Spencer Academies Trust,CORE-MAIN-017170,"204,305.90",Grants to educational establishments or not for profit organisations including other businesses
Department for Education,Core,31/03/2021,Grants expenditure,ASSESSMENT AND CURRICULUM AND GENERAL QUALIFICATIONS,Outwood Grange Academies Trust,CORE-MAIN-017171,"243,015.54",Grants to educational establishments or not for profit organisations including other businesses
Department for Education,Core,29/03/2021,Learning & Development,ASSESSMENT AND CURRICULUM AND GENERAL QUALIFICATIONS,Tribal Education Limited,CORE-PINV-018555,"333,932.52",Training & Development costs
Department for Education,Core,11/03/2021,Grants expenditure,ASSESSMENT AND CURRICULUM AND GENERAL QUALIFICATIONS,TRENANCE LEARNING ACADEMY TRUST,CORE-MAIN-014964,"195,568.00",Grants to educational establishments or not for profit organisations including other businesses
Department for Education,Core,11/03/2021,Professional Services Consultancy and Contingent Labour,ASSESSMENT AND CURRICULUM AND GENERAL QUALIFICATIONS,RUTH MISKIN LITERACY LTD,CORE-PINV-017227,"98,488.80",Costs related to temporary workers
Department for Education,Core,11/03/2021,Professional Services Consultancy and Contingent Labour,ASSESSMENT AND CURRICULUM AND GENERAL QUALIFICATIONS,RUTH MISKIN LITERACY LTD,CORE-PINV-017228,"69,079.20",Costs related to temporary workers
Department for Education,Core,17/03/2021,Consultancy,ASSESSMENT AND CURRICULUM AND GENERAL QUALIFICATIONS,THE FULL ENGLISH EDUCATION LTD,CORE-PINV-017661,"31,415.00","Advisory services including fees, travel and expenses"
Department for Education,Core,17/03/2021,Consultancy,ASSESSMENT AND CURRICULUM AND GENERAL QUALIFICATIONS,THE FULL ENGLISH EDUCATION LTD,CORE-PINV-017662,"26,680.00","Advisory services including fees, travel and expenses"
Department for Education,Core,18/03/2021,Professional Services Consultancy and Contingent Labour,ASSESSMENT AND CURRICULUM AND GENERAL QUALIFICATIONS,RUTH MISKIN LITERACY LTD,CORE-PINV-017789,"73,303.20",Costs related to temporary workers
Department for Education,Core,31/03/2021,Grants expenditure,ASSESSMENT AND CURRICULUM AND GENERAL QUALIFICATIONS,WHITEKNIGHTS PRIMARY SCHOOL,CORE-MAIN-017172,"44,158.02",Grants to educational establishments or not for profit organisations including other businesses
Department for Education,Core,31/03/2021,Grants expenditure,ASSESSMENT AND CURRICULUM AND GENERAL QUALIFICATIONS,West London Free School Primary,CORE-MAIN-017173,"144,226.90",Grants to educational establishments or not for profit organisations including other businesses
Department for Education,Core,11/03/2021,Grants expenditure,ASSESSMENT AND CURRICULUM AND GENERAL QUALIFICATIONS,UNIVERSITY OF CAMBRIDGE,CORE-MAIN-016082,"208,051.58",Grants to educational establishments or not for profit organisations including other businesses
Department for Education,Core,11/03/2021,Grants expenditure,ASSESSMENT AND CURRICULUM AND GENERAL QUALIFICATIONS,ENTHUSE CHARITABLE TRUST,CORE-MAIN-016083,"360,000.00",Grants to educational establishments or not for profit organisations including other businesses
Department for Education,Core,11/03/2021,Grants expenditure,ASSESSMENT AND CURRICULUM AND GENERAL QUALIFICATIONS,IOP INSTITUTE OF PHYSICS,CORE-MAIN-016084,"136,515.00",Grants to educational establishments or not for profit organisations including other businesses
Department for Education,Core,18/03/2021,Professional Services,ASSESSMENT AND CURRICULUM AND GENERAL QUALIFICATIONS,STEM LEARNING LTD,CORE-PINV-017693,"185,833.00",EDUCATIONAL SERVICES
Department for Education,Core,18/03/2021,Professional Services,ASSESSMENT AND CURRICULUM AND GENERAL QUALIFICATIONS,STEM LEARNING LTD,CORE-PINV-017694,"43,518.63",EDUCATIONAL SERVICES
Department for Education,Core,18/03/2021,Professional Services,ASSESSMENT AND CURRICULUM AND GENERAL QUALIFICATIONS,STEM LEARNING LTD,CORE-PINV-017695,"51,354.17",EDUCATIONAL SERVICES
Department for Education,Core,03/03/2021,Other Goods & Services,ASSESSMENT AND CURRICULUM AND GENERAL QUALIFICATIONS,STEM LEARNING LTD,CORE-PINV-016600,"50,267.94",Other Professional Services
Department for Education,Core,03/03/2021,Other Goods & Services,ASSESSMENT AND CURRICULUM AND GENERAL QUALIFICATIONS,STEM LEARNING LTD,CORE-PINV-016601,"66,561.66",Other Professional Services
Department for Education,Core,03/03/2021,Other Goods & Services,ASSESSMENT AND CURRICULUM AND GENERAL QUALIFICATIONS,STEM LEARNING LTD,CORE-PINV-016602,"434,937.40",Other Professional Services
Department for Education,Core,03/03/2021,Other Goods & Services,ASSESSMENT AND CURRICULUM AND GENERAL QUALIFICATIONS,STEM LEARNING LTD,CORE-PINV-016602,"307,225.02",Other Professional Services
Department for Education,Core,03/03/2021,Other Goods & Services,ASSESSMENT AND CURRICULUM AND GENERAL QUALIFICATIONS,STEM LEARNING LTD,CORE-PINV-016610,"951,011.70",Other Professional Services
Department for Education,Core,29/03/2021,Other Goods & Services,ASSESSMENT AND CURRICULUM AND GENERAL QUALIFICATIONS,STEM LEARNING LTD,CORE-PINV-018454,"944,672.70",Other Professional Services
Department for Education,Core,29/03/2021,Other Goods & Services,ASSESSMENT AND CURRICULUM AND GENERAL QUALIFICATIONS,STEM LEARNING LTD,CORE-PINV-018455,"491,830.85",Other Professional Services
Department for Education,Core,29/03/2021,Other Goods & Services,ASSESSMENT AND CURRICULUM AND GENERAL QUALIFICATIONS,STEM LEARNING LTD,CORE-PINV-018455,"352,054.50",Other Professional Services
Department for Education,Core,29/03/2021,Other Goods & Services,ASSESSMENT AND CURRICULUM AND GENERAL QUALIFICATIONS,STEM LEARNING LTD,CORE-PINV-018456,"66,561.67",Other Professional Services
Department for Education,Core,29/03/2021,Other Goods & Services,ASSESSMENT AND CURRICULUM AND GENERAL QUALIFICATIONS,STEM LEARNING LTD,CORE-PINV-018461,"54,607.03",Other Professional Services
Department for Education,Core,31/03/2021,Other Goods & Services,SEND AND DISADVANTAGE GROUP,THE ANNA FREUD CENTRE,CORE-PCR-000630,"-50,988.00",Research and Development
Department for Education,Core,31/03/2021,Other Goods & Services,SEND AND DISADVANTAGE GROUP,THE ANNA FREUD CENTRE,CORE-PINV-017812,"170,578.00",Research and Development
Department for Education,Core,31/03/2021,Other Goods & Services,SEND AND DISADVANTAGE GROUP,THE ANNA FREUD CENTRE,CORE-PINV-017813,"50,988.00",Research and Development
Department for Education,Core,11/03/2021,Grants expenditure,Life Skills Division,DEPARTMENT FOR CULTURE MEDIA & SPORT,CORE-MAIN-016085,"92,000.00",Grants paid to other Government Departments
Department for Education,Core,10/03/2021,Grants expenditure,SEND AND DISADVANTAGE GROUP,EDENRED,CORE-PCR-000538,"-50,000,000.00",Grants to educational establishments or not for profit organisations including other businesses
Department for Education,Core,10/03/2021,Grants expenditure,SEND AND DISADVANTAGE GROUP,EDENRED,CORE-PINV-015531,"11,717,800.00",Grants to educational establishments or not for profit organisations including other businesses
Department for Education,Core,10/03/2021,Grants expenditure,SEND AND DISADVANTAGE GROUP,EDENRED,CORE-PINV-015532,"8,981,180.00",Grants to educational establishments or not for profit organisations including other businesses
Department for Education,Core,10/03/2021,Grants expenditure,SEND AND DISADVANTAGE GROUP,EDENRED,CORE-PINV-015891,"3,047,480.00",Grants to educational establishments or not for profit organisations including other businesses
Department for Education,Core,10/03/2021,Grants expenditure,SEND AND DISADVANTAGE GROUP,EDENRED,CORE-PCR-000593,"-1,228,295.00",Grants to educational establishments or not for profit organisations including other businesses
Department for Education,Core,10/03/2021,Grants expenditure,SEND AND DISADVANTAGE GROUP,EDENRED,CORE-PCR-000598,"-741,935.00",Grants to educational establishments or not for profit organisations including other businesses
Department for Education,Core,10/03/2021,Grants expenditure,SEND AND DISADVANTAGE GROUP,EDENRED,CORE-PCR-000576,"-75,325.00",Grants to educational establishments or not for profit organisations including other businesses
Department for Education,Core,11/03/2021,Grants expenditure,SEND AND DISADVANTAGE GROUP,BARKING & DAGENHAM LONDON BOROUGH COUNCIL,CORE-MAIN-016086,"113,290.00",Grants to local authorities
Department for Education,Core,11/03/2021,Grants expenditure,SEND AND DISADVANTAGE GROUP,BARNET LONDON BOROUGH COUNCIL,CORE-MAIN-016087,"117,000.00",Grants to local authorities
Department for Education,Core,11/03/2021,Grants expenditure,SEND AND DISADVANTAGE GROUP,BARNSLEY METROPOLITAN BOROUGH COUNCIL,CORE-MAIN-016088,"108,360.00",Grants to local authorities
Department for Education,Core,11/03/2021,Grants expenditure,SEND AND DISADVANTAGE GROUP,BATH & NORTH EAST SOMERSET COUNCIL,CORE-MAIN-016089,"48,390.00",Grants to local authorities
Department for Education,Core,11/03/2021,Grants expenditure,SEND AND DISADVANTAGE GROUP,BEDFORD BOROUGH COUNCIL,CORE-MAIN-016090,"57,690.00",Grants to local authorities
Department for Education,Core,11/03/2021,Grants expenditure,SEND AND DISADVANTAGE GROUP,BEXLEY LONDON BOROUGH COUNCIL,CORE-MAIN-016091,"80,650.00",Grants to local authorities
Department for Education,Core,11/03/2021,Grants expenditure,SEND AND DISADVANTAGE GROUP,BIRMINGHAM CITY COUNCIL,CORE-MAIN-016092,"823,010.00",Grants to local authorities
Department for Education,Core,11/03/2021,Grants expenditure,SEND AND DISADVANTAGE GROUP,Blackburn with Darwen Borough Council,CORE-MAIN-016093,"73,980.00",Grants to local authorities
Department for Education,Core,11/03/2021,Grants expenditure,SEND AND DISADVANTAGE GROUP,BLACKPOOL BOROUGH COUNCIL,CORE-MAIN-016094,"89,230.00",Grants to local authorities
Department for Education,Core,11/03/2021,Grants expenditure,SEND AND DISADVANTAGE GROUP,BOLTON METRO BOROUGH COUNCIL,CORE-MAIN-016095,"149,620.00",Grants to local authorities
Department for Education,Core,11/03/2021,Grants expenditure,SEND AND DISADVANTAGE GROUP,"Bournemouth, Christchurch and Poole Council",CORE-MAIN-016096,"102,760.00",Grants to local authorities
Department for Education,Core,11/03/2021,Grants expenditure,SEND AND DISADVANTAGE GROUP,BRADFORD CITY COUNCIL,CORE-MAIN-016098,"288,290.00",Grants to local authorities
Department for Education,Core,11/03/2021,Grants expenditure,SEND AND DISADVANTAGE GROUP,BRENT LONDON BOROUGH COUNCIL,CORE-MAIN-016099,"84,960.00",Grants to local authorities
Department for Education,Core,11/03/2021,Grants expenditure,SEND AND DISADVANTAGE GROUP,BRIGHTON & HOVE CITY COUNCIL,CORE-MAIN-016100,"78,560.00",Grants to local authorities
Department for Education,Core,11/03/2021,Grants expenditure,SEND AND DISADVANTAGE GROUP,BRISTOL CITY COUNCIL,CORE-MAIN-016101,"185,930.00",Grants to local authorities
Department for Education,Core,11/03/2021,Grants expenditure,SEND AND DISADVANTAGE GROUP,BROMLEY LONDON BOROUGH COUNCIL,CORE-MAIN-016102,"81,330.00",Grants to local authorities
Department for Education,Core,11/03/2021,Grants expenditure,SEND AND DISADVANTAGE GROUP,Buckinghamshire Council,CORE-MAIN-016103,"109,260.00",Grants to local authorities
Department for Education,Core,11/03/2021,Grants expenditure,SEND AND DISADVANTAGE GROUP,BURY METRO BOROUGH COUNCIL,CORE-MAIN-016104,"73,450.00",Grants to local authorities
Department for Education,Core,11/03/2021,Grants expenditure,SEND AND DISADVANTAGE GROUP,CALDERDALE METRO BOROUGH COUNCIL,CORE-MAIN-016105,"93,130.00",Grants to local authorities
Department for Education,Core,11/03/2021,Grants expenditure,SEND AND DISADVANTAGE GROUP,CAMBRIDGESHIRE COUNTY COUNCIL,CORE-MAIN-016106,"183,930.00",Grants to local authorities
Department for Education,Core,11/03/2021,Grants expenditure,SEND AND DISADVANTAGE GROUP,CAMDEN LONDON BOROUGH COUNCIL,CORE-MAIN-016107,"84,810.00",Grants to local authorities
Department for Education,Core,11/03/2021,Grants expenditure,SEND AND DISADVANTAGE GROUP,CENTRAL BEDFORDSHIRE COUNCIL,CORE-MAIN-016108,"58,490.00",Grants to local authorities
Department for Education,Core,11/03/2021,Grants expenditure,SEND AND DISADVANTAGE GROUP,CHESHIRE EAST BOROUGH COUNCIL,CORE-MAIN-016109,"88,630.00",Grants to local authorities
Department for Education,Core,11/03/2021,Grants expenditure,SEND AND DISADVANTAGE GROUP,CHESHIRE WEST & CHESTER COUNCIL,CORE-MAIN-016110,"105,150.00",Grants to local authorities
Department for Education,Core,11/03/2021,Grants expenditure,SEND AND DISADVANTAGE GROUP,Nottingham City Council,CORE-MAIN-016112,"181,060.00",Grants to local authorities
Department for Education,Core,11/03/2021,Grants expenditure,SEND AND DISADVANTAGE GROUP,CORNWALL COUNCIL,CORE-MAIN-016113,"163,220.00",Grants to local authorities
Department for Education,Core,11/03/2021,Grants expenditure,SEND AND DISADVANTAGE GROUP,COVENTRY CITY COUNCIL,CORE-MAIN-016114,"150,700.00",Grants to local authorities
Department for Education,Core,11/03/2021,Grants expenditure,SEND AND DISADVANTAGE GROUP,CROYDON LONDON BOROUGH COUNCIL,CORE-MAIN-016115,"180,640.00",Grants to local authorities
Department for Education,Core,11/03/2021,Grants expenditure,SEND AND DISADVANTAGE GROUP,CUMBRIA COUNTY COUNCIL,CORE-MAIN-016116,"127,220.00",Grants to local authorities
Department for Education,Core,11/03/2021,Grants expenditure,SEND AND DISADVANTAGE GROUP,DARLINGTON BOROUGH COUNCIL,CORE-MAIN-016117,"49,090.00",Grants to local authorities
Department for Education,Core,11/03/2021,Grants expenditure,SEND AND DISADVANTAGE GROUP,DERBY CITY COUNCIL,CORE-MAIN-016118,"133,640.00",Grants to local authorities
Department for Education,Core,11/03/2021,Grants expenditure,SEND AND DISADVANTAGE GROUP,DERBYSHIRE COUNTY COUNCIL,CORE-MAIN-016119,"281,580.00",Grants to local authorities
Department for Education,Core,11/03/2021,Grants expenditure,SEND AND DISADVANTAGE GROUP,DEVON COUNTY COUNCIL,CORE-MAIN-016120,"180,380.00",Grants to local authorities
Department for Education,Core,11/03/2021,Grants expenditure,SEND AND DISADVANTAGE GROUP,DONCASTER METRO BOROUGH COUNCIL,CORE-MAIN-016121,"138,740.00",Grants to local authorities
Department for Education,Core,11/03/2021,Grants expenditure,SEND AND DISADVANTAGE GROUP,DORSET COUNCIL,CORE-MAIN-016122,"99,480.00",Grants to local authorities
Department for Education,Core,11/03/2021,Grants expenditure,SEND AND DISADVANTAGE GROUP,DUDLEY METRO BOROUGH COUNCIL,CORE-MAIN-016123,"127,800.00",Grants to local authorities
Department for Education,Core,11/03/2021,Grants expenditure,SEND AND DISADVANTAGE GROUP,DURHAM COUNTY COUNCIL,CORE-MAIN-016124,"239,730.00",Grants to local authorities
Department for Education,Core,11/03/2021,Grants expenditure,SEND AND DISADVANTAGE GROUP,EALING LONDON BOROUGH COUNCIL,CORE-MAIN-016125,"128,620.00",Grants to local authorities
Department for Education,Core,11/03/2021,Grants expenditure,SEND AND DISADVANTAGE GROUP,EAST RIDING OF YORKSHIRE COUNCIL,CORE-MAIN-016126,"91,650.00",Grants to local authorities
Department for Education,Core,11/03/2021,Grants expenditure,SEND AND DISADVANTAGE GROUP,EAST SUSSEX COUNTY COUNCIL,CORE-MAIN-016127,"165,790.00",Grants to local authorities
Department for Education,Core,11/03/2021,Grants expenditure,SEND AND DISADVANTAGE GROUP,ENFIELD LONDON BOROUGH COUNCIL,CORE-MAIN-016128,"150,190.00",Grants to local authorities
Department for Education,Core,11/03/2021,Grants expenditure,SEND AND DISADVANTAGE GROUP,ESSEX COUNTY COUNCIL,CORE-MAIN-016129,"404,270.00",Grants to local authorities
Department for Education,Core,11/03/2021,Grants expenditure,SEND AND DISADVANTAGE GROUP,GATESHEAD COUNCIL,CORE-MAIN-016130,"85,440.00",Grants to local authorities
Department for Education,Core,11/03/2021,Grants expenditure,SEND AND DISADVANTAGE GROUP,Gloucestershire County Council,CORE-MAIN-016131,"155,560.00",Grants to local authorities
Department for Education,Core,11/03/2021,Grants expenditure,SEND AND DISADVANTAGE GROUP,GREENWICH LONDON BOROUGH COUNCIL,CORE-MAIN-016132,"115,340.00",Grants to local authorities
Department for Education,Core,11/03/2021,Grants expenditure,SEND AND DISADVANTAGE GROUP,HACKNEY LONDON BOROUGH COUNCIL,CORE-MAIN-016133,"142,640.00",Grants to local authorities
Department for Education,Core,11/03/2021,Grants expenditure,SEND AND DISADVANTAGE GROUP,HALTON BOROUGH COUNCIL,CORE-MAIN-016134,"82,390.00",Grants to local authorities
Department for Education,Core,11/03/2021,Grants expenditure,SEND AND DISADVANTAGE GROUP,HAMMERSMITH & FULHAM LONDON BOROUGH COUNCIL,CORE-MAIN-016135,"57,030.00",Grants to local authorities
Department for Education,Core,11/03/2021,Grants expenditure,SEND AND DISADVANTAGE GROUP,HAMPSHIRE COUNTY COUNCIL,CORE-MAIN-016136,"333,870.00",Grants to local authorities
Department for Education,Core,11/03/2021,Grants expenditure,SEND AND DISADVANTAGE GROUP,HARINGEY LONDON BOROUGH COUNCIL,CORE-MAIN-016137,"97,300.00",Grants to local authorities
Department for Education,Core,11/03/2021,Grants expenditure,SEND AND DISADVANTAGE GROUP,HARROW LONDON BOROUGH COUNCIL,CORE-MAIN-016138,"61,970.00",Grants to local authorities
Department for Education,Core,11/03/2021,Grants expenditure,SEND AND DISADVANTAGE GROUP,HARTLEPOOL BOROUGH COUNCIL,CORE-MAIN-016139,"63,000.00",Grants to local authorities
Department for Education,Core,11/03/2021,Grants expenditure,SEND AND DISADVANTAGE GROUP,HAVERING LONDON BOROUGH COUNCIL,CORE-MAIN-016140,"81,510.00",Grants to local authorities
Department for Education,Core,11/03/2021,Grants expenditure,SEND AND DISADVANTAGE GROUP,HEREFORDSHIRE COUNCIL,CORE-MAIN-016141,"40,680.00",Grants to local authorities
Department for Education,Core,11/03/2021,Grants expenditure,SEND AND DISADVANTAGE GROUP,HERTFORDSHIRE COUNTY COUNCIL,CORE-MAIN-016142,"280,230.00",Grants to local authorities
Department for Education,Core,11/03/2021,Grants expenditure,SEND AND DISADVANTAGE GROUP,HILLINGDON LONDON BOROUGH COUNCIL,CORE-MAIN-016143,"104,060.00",Grants to local authorities
Department for Education,Core,11/03/2021,Grants expenditure,SEND AND DISADVANTAGE GROUP,HOUNSLOW LONDON BOROUGH COUNCIL,CORE-MAIN-016144,"100,860.00",Grants to local authorities
Department for Education,Core,11/03/2021,Grants expenditure,SEND AND DISADVANTAGE GROUP,ISLE OF WIGHT COUNCIL,CORE-MAIN-016145,"41,000.00",Grants to local authorities
Department for Education,Core,11/03/2021,Grants expenditure,SEND AND DISADVANTAGE GROUP,ISLINGTON LONDON BOROUGH COUNCIL,CORE-MAIN-016147,"101,960.00",Grants to local authorities
Department for Education,Core,11/03/2021,Grants expenditure,SEND AND DISADVANTAGE GROUP,ROYAL BOROUGH OF KENSINGTON & CHELSEA COUNCIL,CORE-MAIN-016148,"42,280.00",Grants to local authorities
Department for Education,Core,11/03/2021,Grants expenditure,SEND AND DISADVANTAGE GROUP,KENT COUNTY COUNCIL,CORE-MAIN-016149,"530,560.00",Grants to local authorities
Department for Education,Core,11/03/2021,Grants expenditure,SEND AND DISADVANTAGE GROUP,KINGSTON UPON HULL CITY COUNCIL,CORE-MAIN-016150,"147,730.00",Grants to local authorities
Department for Education,Core,11/03/2021,Grants expenditure,SEND AND DISADVANTAGE GROUP,ROYAL BOROUGH OF KINGSTON UPON THAMES COUNCIL,CORE-MAIN-016151,"35,200.00",Grants to local authorities
Department for Education,Core,11/03/2021,Grants expenditure,SEND AND DISADVANTAGE GROUP,KIRKLEES METRO COUNCIL,CORE-MAIN-016152,"191,840.00",Grants to local authorities
Department for Education,Core,11/03/2021,Grants expenditure,SEND AND DISADVANTAGE GROUP,KNOWSLEY METRO BOROUGH COUNCIL,CORE-MAIN-016153,"96,370.00",Grants to local authorities
Department for Education,Core,11/03/2021,Grants expenditure,SEND AND DISADVANTAGE GROUP,LAMBETH LONDON BOROUGH COUNCIL,CORE-MAIN-016154,"134,430.00",Grants to local authorities
Department for Education,Core,11/03/2021,Grants expenditure,SEND AND DISADVANTAGE GROUP,LANCASHIRE COUNTY COUNCIL,CORE-MAIN-016155,"423,670.00",Grants to local authorities
Department for Education,Core,11/03/2021,Grants expenditure,SEND AND DISADVANTAGE GROUP,LEEDS CITY COUNCIL,CORE-MAIN-016156,"355,240.00",Grants to local authorities
Department for Education,Core,11/03/2021,Grants expenditure,SEND AND DISADVANTAGE GROUP,LEICESTER CITY COUNCIL,CORE-MAIN-016157,"159,920.00",Grants to local authorities
Department for Education,Core,11/03/2021,Grants expenditure,SEND AND DISADVANTAGE GROUP,LEICESTERSHIRE COUNTY COUNCIL,CORE-MAIN-016158,"147,940.00",Grants to local authorities
Department for Education,Core,11/03/2021,Grants expenditure,SEND AND DISADVANTAGE GROUP,LEWISHAM LONDON BOROUGH COUNCIL,CORE-MAIN-016159,"104,040.00",Grants to local authorities
Department for Education,Core,11/03/2021,Grants expenditure,SEND AND DISADVANTAGE GROUP,LINCOLNSHIRE COUNTY COUNCIL,CORE-MAIN-016160,"253,930.00",Grants to local authorities
Department for Education,Core,11/03/2021,Grants expenditure,SEND AND DISADVANTAGE GROUP,LIVERPOOL CITY COUNCIL,CORE-MAIN-016161,"263,230.00",Grants to local authorities
Department for Education,Core,11/03/2021,Grants expenditure,SEND AND DISADVANTAGE GROUP,LUTON BOROUGH COUNCIL,CORE-MAIN-016162,"106,660.00",Grants to local authorities
Department for Education,Core,11/03/2021,Grants expenditure,SEND AND DISADVANTAGE GROUP,MANCHESTER CITY COUNCIL,CORE-MAIN-016163,"384,880.00",Grants to local authorities
Department for Education,Core,11/03/2021,Grants expenditure,SEND AND DISADVANTAGE GROUP,MEDWAY COUNCIL,CORE-MAIN-016164,"112,140.00",Grants to local authorities
Department for Education,Core,11/03/2021,Grants expenditure,SEND AND DISADVANTAGE GROUP,MERTON BOROUGH COUNCIL,CORE-MAIN-016165,"68,650.00",Grants to local authorities
Department for Education,Core,11/03/2021,Grants expenditure,SEND AND DISADVANTAGE GROUP,Middlesbrough Council,CORE-MAIN-016166,"105,340.00",Grants to local authorities
Department for Education,Core,11/03/2021,Grants expenditure,SEND AND DISADVANTAGE GROUP,MILTON KEYNES COUNCIL,CORE-MAIN-016167,"100,600.00",Grants to local authorities
Department for Education,Core,11/03/2021,Grants expenditure,SEND AND DISADVANTAGE GROUP,NEWCASTLE CITY COUNCIL,CORE-MAIN-016168,"171,030.00",Grants to local authorities
Department for Education,Core,11/03/2021,Grants expenditure,SEND AND DISADVANTAGE GROUP,NEWHAM LONDON BOROUGH COUNCIL,CORE-MAIN-016169,"192,920.00",Grants to local authorities
Department for Education,Core,11/03/2021,Grants expenditure,SEND AND DISADVANTAGE GROUP,NORFOLK COUNTY COUNCIL,CORE-MAIN-016170,"267,080.00",Grants to local authorities
Department for Education,Core,11/03/2021,Grants expenditure,SEND AND DISADVANTAGE GROUP,North East Lincolnshire Council,CORE-MAIN-016171,"77,810.00",Grants to local authorities
Department for Education,Core,11/03/2021,Grants expenditure,SEND AND DISADVANTAGE GROUP,NORTH LINCOLNSHIRE COUNCIL,CORE-MAIN-016172,"69,890.00",Grants to local authorities
Department for Education,Core,11/03/2021,Grants expenditure,SEND AND DISADVANTAGE GROUP,NORTH SOMERSET COUNCIL,CORE-MAIN-016173,"50,800.00",Grants to local authorities
Department for Education,Core,11/03/2021,Grants expenditure,SEND AND DISADVANTAGE GROUP,NORTH TYNESIDE METRO BOROUGH COUNCIL,CORE-MAIN-016174,"79,300.00",Grants to local authorities
Department for Education,Core,11/03/2021,Grants expenditure,SEND AND DISADVANTAGE GROUP,NORTH YORKSHIRE COUNTY COUNCIL,CORE-MAIN-016175,"132,680.00",Grants to local authorities
Department for Education,Core,11/03/2021,Grants expenditure,SEND AND DISADVANTAGE GROUP,NORTHAMPTONSHIRE COUNTY COUNCIL,CORE-MAIN-016176,"205,930.00",Grants to local authorities
Department for Education,Core,11/03/2021,Grants expenditure,SEND AND DISADVANTAGE GROUP,NORTHUMBERLAND COUNTY COUNCIL,CORE-MAIN-016177,"103,580.00",Grants to local authorities
Department for Education,Core,11/03/2021,Grants expenditure,SEND AND DISADVANTAGE GROUP,NOTTINGHAMSHIRE COUNTY COUNCIL,CORE-MAIN-016178,"259,860.00",Grants to local authorities
Department for Education,Core,11/03/2021,Grants expenditure,SEND AND DISADVANTAGE GROUP,OLDHAM METRO BOROUGH COUNCIL,CORE-MAIN-016179,"136,290.00",Grants to local authorities
Department for Education,Core,11/03/2021,Grants expenditure,SEND AND DISADVANTAGE GROUP,Oxfordshire County Council,CORE-MAIN-016180,"142,260.00",Grants to local authorities
Department for Education,Core,11/03/2021,Grants expenditure,SEND AND DISADVANTAGE GROUP,PETERBOROUGH CITY COUNCIL,CORE-MAIN-016181,"107,360.00",Grants to local authorities
Department for Education,Core,11/03/2021,Grants expenditure,SEND AND DISADVANTAGE GROUP,PLYMOUTH CITY COUNCIL,CORE-MAIN-016182,"104,880.00",Grants to local authorities
Department for Education,Core,11/03/2021,Grants expenditure,SEND AND DISADVANTAGE GROUP,PORTSMOUTH CITY COUNCIL,CORE-MAIN-016183,"95,840.00",Grants to local authorities
Department for Education,Core,11/03/2021,Grants expenditure,SEND AND DISADVANTAGE GROUP,Reading Borough Council,CORE-MAIN-016184,"50,390.00",Grants to local authorities
Department for Education,Core,11/03/2021,Grants expenditure,SEND AND DISADVANTAGE GROUP,REDBRIDGE LONDON BOROUGH COUNCIL,CORE-MAIN-016185,"89,990.00",Grants to local authorities
Department for Education,Core,11/03/2021,Grants expenditure,SEND AND DISADVANTAGE GROUP,REDCAR & CLEVELAND BOROUGH COUNCIL,CORE-MAIN-016186,"69,990.00",Grants to local authorities
Department for Education,Core,11/03/2021,Grants expenditure,SEND AND DISADVANTAGE GROUP,London Borough of Richmond upon Thames,CORE-MAIN-016187,"36,990.00",Grants to local authorities
Department for Education,Core,11/03/2021,Grants expenditure,SEND AND DISADVANTAGE GROUP,ROCHDALE BOROUGH COUNCIL,CORE-MAIN-016188,"117,160.00",Grants to local authorities
Department for Education,Core,11/03/2021,Grants expenditure,SEND AND DISADVANTAGE GROUP,ROTHERHAM BOROUGH COUNCIL,CORE-MAIN-016189,"120,740.00",Grants to local authorities
Department for Education,Core,11/03/2021,Grants expenditure,SEND AND DISADVANTAGE GROUP,Salford City Council,CORE-MAIN-016191,"132,240.00",Grants to local authorities
Department for Education,Core,11/03/2021,Grants expenditure,SEND AND DISADVANTAGE GROUP,Sandwell Metro Borough Council,CORE-MAIN-016192,"194,340.00",Grants to local authorities
Department for Education,Core,11/03/2021,Grants expenditure,SEND AND DISADVANTAGE GROUP,SEFTON COUNCIL,CORE-MAIN-016193,"99,790.00",Grants to local authorities
Department for Education,Core,11/03/2021,Grants expenditure,SEND AND DISADVANTAGE GROUP,SHEFFIELD CITY COUNCIL,CORE-MAIN-016194,"267,960.00",Grants to local authorities
Department for Education,Core,11/03/2021,Grants expenditure,SEND AND DISADVANTAGE GROUP,SHROPSHIRE COUNCIL,CORE-MAIN-016195,"68,660.00",Grants to local authorities
Department for Education,Core,11/03/2021,Grants expenditure,SEND AND DISADVANTAGE GROUP,SLOUGH BOROUGH COUNCIL,CORE-MAIN-016196,"59,100.00",Grants to local authorities
Department for Education,Core,11/03/2021,Grants expenditure,SEND AND DISADVANTAGE GROUP,SOMERSET COUNTY COUNCIL,CORE-MAIN-016197,"151,230.00",Grants to local authorities
Department for Education,Core,11/03/2021,Grants expenditure,SEND AND DISADVANTAGE GROUP,SOUTH GLOUCESTERSHIRE COUNCIL,CORE-MAIN-016198,"58,330.00",Grants to local authorities
Department for Education,Core,11/03/2021,Grants expenditure,SEND AND DISADVANTAGE GROUP,SOUTH TYNESIDE COUNCIL,CORE-MAIN-016199,"75,860.00",Grants to local authorities
Department for Education,Core,11/03/2021,Grants expenditure,SEND AND DISADVANTAGE GROUP,SOUTHAMPTON CITY COUNCIL,CORE-MAIN-016200,"120,630.00",Grants to local authorities
Department for Education,Core,11/03/2021,Grants expenditure,SEND AND DISADVANTAGE GROUP,SOUTHEND ON SEA BOROUGH COUNCIL,CORE-MAIN-016201,"68,900.00",Grants to local authorities
Department for Education,Core,11/03/2021,Grants expenditure,SEND AND DISADVANTAGE GROUP,SOUTHWARK LONDON BOROUGH COUNCIL,CORE-MAIN-016202,"154,870.00",Grants to local authorities
Department for Education,Core,11/03/2021,Grants expenditure,SEND AND DISADVANTAGE GROUP,ST HELENS METRO BOROUGH COUNCIL,CORE-MAIN-016203,"73,500.00",Grants to local authorities
Department for Education,Core,11/03/2021,Grants expenditure,SEND AND DISADVANTAGE GROUP,Staffordshire County Council,CORE-MAIN-016204,"224,390.00",Grants to local authorities
Department for Education,Core,11/03/2021,Grants expenditure,SEND AND DISADVANTAGE GROUP,STOCKPORT METRO BOROUGH COUNCIL,CORE-MAIN-016205,"87,370.00",Grants to local authorities
Department for Education,Core,11/03/2021,Grants expenditure,SEND AND DISADVANTAGE GROUP,STOCKTON ON TEES BOROUGH COUNCIL,CORE-MAIN-016206,"91,500.00",Grants to local authorities
Department for Education,Core,11/03/2021,Grants expenditure,SEND AND DISADVANTAGE GROUP,STOKE ON TRENT CITY COUNCIL,CORE-MAIN-016207,"148,700.00",Grants to local authorities
Department for Education,Core,11/03/2021,Grants expenditure,SEND AND DISADVANTAGE GROUP,SUFFOLK COUNTY COUNCIL,CORE-MAIN-016208,"221,030.00",Grants to local authorities
Department for Education,Core,11/03/2021,Grants expenditure,SEND AND DISADVANTAGE GROUP,SUNDERLAND CITY METRO BOROUGH COUNCIL,CORE-MAIN-016209,"137,290.00",Grants to local authorities
Department for Education,Core,11/03/2021,Grants expenditure,SEND AND DISADVANTAGE GROUP,SURREY COUNTY COUNCIL,CORE-MAIN-016210,"213,400.00",Grants to local authorities
Department for Education,Core,11/03/2021,Grants expenditure,SEND AND DISADVANTAGE GROUP,SWINDON BOROUGH COUNCIL,CORE-MAIN-016211,"77,030.00",Grants to local authorities
Department for Education,Core,11/03/2021,Grants expenditure,SEND AND DISADVANTAGE GROUP,TAMESIDE METRO BOROUGH COUNCIL,CORE-MAIN-016212,"116,860.00",Grants to local authorities
Department for Education,Core,11/03/2021,Grants expenditure,SEND AND DISADVANTAGE GROUP,Telford and Wrekin Council,CORE-MAIN-016213,"84,630.00",Grants to local authorities
Department for Education,Core,11/03/2021,Grants expenditure,SEND AND DISADVANTAGE GROUP,THURROCK BOROUGH COUNCIL,CORE-MAIN-016214,"66,980.00",Grants to local authorities
Department for Education,Core,11/03/2021,Grants expenditure,SEND AND DISADVANTAGE GROUP,TORBAY COUNCIL,CORE-MAIN-016215,"56,330.00",Grants to local authorities
Department for Education,Core,11/03/2021,Grants expenditure,SEND AND DISADVANTAGE GROUP,London Borough of Tower Hamlets,CORE-MAIN-016216,"181,530.00",Grants to local authorities
Department for Education,Core,11/03/2021,Grants expenditure,SEND AND DISADVANTAGE GROUP,Trafford Borough Council,CORE-MAIN-016217,"66,370.00",Grants to local authorities
Department for Education,Core,11/03/2021,Grants expenditure,SEND AND DISADVANTAGE GROUP,Wakefield City Council,CORE-MAIN-016218,"128,280.00",Grants to local authorities
Department for Education,Core,11/03/2021,Grants expenditure,SEND AND DISADVANTAGE GROUP,WALSALL METRO BOROUGH COUNCIL,CORE-MAIN-016219,"180,940.00",Grants to local authorities
Department for Education,Core,11/03/2021,Grants expenditure,SEND AND DISADVANTAGE GROUP,WALTHAM FOREST LONDON BOROUGH COUNCIL,CORE-MAIN-016220,"104,660.00",Grants to local authorities
Department for Education,Core,11/03/2021,Grants expenditure,SEND AND DISADVANTAGE GROUP,Wandsworth Borough Council,CORE-MAIN-016221,"84,320.00",Grants to local authorities
Department for Education,Core,11/03/2021,Grants expenditure,SEND AND DISADVANTAGE GROUP,WARRINGTON BOROUGH COUNCIL,CORE-MAIN-016222,"72,570.00",Grants to local authorities
Department for Education,Core,11/03/2021,Grants expenditure,SEND AND DISADVANTAGE GROUP,WARWICKSHIRE COUNTY COUNCIL,CORE-MAIN-016223,"167,090.00",Grants to local authorities
Department for Education,Core,11/03/2021,Grants expenditure,SEND AND DISADVANTAGE GROUP,WEST BERKSHIRE COUNCIL,CORE-MAIN-016224,"34,550.00",Grants to local authorities
Department for Education,Core,11/03/2021,Grants expenditure,SEND AND DISADVANTAGE GROUP,West Sussex County Council,CORE-MAIN-016225,"166,190.00",Grants to local authorities
Department for Education,Core,11/03/2021,Grants expenditure,SEND AND DISADVANTAGE GROUP,WESTMINSTER CITY COUNCIL,CORE-MAIN-016226,"71,310.00",Grants to local authorities
Department for Education,Core,11/03/2021,Grants expenditure,SEND AND DISADVANTAGE GROUP,WIGAN METRO BOROUGH COUNCIL,CORE-MAIN-016227,"132,290.00",Grants to local authorities
Department for Education,Core,11/03/2021,Grants expenditure,SEND AND DISADVANTAGE GROUP,WILTSHIRE COUNTY COUNCIL,CORE-MAIN-016228,"106,890.00",Grants to local authorities
Department for Education,Core,11/03/2021,Grants expenditure,SEND AND DISADVANTAGE GROUP,ROYAL BOROUGH OF WINDSOR & MAIDENHEAD,CORE-MAIN-016229,"26,790.00",Grants to local authorities
Department for Education,Core,11/03/2021,Grants expenditure,SEND AND DISADVANTAGE GROUP,WIRRAL METRO BOROUGH COUNCIL,CORE-MAIN-016230,"148,270.00",Grants to local authorities
Department for Education,Core,11/03/2021,Grants expenditure,SEND AND DISADVANTAGE GROUP,WOKINGHAM COUNCIL,CORE-MAIN-016231,"26,750.00",Grants to local authorities
Department for Education,Core,11/03/2021,Grants expenditure,SEND AND DISADVANTAGE GROUP,WOLVERHAMPTON CITY COUNCIL,CORE-MAIN-016232,"188,140.00",Grants to local authorities
Department for Education,Core,11/03/2021,Grants expenditure,SEND AND DISADVANTAGE GROUP,WORCESTERSHIRE COUNTY COUNCIL,CORE-MAIN-016233,"161,770.00",Grants to local authorities
Department for Education,Core,11/03/2021,Grants expenditure,SEND AND DISADVANTAGE GROUP,CITY OF YORK COUNCIL,CORE-MAIN-016234,"38,550.00",Grants to local authorities
Department for Education,Core,10/03/2021,Grants expenditure,SEND AND DISADVANTAGE GROUP,EDENRED,CORE-PINV-016795,"30,074,825.00",Grants to educational establishments or not for profit organisations including other businesses
Department for Education,Core,17/03/2021,Grants expenditure,SEND AND DISADVANTAGE GROUP,EDENRED,CORE-PINV-017389,"2,266,800.00",Grants to educational establishments or not for profit organisations including other businesses
Department for Education,Core,31/03/2021,Grants expenditure,SEND AND DISADVANTAGE GROUP,SOLIHULL METRO BOROUGH COUNCIL,CORE-MAIN-017174,"99,760.00",Grants to local authorities
Department for Education,Core,30/03/2021,Other Goods & Services,SEND AND DISADVANTAGE GROUP,FAMILY ACTION,CORE-PINV-018572,"416,747.90",Other Professional Services
Department for Education,Core,30/03/2021,Learning & Development,School Safeguarding and Pastoral Care ,NASEN,CORE-PINV-018438,"22,265.00",Training & Development costs
Department for Education,Core,12/03/2021,Other Goods & Services,EY AND SCHOOLS STRATEGY TOTAL,NATIONAL CENTRE FOR SOCIAL RESEARCH,CORE-PINV-017295,"35,000.00",Research and Development
Department for Education,Core,26/03/2021,Other Goods & Services,EY AND SCHOOLS STRATEGY TOTAL,Renaissance Learning UK Ltd,CORE-PINV-018359,"21,034.35",Research and Development
Department for Education,Core,11/03/2021,Grants expenditure,ASSESSMENT AND CURRICULUM AND GENERAL QUALIFICATIONS,CHOIR SCHOOLS ASSOCIATION BURSARY TRUST LTD,CORE-MAIN-016237,"377,000.00",Grants to educational establishments or not for profit organisations including other businesses
Department for Education,Core,11/03/2021,Grants expenditure,ASSESSMENT AND CURRICULUM AND GENERAL QUALIFICATIONS,UCL INSTITUTE OF EDUCATION,CORE-MAIN-016238,"104,415.82",Grants to educational establishments or not for profit organisations including other businesses
Department for Education,Core,31/03/2021,Contractors,ASSESSMENT AND CURRICULUM AND GENERAL QUALIFICATIONS,UNIVERSITY COLLEGE LONDON,CORE-PINV-018691,"29,853.69",Funding to deliver policies (excluding consultancy) paid to third parties via a service delivery contract
Department for Education,Core,29/03/2021,Other Goods & Services,TEACHERS AND TEACHING,NFER TRADING LIMITED INV T,CORE-PINV-016486,"71,067.25",Research and Development
Department for Education,Core,03/03/2021,Other Goods & Services,TEACHERS AND TEACHING,GOVERNMENT ACTUARYS DEPT,CORE-PINV-016483,"48,902.42",Other Professional Services
Department for Education,Core,03/03/2021,Other Goods & Services,TEACHERS AND TEACHING,Capita Employee Benefits Ltd,CORE-PINV-016567,"100,028.44",Other Professional Services
Department for Education,Core,03/03/2021,Other Goods & Services,TEACHERS AND TEACHING,Capita Employee Benefits Ltd,CORE-PINV-016568,"1,028,041.60",Other Professional Services
Department for Education,Core,03/03/2021,Other Goods & Services,TEACHERS AND TEACHING,Capita Employee Benefits Ltd,CORE-PINV-016569,"48,750.00",Other Professional Services
Department for Education,Core,03/03/2021,Other Goods & Services,TEACHERS AND TEACHING,Capita Employee Benefits Ltd,CORE-PINV-016573,"150,860.76",Other Professional Services
Department for Education,Core,03/03/2021,Other Goods & Services,TEACHERS AND TEACHING,Capita Employee Benefits Ltd,CORE-PINV-016574,"23,695.33",Other Professional Services
Department for Education,Core,12/03/2021,Other Goods & Services,TEACHERS AND TEACHING,Capita Employee Benefits Ltd,CORE-PINV-017380,"1,028,041.60",Other Professional Services
Department for Education,Core,12/03/2021,Other Goods & Services,TEACHERS AND TEACHING,Capita Employee Benefits Ltd,CORE-PINV-017385,"24,563.92",Other Professional Services
Department for Education,Core,12/03/2021,Other Goods & Services,TEACHERS AND TEACHING,Capita Employee Benefits Ltd,CORE-PINV-017387,"28,372.04",Other Professional Services
Department for Education,Core,19/03/2021,Other Goods & Services,TEACHERS AND TEACHING,Capita Employee Benefits Ltd,CORE-PINV-017856,"100,028.44",Other Professional Services
Department for Education,Core,02/03/2021,Other Goods & Services,EY AND SCHOOLS STRATEGY TOTAL,Hempsall Consultancies Ltd.,CORE-PINV-016415,"50,100.00",Other Professional Services
Department for Education,Core,10/03/2021,Other Goods & Services,EY AND SCHOOLS STRATEGY TOTAL,HMCTS HM COURTS & TRIBUNALS SERVICE,CORE-PINV-017166,"27,454.00",Other Professional Services
Department for Education,Core,23/03/2021,"Marketing, Media and Comms",EY AND SCHOOLS STRATEGY TOTAL,OMD GROUP TA MANNING GOTTLIEB OMD LTD,CORE-PINV-017831,24.67,"Publicity, advertising, media advertising campaigns (excluding recruitment adverts)"
Department for Education,Core,23/03/2021,"Marketing, Media and Comms",EY AND SCHOOLS STRATEGY TOTAL,OMD GROUP TA MANNING GOTTLIEB OMD LTD,CORE-PINV-017831,"24,916.69","Publicity, advertising, media advertising campaigns (excluding recruitment adverts)"
Department for Education,Core,03/03/2021,Grants expenditure,EY AND SCHOOLS STRATEGY TOTAL,UNIVERSITY OF ST MARK & ST JOHN,CUPS0021044,"25,090.00",Grants to educational establishments or not for profit organisations including other businesses
Department for Education,Core,03/03/2021,Grants expenditure,EY AND SCHOOLS STRATEGY TOTAL,Kingston University Higher Education Corporation,CUPS0021045,"28,676.67",Grants to educational establishments or not for profit organisations including other businesses
Department for Education,Core,03/03/2021,Grants expenditure,EY AND SCHOOLS STRATEGY TOTAL,SHEFFIELD HALLAM UNIVERSITY,CUPS0021047,"52,780.00",Grants to educational establishments or not for profit organisations including other businesses
Department for Education,Core,03/03/2021,Grants expenditure,EY AND SCHOOLS STRATEGY TOTAL,UNIVERSITY COLLEGE NORTHAMPTON,CUPS0021049,"25,480.00",Grants to educational establishments or not for profit organisations including other businesses
Department for Education,Core,03/03/2021,Grants expenditure,EY AND SCHOOLS STRATEGY TOTAL,UNIVERSITY OF GREENWICH,CUPS0021051,"45,326.66",Grants to educational establishments or not for profit organisations including other businesses
Department for Education,Core,03/03/2021,Grants expenditure,EY AND SCHOOLS STRATEGY TOTAL,UNIVERSITY OF HUDDERSFIELD,CUPS0021052,"32,760.00",Grants to educational establishments or not for profit organisations including other businesses
Department for Education,Core,03/03/2021,Grants expenditure,EY AND SCHOOLS STRATEGY TOTAL,University of Reading,CUPS0021054,"29,250.00",Grants to educational establishments or not for profit organisations including other businesses
Department for Education,Core,03/03/2021,Grants expenditure,EY AND SCHOOLS STRATEGY TOTAL,UNIVERSITY OF SUSSEX,CUPS0021055,"38,178.34",Grants to educational establishments or not for profit organisations including other businesses
Department for Education,Core,03/03/2021,Grants expenditure,EY AND SCHOOLS STRATEGY TOTAL,MIDDLESEX UNIVERSITY,CUPS0021058,"40,040.00",Grants to educational establishments or not for profit organisations including other businesses
Department for Education,Core,03/03/2021,Grants expenditure,EY AND SCHOOLS STRATEGY TOTAL,University of Bedfordshire,CUPS0021059,"43,630.00",Grants to educational establishments or not for profit organisations including other businesses
Department for Education,Core,03/03/2021,Grants expenditure,EY AND SCHOOLS STRATEGY TOTAL,ESSEX PRY SCHOOLS TRAINING GROUP,CUPS0021061,"74,243.33",Grants to educational establishments or not for profit organisations including other businesses
Department for Education,Core,03/03/2021,Grants expenditure,EY AND SCHOOLS STRATEGY TOTAL,E-QUALITAS PROFESSIONAL SERVICES LIMITED,CUPS0021062,"160,658.35",Grants to educational establishments or not for profit organisations including other businesses
Department for Education,Core,03/03/2021,Grants expenditure,EY AND SCHOOLS STRATEGY TOTAL,THE GREATER MANCHESTER BRIGHT FUTURES TRUST,CUPS0021063,"27,300.00",Grants to educational establishments or not for profit organisations including other businesses
Department for Education,Core,03/03/2021,Grants expenditure,EY AND SCHOOLS STRATEGY TOTAL,ASHTON-ON-MERSEY SCHOOL,CUPS0021136,"84,100.00",Grants to educational establishments or not for profit organisations including other businesses
Department for Education,Core,02/03/2021,Professional Services Consultancy and Contingent Labour,EY AND SCHOOLS STRATEGY TOTAL,ANDIGITAL LIMITED,CORE-PINV-016401,"353,730.00",Costs related to temporary workers
Department for Education,Core,03/03/2021,Learning & Development,EY AND SCHOOLS STRATEGY TOTAL,EDUCATION DEVELOPMENT TRUST,CORE-PINV-016559,"96,341.00",Training & Development costs
Department for Education,Core,12/03/2021,Professional Services Consultancy and Contingent Labour,EY AND SCHOOLS STRATEGY TOTAL,ANDIGITAL LIMITED,CORE-PINV-017197,"66,120.00",Costs related to temporary workers
Department for Education,Core,31/03/2021,Grants expenditure,EY AND SCHOOLS STRATEGY TOTAL,DERBYSHIRE COUNTY COUNCIL,CORE-MAIN-017217,"39,530.00",Grants to local authorities
Department for Education,Core,31/03/2021,Grants expenditure,EY AND SCHOOLS STRATEGY TOTAL,HERTFORDSHIRE COUNTY COUNCIL,CORE-MAIN-017224,"38,030.00",Grants to local authorities
Department for Education,Core,31/03/2021,Grants expenditure,EY AND SCHOOLS STRATEGY TOTAL,LANCASHIRE COUNTY COUNCIL,CORE-MAIN-017227,"35,030.00",Grants to local authorities
Department for Education,Core,31/03/2021,Grants expenditure,EY AND SCHOOLS STRATEGY TOTAL,LEEDS CITY COUNCIL,CORE-MAIN-017228,"32,405.00",Grants to local authorities
Department for Education,Core,31/03/2021,Grants expenditure,EY AND SCHOOLS STRATEGY TOTAL,WIRRAL METRO BOROUGH COUNCIL,CORE-MAIN-017255,"27,960.00",Grants to local authorities
Department for Education,Core,31/03/2021,Grants expenditure,EY AND SCHOOLS STRATEGY TOTAL,PEN GREEN TEACHING SCHOOL ALLIANCE,CORE-MAIN-017258,"96,000.00",Capital grants paid to local authorities and other educational establishments
Department for Education,Core,31/03/2021,Grants expenditure,EY AND SCHOOLS STRATEGY TOTAL,THE EDUCATION ENDOWMENT FOUNDATION,CORE-MAIN-017259,"232,495.60",Grants to educational establishments or not for profit organisations including other businesses
Department for Education,Core,26/03/2021,Professional Services Consultancy and Contingent Labour,EY AND SCHOOLS STRATEGY TOTAL,ANDIGITAL LIMITED,CORE-PINV-018378,"192,450.00",Costs related to temporary workers
Department for Education,Core,04/03/2021,Other Goods & Services,TEACHING WORKFORCE TOTAL,TELEPERFORMANCE LTD,CORE-PINV-016712,"67,444.55",Other Professional Services
Department for Education,Core,04/03/2021,Other Goods & Services,TEACHING WORKFORCE TOTAL,TELEPERFORMANCE LTD,CORE-PINV-016714,"488,188.23",Other Professional Services
Department for Education,Core,08/03/2021,"Marketing, Media and Comms",TEACHING WORKFORCE TOTAL,DODS PARLIAMENTARY COMMUNICATIONS LTD,CORE-PINV-016815,"192,816.00","Publicity, advertising, media advertising campaigns (excluding recruitment adverts)"
Department for Education,Core,08/03/2021,"Marketing, Media and Comms",TEACHING WORKFORCE TOTAL,DODS PARLIAMENTARY COMMUNICATIONS LTD,CORE-PINV-016816,"34,000.00","Publicity, advertising, media advertising campaigns (excluding recruitment adverts)"
Department for Education,Core,08/03/2021,"Marketing, Media and Comms",TEACHING WORKFORCE TOTAL,DODS GROUP PLC,CORE-PINV-016823,"42,290.68","Publicity, advertising, media advertising campaigns (excluding recruitment adverts)"
Department for Education,Core,01/03/2021,"Marketing, Media and Comms",TEACHING WORKFORCE TOTAL,OMD GROUP TA MANNING GOTTLIEB OMD LTD,CORE-PINV-014172,61.35,"Publicity, advertising, media advertising campaigns (excluding recruitment adverts)"
Department for Education,Core,01/03/2021,"Marketing, Media and Comms",TEACHING WORKFORCE TOTAL,OMD GROUP TA MANNING GOTTLIEB OMD LTD,CORE-PINV-014172,"61,961.25","Publicity, advertising, media advertising campaigns (excluding recruitment adverts)"
Department for Education,Core,01/03/2021,"Marketing, Media and Comms",TEACHING WORKFORCE TOTAL,OMD GROUP TA MANNING GOTTLIEB OMD LTD,CORE-PINV-014182,91.66,"Publicity, advertising, media advertising campaigns (excluding recruitment adverts)"
Department for Education,Core,01/03/2021,"Marketing, Media and Comms",TEACHING WORKFORCE TOTAL,OMD GROUP TA MANNING GOTTLIEB OMD LTD,CORE-PINV-014182,"92,581.05","Publicity, advertising, media advertising campaigns (excluding recruitment adverts)"
Department for Education,Core,02/03/2021,"Marketing, Media and Comms",TEACHING WORKFORCE TOTAL,OMD GROUP TA MANNING GOTTLIEB OMD LTD,CORE-PINV-015957,64.7,"Publicity, advertising, media advertising campaigns (excluding recruitment adverts)"
Department for Education,Core,02/03/2021,"Marketing, Media and Comms",TEACHING WORKFORCE TOTAL,OMD GROUP TA MANNING GOTTLIEB OMD LTD,CORE-PINV-015957,"65,529.43","Publicity, advertising, media advertising campaigns (excluding recruitment adverts)"
Department for Education,Core,02/03/2021,"Marketing, Media and Comms",TEACHING WORKFORCE TOTAL,OMD GROUP TA MANNING GOTTLIEB OMD LTD,CORE-PINV-016200,40.46,"Publicity, advertising, media advertising campaigns (excluding recruitment adverts)"
Department for Education,Core,02/03/2021,"Marketing, Media and Comms",TEACHING WORKFORCE TOTAL,OMD GROUP TA MANNING GOTTLIEB OMD LTD,CORE-PINV-016200,"40,928.70","Publicity, advertising, media advertising campaigns (excluding recruitment adverts)"
Department for Education,Core,02/03/2021,"Marketing, Media and Comms",TEACHING WORKFORCE TOTAL,HAVAS WORLDWIDE LONDON LTD,CORE-PINV-016265,"94,982.12","Publicity, advertising, media advertising campaigns (excluding recruitment adverts)"
Department for Education,Core,02/03/2021,"Marketing, Media and Comms",TEACHING WORKFORCE TOTAL,OMD GROUP TA MANNING GOTTLIEB OMD LTD,CORE-PINV-014173,121,"Publicity, advertising, media advertising campaigns (excluding recruitment adverts)"
Department for Education,Core,02/03/2021,"Marketing, Media and Comms",TEACHING WORKFORCE TOTAL,OMD GROUP TA MANNING GOTTLIEB OMD LTD,CORE-PINV-014173,"122,207.93","Publicity, advertising, media advertising campaigns (excluding recruitment adverts)"
Department for Education,Core,02/03/2021,"Marketing, Media and Comms",TEACHING WORKFORCE TOTAL,OMD GROUP TA MANNING GOTTLIEB OMD LTD,CORE-PINV-014184,418.39,"Publicity, advertising, media advertising campaigns (excluding recruitment adverts)"
Department for Education,Core,02/03/2021,"Marketing, Media and Comms",TEACHING WORKFORCE TOTAL,OMD GROUP TA MANNING GOTTLIEB OMD LTD,CORE-PINV-014184,"422,579.11","Publicity, advertising, media advertising campaigns (excluding recruitment adverts)"
Department for Education,Core,04/03/2021,"Marketing, Media and Comms",TEACHING WORKFORCE TOTAL,HAVAS WORLDWIDE LONDON LTD,CORE-PINV-016084,"52,270.71","Publicity, advertising, media advertising campaigns (excluding recruitment adverts)"
Department for Education,Core,09/03/2021,"Marketing, Media and Comms",TEACHING WORKFORCE TOTAL,OMD GROUP TA MANNING GOTTLIEB OMD LTD,CORE-PINV-017007,227.29,"Publicity, advertising, media advertising campaigns (excluding recruitment adverts)"
Department for Education,Core,09/03/2021,"Marketing, Media and Comms",TEACHING WORKFORCE TOTAL,OMD GROUP TA MANNING GOTTLIEB OMD LTD,CORE-PINV-017007,"232,806.18","Publicity, advertising, media advertising campaigns (excluding recruitment adverts)"
Department for Education,Core,11/03/2021,"Marketing, Media and Comms",TEACHING WORKFORCE TOTAL,OMD GROUP TA MANNING GOTTLIEB OMD LTD,CORE-PINV-017298,73.82,"Publicity, advertising, media advertising campaigns (excluding recruitment adverts)"
Department for Education,Core,11/03/2021,"Marketing, Media and Comms",TEACHING WORKFORCE TOTAL,OMD GROUP TA MANNING GOTTLIEB OMD LTD,CORE-PINV-017298,"74,602.47","Publicity, advertising, media advertising campaigns (excluding recruitment adverts)"
Department for Education,Core,15/03/2021,"Marketing, Media and Comms",TEACHING WORKFORCE TOTAL,OMD GROUP TA MANNING GOTTLIEB OMD LTD,CORE-PINV-017446,148.24,"Publicity, advertising, media advertising campaigns (excluding recruitment adverts)"
Department for Education,Core,15/03/2021,"Marketing, Media and Comms",TEACHING WORKFORCE TOTAL,OMD GROUP TA MANNING GOTTLIEB OMD LTD,CORE-PINV-017446,"149,939.45","Publicity, advertising, media advertising campaigns (excluding recruitment adverts)"
Department for Education,Core,16/03/2021,"Marketing, Media and Comms",TEACHING WORKFORCE TOTAL,OMD GROUP TA MANNING GOTTLIEB OMD LTD,CORE-PINV-017536,239.82,"Publicity, advertising, media advertising campaigns (excluding recruitment adverts)"
Department for Education,Core,16/03/2021,"Marketing, Media and Comms",TEACHING WORKFORCE TOTAL,OMD GROUP TA MANNING GOTTLIEB OMD LTD,CORE-PINV-017536,"245,809.49","Publicity, advertising, media advertising campaigns (excluding recruitment adverts)"
Department for Education,Core,19/03/2021,"Marketing, Media and Comms",TEACHING WORKFORCE TOTAL,OMD GROUP TA MANNING GOTTLIEB OMD LTD,CORE-PINV-017836,157.43,"Publicity, advertising, media advertising campaigns (excluding recruitment adverts)"
Department for Education,Core,19/03/2021,"Marketing, Media and Comms",TEACHING WORKFORCE TOTAL,OMD GROUP TA MANNING GOTTLIEB OMD LTD,CORE-PINV-017836,"159,847.52","Publicity, advertising, media advertising campaigns (excluding recruitment adverts)"
Department for Education,Core,30/03/2021,"Marketing, Media and Comms",TEACHING WORKFORCE TOTAL,OMD GROUP TA MANNING GOTTLIEB OMD LTD,CORE-PINV-017297,266,"Publicity, advertising, media advertising campaigns (excluding recruitment adverts)"
Department for Education,Core,30/03/2021,"Marketing, Media and Comms",TEACHING WORKFORCE TOTAL,OMD GROUP TA MANNING GOTTLIEB OMD LTD,CORE-PINV-017297,"268,667.12","Publicity, advertising, media advertising campaigns (excluding recruitment adverts)"
Department for Education,Core,30/03/2021,"Marketing, Media and Comms",TEACHING WORKFORCE TOTAL,OMD GROUP TA MANNING GOTTLIEB OMD LTD,CORE-PINV-017299,73.63,"Publicity, advertising, media advertising campaigns (excluding recruitment adverts)"
Department for Education,Core,30/03/2021,"Marketing, Media and Comms",TEACHING WORKFORCE TOTAL,OMD GROUP TA MANNING GOTTLIEB OMD LTD,CORE-PINV-017299,"74,370.49","Publicity, advertising, media advertising campaigns (excluding recruitment adverts)"
Department for Education,Core,30/03/2021,"Marketing, Media and Comms",TEACHING WORKFORCE TOTAL,OMD GROUP TA MANNING GOTTLIEB OMD LTD,CORE-PINV-017300,81.73,"Publicity, advertising, media advertising campaigns (excluding recruitment adverts)"
Department for Education,Core,30/03/2021,"Marketing, Media and Comms",TEACHING WORKFORCE TOTAL,OMD GROUP TA MANNING GOTTLIEB OMD LTD,CORE-PINV-017300,"82,595.70","Publicity, advertising, media advertising campaigns (excluding recruitment adverts)"
Department for Education,Core,30/03/2021,"Marketing, Media and Comms",TEACHING WORKFORCE TOTAL,OMD GROUP TA MANNING GOTTLIEB OMD LTD,CORE-PINV-017301,38.53,"Publicity, advertising, media advertising campaigns (excluding recruitment adverts)"
Department for Education,Core,30/03/2021,"Marketing, Media and Comms",TEACHING WORKFORCE TOTAL,OMD GROUP TA MANNING GOTTLIEB OMD LTD,CORE-PINV-017301,"38,925.95","Publicity, advertising, media advertising campaigns (excluding recruitment adverts)"
Department for Education,Core,30/03/2021,Other Goods & Services,TEACHING WORKFORCE TOTAL,Yonder Consulting Limited,CORE-PINV-017429,"32,000.00",Research and Development
Department for Education,Core,30/03/2021,Other Goods & Services,TEACHING WORKFORCE TOTAL,Yonder Consulting Limited,CORE-PINV-017436,"34,500.00",Research and Development
Department for Education,Core,30/03/2021,"Marketing, Media and Comms",TEACHING WORKFORCE TOTAL,OMD GROUP TA MANNING GOTTLIEB OMD LTD,CORE-PINV-017838,164.52,"Publicity, advertising, media advertising campaigns (excluding recruitment adverts)"
Department for Education,Core,30/03/2021,"Marketing, Media and Comms",TEACHING WORKFORCE TOTAL,OMD GROUP TA MANNING GOTTLIEB OMD LTD,CORE-PINV-017838,"166,169.01","Publicity, advertising, media advertising campaigns (excluding recruitment adverts)"
Department for Education,Core,30/03/2021,"Marketing, Media and Comms",TEACHING WORKFORCE TOTAL,OMD GROUP TA MANNING GOTTLIEB OMD LTD,CORE-PINV-017839,164.64,"Publicity, advertising, media advertising campaigns (excluding recruitment adverts)"
Department for Education,Core,30/03/2021,"Marketing, Media and Comms",TEACHING WORKFORCE TOTAL,OMD GROUP TA MANNING GOTTLIEB OMD LTD,CORE-PINV-017839,"166,916.35","Publicity, advertising, media advertising campaigns (excluding recruitment adverts)"
Department for Education,Core,30/03/2021,"Marketing, Media and Comms",TEACHING WORKFORCE TOTAL,OMD GROUP TA MANNING GOTTLIEB OMD LTD,CORE-PINV-018577,21.06,"Publicity, advertising, media advertising campaigns (excluding recruitment adverts)"
Department for Education,Core,30/03/2021,"Marketing, Media and Comms",TEACHING WORKFORCE TOTAL,OMD GROUP TA MANNING GOTTLIEB OMD LTD,CORE-PINV-018577,"21,273.20","Publicity, advertising, media advertising campaigns (excluding recruitment adverts)"
Department for Education,Core,31/03/2021,"Marketing, Media and Comms",TEACHING WORKFORCE TOTAL,OMD GROUP TA MANNING GOTTLIEB OMD LTD,CORE-PINV-018690,79.09,"Publicity, advertising, media advertising campaigns (excluding recruitment adverts)"
Department for Education,Core,31/03/2021,"Marketing, Media and Comms",TEACHING WORKFORCE TOTAL,OMD GROUP TA MANNING GOTTLIEB OMD LTD,CORE-PINV-018690,"79,875.54","Publicity, advertising, media advertising campaigns (excluding recruitment adverts)"
Department for Education,Core,31/03/2021,"Marketing, Media and Comms",TEACHING WORKFORCE TOTAL,OMD GROUP TA MANNING GOTTLIEB OMD LTD,CORE-PINV-018693,71.54,"Publicity, advertising, media advertising campaigns (excluding recruitment adverts)"
Department for Education,Core,31/03/2021,"Marketing, Media and Comms",TEACHING WORKFORCE TOTAL,OMD GROUP TA MANNING GOTTLIEB OMD LTD,CORE-PINV-018693,"72,459.15","Publicity, advertising, media advertising campaigns (excluding recruitment adverts)"
Department for Education,Core,31/03/2021,"Marketing, Media and Comms",TEACHING WORKFORCE TOTAL,OMD GROUP TA MANNING GOTTLIEB OMD LTD,CORE-PINV-018696,64.7,"Publicity, advertising, media advertising campaigns (excluding recruitment adverts)"
Department for Education,Core,31/03/2021,"Marketing, Media and Comms",TEACHING WORKFORCE TOTAL,OMD GROUP TA MANNING GOTTLIEB OMD LTD,CORE-PINV-018696,"65,491.02","Publicity, advertising, media advertising campaigns (excluding recruitment adverts)"
Department for Education,Core,31/03/2021,"Marketing, Media and Comms",TEACHING WORKFORCE TOTAL,OMD GROUP TA MANNING GOTTLIEB OMD LTD,CORE-PINV-018699,59.35,"Publicity, advertising, media advertising campaigns (excluding recruitment adverts)"
Department for Education,Core,31/03/2021,"Marketing, Media and Comms",TEACHING WORKFORCE TOTAL,OMD GROUP TA MANNING GOTTLIEB OMD LTD,CORE-PINV-018699,"59,939.79","Publicity, advertising, media advertising campaigns (excluding recruitment adverts)"
Department for Education,Core,31/03/2021,"Marketing, Media and Comms",TEACHING WORKFORCE TOTAL,OMD GROUP TA MANNING GOTTLIEB OMD LTD,CORE-PINV-018703,155.55,"Publicity, advertising, media advertising campaigns (excluding recruitment adverts)"
Department for Education,Core,31/03/2021,"Marketing, Media and Comms",TEACHING WORKFORCE TOTAL,OMD GROUP TA MANNING GOTTLIEB OMD LTD,CORE-PINV-018703,"157,110.94","Publicity, advertising, media advertising campaigns (excluding recruitment adverts)"
Department for Education,Core,15/03/2021,"Marketing, Media and Comms",TEACHING WORKFORCE TOTAL,HAVAS WORLDWIDE LONDON LTD,CORE-PINV-017447,"47,400.45","Publicity, advertising, media advertising campaigns (excluding recruitment adverts)"
Department for Education,Core,25/03/2021,"Marketing, Media and Comms",TEACHING WORKFORCE TOTAL,Kindred Agency Limited,CORE-PINV-018298,"34,700.00","Publicity, advertising, media advertising campaigns (excluding recruitment adverts)"
Department for Education,Core,03/03/2021,"Marketing, Media and Comms",TEACHING WORKFORCE TOTAL,ENGINE GROUP LTD,CORE-PINV-015865,"76,562.61","Reprographic, photo and design goods and services (excluding photocopiers, multifunctional devices and printers)"
Department for Education,Core,15/03/2021,IS/IT,TEACHING WORKFORCE TOTAL,Digi2al Ltd,CORE-PINV-017219,"39,006.00",Software Development
Department for Education,Core,30/03/2021,"Marketing, Media and Comms",TEACHING WORKFORCE TOTAL,OMD GROUP TA MANNING GOTTLIEB OMD LTD,CORE-PINV-018576,42.19,"Publicity, advertising, media advertising campaigns (excluding recruitment adverts)"
Department for Education,Core,30/03/2021,"Marketing, Media and Comms",TEACHING WORKFORCE TOTAL,OMD GROUP TA MANNING GOTTLIEB OMD LTD,CORE-PINV-018576,"42,614.97","Publicity, advertising, media advertising campaigns (excluding recruitment adverts)"
Department for Education,Core,15/03/2021,IS/IT,TEACHING WORKFORCE TOTAL,FARSIGHT CONSULTING LIMITED,CORE-PINV-016972,"21,962.50",Software Development
Department for Education,Core,11/03/2021,Grants expenditure,TEACHING WORKFORCE TOTAL,Thorpe St Andrew School and Sixth Form,CORE-MAIN-016264,"30,346.00","Grants paid to organisations including agencies, arms length bodies and educational establishments"
Department for Education,Core,11/03/2021,Grants expenditure,TEACHING WORKFORCE TOTAL,Poole Grammar School ,CORE-MAIN-016269,"62,250.00","Grants paid to organisations including agencies, arms length bodies and educational establishments"
Department for Education,Core,11/03/2021,Grants expenditure,TEACHING WORKFORCE TOTAL,BISHOP CHALLONER CATHOLIC COLLEGE,CORE-MAIN-016270,"132,400.00",Grants to local authorities
Department for Education,Core,11/03/2021,Professional Services,TEACHING WORKFORCE TOTAL,Now Teach,CORE-PINV-017279,"100,076.00",EDUCATIONAL SERVICES
Department for Education,Core,11/03/2021,Professional Services,TEACHING WORKFORCE TOTAL,Now Teach,CORE-PINV-017280,"112,781.00",EDUCATIONAL SERVICES
Department for Education,Core,11/03/2021,Professional Services,TEACHING WORKFORCE TOTAL,Now Teach,CORE-PINV-017291,"105,883.00",EDUCATIONAL SERVICES
Department for Education,Core,11/03/2021,Professional Services,TEACHING WORKFORCE TOTAL,Now Teach,CORE-PINV-017292,"120,798.00",EDUCATIONAL SERVICES
Department for Education,Core,11/03/2021,Professional Services,TEACHING WORKFORCE TOTAL,Now Teach,CORE-PINV-017294,"113,516.00",EDUCATIONAL SERVICES
Department for Education,Core,15/03/2021,Professional Services,TEACHING WORKFORCE TOTAL,COGNITION EDUCATION,CORE-PINV-017432,"123,772.61",EDUCATIONAL SERVICES
Department for Education,Core,23/03/2021,Professional Services,TEACHING WORKFORCE TOTAL,Now Teach,CORE-PINV-017956,"120,079.00",EDUCATIONAL SERVICES
Department for Education,Core,04/03/2021,Other Goods & Services,TEACHING WORKFORCE TOTAL,TELEPERFORMANCE LTD,CORE-PINV-016715,"27,141.48",Other Professional Services
Department for Education,Core,03/03/2021,Professional Services,TEACHING WORKFORCE TOTAL,THE BRILLIANT CLUB,CORE-PINV-016318,"121,638.82",EDUCATIONAL SERVICES
Department for Education,Core,19/03/2021,Professional Services,TEACHING WORKFORCE TOTAL,THE BRILLIANT CLUB,CORE-PINV-017815,"117,757.86",EDUCATIONAL SERVICES
Department for Education,Core,02/03/2021,Professional Services,TEACHING WORKFORCE TOTAL,EDUCATION DEVELOPMENT TRUST,CORE-PINV-016410,"55,695.85",EDUCATIONAL SERVICES
Department for Education,Core,03/03/2021,Grants expenditure,TEACHING WORKFORCE TOTAL,ST MARY & ST PAULS CE PRIMARY SCHOOL TS ACCOUNT,CORE-MAIN-015570,"26,300.00",Grants to local authorities
Department for Education,Core,03/03/2021,Grants expenditure,TEACHING WORKFORCE TOTAL,UNIVERSITY OF SUSSEX,CORE-MAIN-015572,"30,200.00",Grants to educational establishments or not for profit organisations including other businesses
Department for Education,Core,24/03/2021,Professional Services,TEACHING WORKFORCE TOTAL,TEACH FIRST,CORE-PINV-017935,"833,730.03",EDUCATIONAL SERVICES
Department for Education,Core,24/03/2021,Professional Services,TEACHING WORKFORCE TOTAL,TEACH FIRST,CORE-PINV-017936,"630,479.22",EDUCATIONAL SERVICES
Department for Education,Core,31/03/2021,Grants expenditure,TEACHING WORKFORCE TOTAL,BCS THE CHARTERED INSTITUTE FOR IT,CORE-MAIN-017262,"36,343.22",Grants to educational establishments or not for profit organisations including other businesses
Department for Education,Core,03/03/2021,Other Goods & Services,SYSTEM CAPACITY LEADERSHIP AND GOVERNANCE TOTAL,UCL CONSULTANTS LTD,CORE-PINV-016536,"60,650.05",Programme Expenditure
Department for Education,Core,03/03/2021,Other Goods & Services,SYSTEM CAPACITY LEADERSHIP AND GOVERNANCE TOTAL,AMBITION INSTITUTE,CORE-PINV-016551,"42,566.37",Programme Expenditure
Department for Education,Core,03/03/2021,Other Goods & Services,SYSTEM CAPACITY LEADERSHIP AND GOVERNANCE TOTAL,AMBITION INSTITUTE,CORE-PINV-016554,"50,267.40",Programme Expenditure
Department for Education,Core,03/03/2021,Other Goods & Services,SYSTEM CAPACITY LEADERSHIP AND GOVERNANCE TOTAL,TEACH FIRST,CORE-PINV-016598,"67,204.36",Programme Expenditure
Department for Education,Core,04/03/2021,Professional Services,SYSTEM CAPACITY LEADERSHIP AND GOVERNANCE TOTAL,EDUCATION DEVELOPMENT TRUST,CORE-PINV-016650,"39,016.00",EDUCATIONAL SERVICES
Department for Education,Core,25/03/2021,Other Goods & Services,SYSTEM CAPACITY LEADERSHIP AND GOVERNANCE TOTAL,AMBITION INSTITUTE,CORE-PINV-018340,"48,728.19",Programme Expenditure
Department for Education,Core,25/03/2021,Professional Services,SYSTEM CAPACITY LEADERSHIP AND GOVERNANCE TOTAL,TEACH FIRST,CORE-PINV-018347,"369,698.00",EDUCATIONAL SERVICES
Department for Education,Core,26/03/2021,Other Goods & Services,SYSTEM CAPACITY LEADERSHIP AND GOVERNANCE TOTAL,TEACH FIRST,CORE-PINV-018366,"61,204.36",Programme Expenditure
Department for Education,Core,31/03/2021,Professional Services,SYSTEM CAPACITY LEADERSHIP AND GOVERNANCE TOTAL,TEACH FIRST,CORE-PINV-018663,"196,595.78",EDUCATIONAL SERVICES
Department for Education,Core,31/03/2021,Other Goods & Services,SYSTEM CAPACITY LEADERSHIP AND GOVERNANCE TOTAL,EDUCATION DEVELOPMENT TRUST,CORE-PINV-018694,"38,932.53",Programme Expenditure
Department for Education,Core,31/03/2021,Professional Services,SYSTEM CAPACITY LEADERSHIP AND GOVERNANCE TOTAL,EDUCATION DEVELOPMENT TRUST,CORE-PINV-018695,"198,207.66",EDUCATIONAL SERVICES
Department for Education,Core,11/03/2021,Grants expenditure,SYSTEM CAPACITY LEADERSHIP AND GOVERNANCE TOTAL,BLESSED THOMAS HOLFORD CATHOLIC COLLEGE,CORE-MAIN-016306,"26,666.00",Grants to local authorities
Department for Education,Core,11/03/2021,Grants expenditure,SYSTEM CAPACITY LEADERSHIP AND GOVERNANCE TOTAL,Cabot Learning Federation,CORE-MAIN-016307,"26,666.00","Grants paid to organisations including agencies, arms length bodies and educational establishments"
Department for Education,Core,11/03/2021,Grants expenditure,SYSTEM CAPACITY LEADERSHIP AND GOVERNANCE TOTAL,Clevedon Learning Trust,CORE-MAIN-016308,"26,666.00","Grants paid to organisations including agencies, arms length bodies and educational establishments"
Department for Education,Core,11/03/2021,Grants expenditure,SYSTEM CAPACITY LEADERSHIP AND GOVERNANCE TOTAL,The Sabden Multi Academy Trust,CORE-MAIN-016310,"26,666.00","Grants paid to organisations including agencies, arms length bodies and educational establishments"
Department for Education,Core,11/03/2021,Grants expenditure,SYSTEM CAPACITY LEADERSHIP AND GOVERNANCE TOTAL,The White Horse Federation,CORE-MAIN-016311,"53,182.00","Grants paid to organisations including agencies, arms length bodies and educational establishments"
Department for Education,Core,11/03/2021,Grants expenditure,SYSTEM CAPACITY LEADERSHIP AND GOVERNANCE TOTAL,HOLY FAMILY CATHOLIC PRIMARY SCHOOL,CORE-MAIN-016312,"26,666.00",Grants to local authorities
Department for Education,Core,11/03/2021,Grants expenditure,SYSTEM CAPACITY LEADERSHIP AND GOVERNANCE TOTAL,Kelvin Hall School,CORE-MAIN-016313,"26,166.00","Grants paid to organisations including agencies, arms length bodies and educational establishments"
Department for Education,Core,11/03/2021,Grants expenditure,SYSTEM CAPACITY LEADERSHIP AND GOVERNANCE TOTAL,Kenilworth School and Sixth Form,CORE-MAIN-016314,"26,666.00","Grants paid to organisations including agencies, arms length bodies and educational establishments"
Department for Education,Core,11/03/2021,Grants expenditure,SYSTEM CAPACITY LEADERSHIP AND GOVERNANCE TOTAL,Discovery Schools Academies Trust,CORE-MAIN-016315,"26,666.00","Grants paid to organisations including agencies, arms length bodies and educational establishments"
Department for Education,Core,11/03/2021,Grants expenditure,SYSTEM CAPACITY LEADERSHIP AND GOVERNANCE TOTAL,MANGOTSFIELD CE PRIMARY SCHOOL,CORE-MAIN-016316,"26,666.00",Grants to local authorities
Department for Education,Core,11/03/2021,Grants expenditure,SYSTEM CAPACITY LEADERSHIP AND GOVERNANCE TOTAL,The Minster School,CORE-MAIN-016317,"25,666.00","Grants paid to organisations including agencies, arms length bodies and educational establishments"
Department for Education,Core,11/03/2021,Grants expenditure,SYSTEM CAPACITY LEADERSHIP AND GOVERNANCE TOTAL,MONTPELIER PRIMARY SCHOOL,CORE-MAIN-016318,"26,666.00",Grants to local authorities
Department for Education,Core,11/03/2021,Grants expenditure,SYSTEM CAPACITY LEADERSHIP AND GOVERNANCE TOTAL,Pimlico Academy,CORE-MAIN-016319,"26,666.00","Grants paid to organisations including agencies, arms length bodies and educational establishments"
Department for Education,Core,11/03/2021,Grants expenditure,SYSTEM CAPACITY LEADERSHIP AND GOVERNANCE TOTAL,RAINHILL COMMUNITY NURSERY SCHOOL,CORE-MAIN-016320,"26,666.00",Grants to local authorities
Department for Education,Core,11/03/2021,Grants expenditure,SYSTEM CAPACITY LEADERSHIP AND GOVERNANCE TOTAL,SHERBOURNE FIELDS SCHOOL,CORE-MAIN-016322,"26,666.00",Grants to local authorities
Department for Education,Core,11/03/2021,Grants expenditure,SYSTEM CAPACITY LEADERSHIP AND GOVERNANCE TOTAL,SHERINGHAM COMMUNITY PRIMARY SCHOOL,CORE-MAIN-016323,"26,666.00",Grants to local authorities
Department for Education,Core,11/03/2021,Grants expenditure,SYSTEM CAPACITY LEADERSHIP AND GOVERNANCE TOTAL,THE CHILDRENS ENDEAVOUR TRUST,CORE-MAIN-016324,"26,066.00","Grants paid to organisations including agencies, arms length bodies and educational establishments"
Department for Education,Core,11/03/2021,Grants expenditure,SYSTEM CAPACITY LEADERSHIP AND GOVERNANCE TOTAL,The Bishop Wheeler Catholic Academy Trust,CORE-MAIN-016325,"26,666.00","Grants paid to organisations including agencies, arms length bodies and educational establishments"
Department for Education,Core,11/03/2021,Grants expenditure,SYSTEM CAPACITY LEADERSHIP AND GOVERNANCE TOTAL,John Paul II MultiAcademy,CORE-MAIN-016326,"26,666.00","Grants paid to organisations including agencies, arms length bodies and educational establishments"
Department for Education,Core,11/03/2021,Grants expenditure,SYSTEM CAPACITY LEADERSHIP AND GOVERNANCE TOTAL,Endeavour Learning Trust,CORE-MAIN-016327,"26,666.00","Grants paid to organisations including agencies, arms length bodies and educational establishments"
Department for Education,Core,11/03/2021,Grants expenditure,SYSTEM CAPACITY LEADERSHIP AND GOVERNANCE TOTAL,The St Marylebone CofE School,CORE-MAIN-016328,"26,666.00","Grants paid to organisations including agencies, arms length bodies and educational establishments"
Department for Education,Core,11/03/2021,Grants expenditure,SYSTEM CAPACITY LEADERSHIP AND GOVERNANCE TOTAL,The Thomas Hardye School,CORE-MAIN-016329,"26,666.00","Grants paid to organisations including agencies, arms length bodies and educational establishments"
Department for Education,Core,11/03/2021,Grants expenditure,SYSTEM CAPACITY LEADERSHIP AND GOVERNANCE TOTAL,AMBITIONS ACADEMIES TRUST,CORE-MAIN-016330,"26,666.00","Grants paid to organisations including agencies, arms length bodies and educational establishments"
Department for Education,Core,11/03/2021,Grants expenditure,SYSTEM CAPACITY LEADERSHIP AND GOVERNANCE TOTAL,TWO MILE ASH SCHOOL,CORE-MAIN-016331,"26,666.00","Grants paid to organisations including agencies, arms length bodies and educational establishments"
Department for Education,Core,11/03/2021,Grants expenditure,SYSTEM CAPACITY LEADERSHIP AND GOVERNANCE TOTAL,Wellsway Multi Academy Trust,CORE-MAIN-016332,"26,666.00","Grants paid to organisations including agencies, arms length bodies and educational establishments"
Department for Education,Core,11/03/2021,Grants expenditure,SYSTEM CAPACITY LEADERSHIP AND GOVERNANCE TOTAL,Wildern School,CORE-MAIN-016334,"26,666.00","Grants paid to organisations including agencies, arms length bodies and educational establishments"
Department for Education,Core,11/03/2021,Grants expenditure,SYSTEM CAPACITY LEADERSHIP AND GOVERNANCE TOTAL,SOUTHAMPTON CITY COUNCIL#DCSF,CORE-MAIN-016336,"26,666.00",Grants to local authorities
Department for Education,Core,11/03/2021,Grants expenditure,SYSTEM CAPACITY LEADERSHIP AND GOVERNANCE TOTAL,All Saints Catholic Collegiate,CORE-MAIN-016338,"26,666.00","Grants paid to organisations including agencies, arms length bodies and educational establishments"
Department for Education,Core,11/03/2021,Grants expenditure,SYSTEM CAPACITY LEADERSHIP AND GOVERNANCE TOTAL,Acklam Grange School ,CORE-MAIN-016341,"25,616.00","Grants paid to organisations including agencies, arms length bodies and educational establishments"
Department for Education,Core,11/03/2021,Grants expenditure,SYSTEM CAPACITY LEADERSHIP AND GOVERNANCE TOTAL,Blessed Robert Widmerpool Catholic Primary and Nur,CORE-MAIN-016342,"26,666.00","Grants paid to organisations including agencies, arms length bodies and educational establishments"
Department for Education,Core,11/03/2021,Grants expenditure,SYSTEM CAPACITY LEADERSHIP AND GOVERNANCE TOTAL,DIXONS ACADEMY TRUST,CORE-MAIN-016343,"26,666.00","Grants paid to organisations including agencies, arms length bodies and educational establishments"
Department for Education,Core,11/03/2021,Grants expenditure,SYSTEM CAPACITY LEADERSHIP AND GOVERNANCE TOTAL,Boudica Schools Trust,CORE-MAIN-016344,"26,666.00","Grants paid to organisations including agencies, arms length bodies and educational establishments"
Department for Education,Core,11/03/2021,Grants expenditure,SYSTEM CAPACITY LEADERSHIP AND GOVERNANCE TOTAL,Create Partnership Trust,CORE-MAIN-016345,"26,666.00","Grants paid to organisations including agencies, arms length bodies and educational establishments"
Department for Education,Core,11/03/2021,Grants expenditure,SYSTEM CAPACITY LEADERSHIP AND GOVERNANCE TOTAL,New Collaborative Learning Trust,CORE-MAIN-016346,"26,666.00","Grants paid to organisations including agencies, arms length bodies and educational establishments"
Department for Education,Core,11/03/2021,Grants expenditure,SYSTEM CAPACITY LEADERSHIP AND GOVERNANCE TOTAL,Marches Academy Trust,CORE-MAIN-016348,"26,666.00","Grants paid to organisations including agencies, arms length bodies and educational establishments"
Department for Education,Core,11/03/2021,Grants expenditure,SYSTEM CAPACITY LEADERSHIP AND GOVERNANCE TOTAL,IVY LEARNING TRUST,CORE-MAIN-016349,"26,666.00","Grants paid to organisations including agencies, arms length bodies and educational establishments"
Department for Education,Core,11/03/2021,Grants expenditure,SYSTEM CAPACITY LEADERSHIP AND GOVERNANCE TOTAL,Tudor Grange Academies Trust,CORE-MAIN-016350,"26,666.00","Grants paid to organisations including agencies, arms length bodies and educational establishments"
Department for Education,Core,11/03/2021,Grants expenditure,SYSTEM CAPACITY LEADERSHIP AND GOVERNANCE TOTAL,Weald of Kent Grammar School,CORE-MAIN-016351,"26,355.00","Grants paid to organisations including agencies, arms length bodies and educational establishments"
Department for Education,Core,11/03/2021,Grants expenditure,SYSTEM CAPACITY LEADERSHIP AND GOVERNANCE TOTAL,Westlands School,CORE-MAIN-016352,"26,666.00","Grants paid to organisations including agencies, arms length bodies and educational establishments"
Department for Education,Core,11/03/2021,Grants expenditure,SYSTEM CAPACITY LEADERSHIP AND GOVERNANCE TOTAL,Woolacombe School,CORE-MAIN-016353,"26,666.00","Grants paid to organisations including agencies, arms length bodies and educational establishments"
Department for Education,Core,31/03/2021,Grants expenditure,SYSTEM CAPACITY LEADERSHIP AND GOVERNANCE TOTAL,ASHMOUNT SCHOOL,CORE-MAIN-017265,"26,666.00",Grants to local authorities
Department for Education,Core,31/03/2021,Grants expenditure,SYSTEM CAPACITY LEADERSHIP AND GOVERNANCE TOTAL,BYRON COURT PRIMARY SCHOOL,CORE-MAIN-017267,"26,666.00",Grants to local authorities
Department for Education,Core,31/03/2021,Grants expenditure,SYSTEM CAPACITY LEADERSHIP AND GOVERNANCE TOTAL,HAMPDEN WAY TA BROOKHILL TEACHING SCHOOL,CORE-MAIN-017268,"26,666.00",Grants to local authorities
Department for Education,Core,31/03/2021,Grants expenditure,SYSTEM CAPACITY LEADERSHIP AND GOVERNANCE TOTAL,HEALING MULTI ACADEMY TRUST,CORE-MAIN-017269,"26,666.00","Grants paid to organisations including agencies, arms length bodies and educational establishments"
Department for Education,Core,31/03/2021,Grants expenditure,SYSTEM CAPACITY LEADERSHIP AND GOVERNANCE TOTAL,Heartlands High School,CORE-MAIN-017270,"26,666.00","Grants paid to organisations including agencies, arms length bodies and educational establishments"
Department for Education,Core,31/03/2021,Grants expenditure,SYSTEM CAPACITY LEADERSHIP AND GOVERNANCE TOTAL,Hollingworth Academy ,CORE-MAIN-017271,"26,666.00","Grants paid to organisations including agencies, arms length bodies and educational establishments"
Department for Education,Core,31/03/2021,Grants expenditure,SYSTEM CAPACITY LEADERSHIP AND GOVERNANCE TOTAL,HUNTINGDON NURSERY SCHOOL,CORE-MAIN-017272,"26,666.00",Grants to local authorities
Department for Education,Core,31/03/2021,Grants expenditure,SYSTEM CAPACITY LEADERSHIP AND GOVERNANCE TOTAL,St John Plessington Catholic College,CORE-MAIN-017276,"26,666.00","Grants paid to organisations including agencies, arms length bodies and educational establishments"
Department for Education,Core,31/03/2021,Grants expenditure,SYSTEM CAPACITY LEADERSHIP AND GOVERNANCE TOTAL,Staniland Academy,CORE-MAIN-017277,"26,666.00","Grants paid to organisations including agencies, arms length bodies and educational establishments"
Department for Education,Core,31/03/2021,Grants expenditure,SYSTEM CAPACITY LEADERSHIP AND GOVERNANCE TOTAL,THE BEACON FOLKESTONE,CORE-MAIN-017278,"26,666.00",Grants to local authorities
Department for Education,Core,31/03/2021,Grants expenditure,SYSTEM CAPACITY LEADERSHIP AND GOVERNANCE TOTAL,The Canterbury Academy,CORE-MAIN-017279,"26,539.00","Grants paid to organisations including agencies, arms length bodies and educational establishments"
Department for Education,Core,31/03/2021,Grants expenditure,SYSTEM CAPACITY LEADERSHIP AND GOVERNANCE TOTAL,Treetops School,CORE-MAIN-017280,"26,666.00","Grants paid to organisations including agencies, arms length bodies and educational establishments"
Department for Education,Core,31/03/2021,Grants expenditure,SYSTEM CAPACITY LEADERSHIP AND GOVERNANCE TOTAL,Twyford Church of England Academies Trust,CORE-MAIN-017281,"26,666.00","Grants paid to organisations including agencies, arms length bodies and educational establishments"
Department for Education,Core,31/03/2021,Grants expenditure,SYSTEM CAPACITY LEADERSHIP AND GOVERNANCE TOTAL,Star Academies,CORE-MAIN-017283,"26,666.00","Grants paid to organisations including agencies, arms length bodies and educational establishments"
Department for Education,Core,31/03/2021,Grants expenditure,SYSTEM CAPACITY LEADERSHIP AND GOVERNANCE TOTAL,CHESHIRE WEST & CHESTER COUNCIL,CORE-MAIN-017284,"25,466.00",Grants to local authorities
Department for Education,Core,31/03/2021,Grants expenditure,SYSTEM CAPACITY LEADERSHIP AND GOVERNANCE TOTAL,COLLINGWOOD PRIMARY SCHOOL,CORE-MAIN-017287,"26,666.00","Grants paid to organisations including agencies, arms length bodies and educational establishments"
Department for Education,Core,31/03/2021,Grants expenditure,SYSTEM CAPACITY LEADERSHIP AND GOVERNANCE TOTAL,THE HEATH SCHOOL TS,CORE-MAIN-017295,"26,666.00","Grants paid to organisations including agencies, arms length bodies and educational establishments"
Department for Education,Core,31/03/2021,Grants expenditure,SYSTEM CAPACITY LEADERSHIP AND GOVERNANCE TOTAL,NORTHUMBERLAND COUNTY COUNCIL,CORE-MAIN-017296,"26,666.00",Grants to local authorities
Department for Education,Core,26/03/2021,Other Goods & Services,SYSTEM CAPACITY LEADERSHIP AND GOVERNANCE TOTAL,NATIONAL FOUNDATION FOR EDUCATIONAL RESEARCH,CORE-PINV-018334,"22,720.00",Research and Development
Department for Education,Core,10/03/2021,Other Goods & Services,ASSESSMENT AND CURRICULUM AND GENERAL QUALIFICATIONS,UNIVERSITY OF YORK,CORE-PINV-016787,"82,076.00",Other Professional Services
Department for Education,Core,02/03/2021,Other Goods & Services,ACADEMIES AND REGIONAL DELIVERY TOTAL,EFA,CUPS0022335,"70,625.00",Other Professional Services
Department for Education,Core,11/03/2021,Grants expenditure,"Governance, School Intervention, Faith and Accountability",NEW SCHOOLS NETWORK,CORE-MAIN-016354,"59,478.37",Grants to educational establishments or not for profit organisations including other businesses
Department for Education,Core,11/03/2021,Professional Services,"Governance, School Intervention, Faith and Accountability",GOVERN ED LTD,CORE-PINV-017218,"22,500.00",EDUCATIONAL SERVICES
Department for Education,Core,19/03/2021,Other Goods & Services,"Governance, School Intervention, Faith and Accountability",EDUCATION AND EMPLOYERS TASKFORCE,CORE-PINV-017847,"79,166.00",Other Professional Services
Department for Education,Core,29/03/2021,Other Goods & Services,"Governance, School Intervention, Faith and Accountability",NFER TRADING LIMITED INV T,CORE-PINV-018337,"51,970.50",Research and Development
Department for Education,Core,31/03/2021,Grants expenditure,"Admissions, Academies Portfolio and School Organisation",ROYAL BOROUGH OF KENSINGTON & CHELSEA COUNCIL,CUPS0022665,"201,665.00",Grants to local authorities
Department for Education,Core,31/03/2021,Grants expenditure,"Admissions, Academies Portfolio and School Organisation",Buckinghamshire Council,CORE-MAIN-017337,"25,837.00",Grants to local authorities
Department for Education,Core,31/03/2021,Grants expenditure,"Admissions, Academies Portfolio and School Organisation",CAMBRIDGESHIRE COUNTY COUNCIL,CORE-MAIN-017340,"55,863.00",Grants to local authorities
Department for Education,Core,31/03/2021,Grants expenditure,"Admissions, Academies Portfolio and School Organisation",CHESHIRE WEST & CHESTER COUNCIL,CORE-MAIN-017344,"28,213.00",Grants to local authorities
Department for Education,Core,31/03/2021,Grants expenditure,"Admissions, Academies Portfolio and School Organisation",CORNWALL COUNCIL,CORE-MAIN-017345,"69,987.00",Grants to local authorities
Department for Education,Core,31/03/2021,Grants expenditure,"Admissions, Academies Portfolio and School Organisation",CUMBRIA COUNTY COUNCIL,CORE-MAIN-017348,"32,887.00",Grants to local authorities
Department for Education,Core,31/03/2021,Grants expenditure,"Admissions, Academies Portfolio and School Organisation",DERBYSHIRE COUNTY COUNCIL,CORE-MAIN-017351,"97,400.00",Grants to local authorities
Department for Education,Core,31/03/2021,Grants expenditure,"Admissions, Academies Portfolio and School Organisation",DEVON COUNTY COUNCIL,CORE-MAIN-017352,"54,512.00",Grants to local authorities
Department for Education,Core,31/03/2021,Grants expenditure,"Admissions, Academies Portfolio and School Organisation",DORSET COUNCIL,CORE-MAIN-017354,"61,675.00",Grants to local authorities
Department for Education,Core,31/03/2021,Grants expenditure,"Admissions, Academies Portfolio and School Organisation",DURHAM COUNTY COUNCIL,CORE-MAIN-017356,"116,513.00",Grants to local authorities
Department for Education,Core,31/03/2021,Grants expenditure,"Admissions, Academies Portfolio and School Organisation",EAST SUSSEX COUNTY COUNCIL,CORE-MAIN-017359,"58,375.00",Grants to local authorities
Department for Education,Core,31/03/2021,Grants expenditure,"Admissions, Academies Portfolio and School Organisation",ESSEX COUNTY COUNCIL,CORE-MAIN-017361,"78,287.00",Grants to local authorities
Department for Education,Core,31/03/2021,Grants expenditure,"Admissions, Academies Portfolio and School Organisation",Gloucestershire County Council,CORE-MAIN-017363,"49,500.00",Grants to local authorities
Department for Education,Core,31/03/2021,Grants expenditure,"Admissions, Academies Portfolio and School Organisation",HAMPSHIRE COUNTY COUNCIL,CORE-MAIN-017368,"52,338.00",Grants to local authorities
Department for Education,Core,31/03/2021,Grants expenditure,"Admissions, Academies Portfolio and School Organisation",KENT COUNTY COUNCIL,CORE-MAIN-017380,"164,087.00",Grants to local authorities
Department for Education,Core,31/03/2021,Grants expenditure,"Admissions, Academies Portfolio and School Organisation",LANCASHIRE COUNTY COUNCIL,CORE-MAIN-017386,"87,613.00",Grants to local authorities
Department for Education,Core,31/03/2021,Grants expenditure,"Admissions, Academies Portfolio and School Organisation",LEICESTERSHIRE COUNTY COUNCIL,CORE-MAIN-017389,"52,912.00",Grants to local authorities
Department for Education,Core,31/03/2021,Grants expenditure,"Admissions, Academies Portfolio and School Organisation",LINCOLNSHIRE COUNTY COUNCIL,CORE-MAIN-017391,"81,137.00",Grants to local authorities
Department for Education,Core,31/03/2021,Grants expenditure,"Admissions, Academies Portfolio and School Organisation",NORFOLK COUNTY COUNCIL,CORE-MAIN-017401,"84,088.00",Grants to local authorities
Department for Education,Core,31/03/2021,Grants expenditure,"Admissions, Academies Portfolio and School Organisation",NORTH YORKSHIRE COUNTY COUNCIL,CORE-MAIN-017406,"40,963.00",Grants to local authorities
Department for Education,Core,31/03/2021,Grants expenditure,"Admissions, Academies Portfolio and School Organisation",NORTHAMPTONSHIRE COUNTY COUNCIL,CORE-MAIN-017407,"35,275.00",Grants to local authorities
Department for Education,Core,31/03/2021,Grants expenditure,"Admissions, Academies Portfolio and School Organisation",NORTHUMBERLAND COUNTY COUNCIL,CORE-MAIN-017408,"28,112.00",Grants to local authorities
Department for Education,Core,31/03/2021,Grants expenditure,"Admissions, Academies Portfolio and School Organisation",NOTTINGHAMSHIRE COUNTY COUNCIL,CORE-MAIN-017410,"53,363.00",Grants to local authorities
Department for Education,Core,31/03/2021,Grants expenditure,"Admissions, Academies Portfolio and School Organisation",Oxfordshire County Council,CORE-MAIN-017412,"37,888.00",Grants to local authorities
Department for Education,Core,31/03/2021,Grants expenditure,"Admissions, Academies Portfolio and School Organisation",SOMERSET COUNTY COUNCIL,CORE-MAIN-017429,"57,237.00",Grants to local authorities
Department for Education,Core,31/03/2021,Grants expenditure,"Admissions, Academies Portfolio and School Organisation",Staffordshire County Council,CORE-MAIN-017435,"37,437.00",Grants to local authorities
Department for Education,Core,31/03/2021,Grants expenditure,"Admissions, Academies Portfolio and School Organisation",SUFFOLK COUNTY COUNCIL,CORE-MAIN-017439,"61,562.00",Grants to local authorities
Department for Education,Core,31/03/2021,Grants expenditure,"Admissions, Academies Portfolio and School Organisation",Wakefield City Council,CORE-MAIN-017450,"27,875.00",Grants to local authorities
Department for Education,Core,31/03/2021,Grants expenditure,"Admissions, Academies Portfolio and School Organisation",WARWICKSHIRE COUNTY COUNCIL,CORE-MAIN-017455,"29,238.00",Grants to local authorities
Department for Education,Core,31/03/2021,Grants expenditure,"Admissions, Academies Portfolio and School Organisation",West Sussex County Council,CORE-MAIN-017457,"40,287.00",Grants to local authorities
Department for Education,Core,31/03/2021,Grants expenditure,"Admissions, Academies Portfolio and School Organisation",WILTSHIRE COUNTY COUNCIL,CORE-MAIN-017460,"36,750.00",Grants to local authorities
Department for Education,Core,31/03/2021,Grants expenditure,"Admissions, Academies Portfolio and School Organisation",WORCESTERSHIRE COUNTY COUNCIL,CORE-MAIN-017465,"35,737.00",Grants to local authorities
Department for Education,Core,11/03/2021,Grants expenditure,ACADEMIES DELIVERY DIRECTORATE,PRESTON PRIMARY ACADEMY TRUST,CORE-MAIN-016355,"165,000.00","Grants paid to organisations including agencies, arms length bodies and educational establishments"
Department for Education,Core,31/03/2021,Grants expenditure,ACADEMIES DELIVERY DIRECTORATE,Archway Learning Trust,CORE-MAIN-017469,"255,000.00","Grants paid to organisations including agencies, arms length bodies and educational establishments"
Department for Education,Core,31/03/2021,Grants expenditure,ACADEMIES DELIVERY DIRECTORATE,Bridge Academy Trust,CORE-MAIN-017470,"200,000.00","Grants paid to organisations including agencies, arms length bodies and educational establishments"
Department for Education,Core,31/03/2021,Grants expenditure,ACADEMIES DELIVERY DIRECTORATE,Henlow Church of England Academy,CORE-MAIN-017471,"70,000.00","Grants paid to organisations including agencies, arms length bodies and educational establishments"
Department for Education,Core,11/03/2021,Grants expenditure,ACADEMIES DELIVERY DIRECTORATE,The Rowan Learning Trust,CORE-MAIN-016356,"40,000.00",Capital grants paid to a private sector organisation
Department for Education,Core,11/03/2021,Grants expenditure,ACADEMIES DELIVERY DIRECTORATE,St Teresa of Calcutta Academy Trust,CORE-MAIN-016357,"200,000.00",Capital grants paid to a private sector organisation
Department for Education,Core,31/03/2021,Grants expenditure,ACADEMIES DELIVERY DIRECTORATE,Outwood Grange Academies Trust,CORE-MAIN-017472,"80,000.00",Capital grants paid to a private sector organisation
Department for Education,Core,31/03/2021,Grants expenditure,ACADEMIES DELIVERY DIRECTORATE,St John Bosco Catholic Academy,CORE-MAIN-017473,"80,000.00",Capital grants paid to a private sector organisation
Department for Education,Core,31/03/2021,Grants expenditure,ACADEMIES DELIVERY DIRECTORATE,Marches Academy Trust,CORE-MAIN-017474,"40,000.00",Capital grants paid to a private sector organisation
Department for Education,Core,31/03/2021,Grants expenditure,ACADEMIES DELIVERY DIRECTORATE,"St Chads RC Primary School, a Voluntary Academy",CORE-MAIN-017475,"40,000.00",Capital grants paid to a private sector organisation
Department for Education,Core,17/03/2021,Legal,ACADEMIES DELIVERY DIRECTORATE,THE GOVERNMENT LEGAL DEPARTMENT,CORE-PINV-017660,"25,579.60",Legal advisory services from the Government Legal Department including the provision of external specialist advice and opinion
Department for Education,Core,11/03/2021,Grants expenditure,FREE SCHOOL DIRECTORATE,THE LEIGH ACADEMIES TRUST,CORE-MAIN-016358,"180,000.00","Grants paid to organisations including agencies, arms length bodies and educational establishments"
Department for Education,Core,11/03/2021,Grants expenditure,FREE SCHOOL DIRECTORATE,Birmingham Ormiston Academy,CORE-MAIN-016359,"55,000.00","Grants paid to organisations including agencies, arms length bodies and educational establishments"
Department for Education,Core,11/03/2021,Grants expenditure,FREE SCHOOL DIRECTORATE,Eastern Learning Alliance,CORE-MAIN-016360,"55,000.00","Grants paid to organisations including agencies, arms length bodies and educational establishments"
Department for Education,Core,11/03/2021,Grants expenditure,FREE SCHOOL DIRECTORATE,The Flagship School,CORE-MAIN-016361,"80,000.00","Grants paid to organisations including agencies, arms length bodies and educational establishments"
Department for Education,Core,11/03/2021,Grants expenditure,FREE SCHOOL DIRECTORATE,NEWQUAY EDUCATION TRUST,CORE-MAIN-016362,"47,874.00","Grants paid to organisations including agencies, arms length bodies and educational establishments"
Department for Education,Core,11/03/2021,Grants expenditure,FREE SCHOOL DIRECTORATE,PA Community Trust,CORE-MAIN-016363,"80,000.00","Grants paid to organisations including agencies, arms length bodies and educational establishments"
Department for Education,Core,11/03/2021,Grants expenditure,FREE SCHOOL DIRECTORATE,FORWARD EDUCATION TRUST,CORE-MAIN-016364,"45,000.00","Grants paid to organisations including agencies, arms length bodies and educational establishments"
Department for Education,Core,11/03/2021,Grants expenditure,FREE SCHOOL DIRECTORATE,"Trinity Academy, Halifax",CORE-MAIN-016365,"67,000.00","Grants paid to organisations including agencies, arms length bodies and educational establishments"
Department for Education,Core,11/03/2021,Grants expenditure,FREE SCHOOL DIRECTORATE,THE AXIS ACADEMY,CORE-MAIN-016366,"30,000.00","Grants paid to organisations including agencies, arms length bodies and educational establishments"
Department for Education,Core,11/03/2021,Grants expenditure,FREE SCHOOL DIRECTORATE,THE BEACON COLLEGE,CORE-MAIN-016367,"45,000.00","Grants paid to organisations including agencies, arms length bodies and educational establishments"
Department for Education,Core,11/03/2021,Grants expenditure,FREE SCHOOL DIRECTORATE,The Laurus Trust,CORE-MAIN-016368,"30,000.00","Grants paid to organisations including agencies, arms length bodies and educational establishments"
Department for Education,Core,11/03/2021,Grants expenditure,FREE SCHOOL DIRECTORATE,Transforming Lives Educational Trust,CORE-MAIN-016369,"135,000.00","Grants paid to organisations including agencies, arms length bodies and educational establishments"
Department for Education,Core,11/03/2021,Grants expenditure,FREE SCHOOL DIRECTORATE,LIFT Partnership,CORE-MAIN-016370,"70,000.00","Grants paid to organisations including agencies, arms length bodies and educational establishments"
Department for Education,Core,11/03/2021,Grants expenditure,FREE SCHOOL DIRECTORATE,The Mead Educational Trust,CORE-MAIN-016371,"150,000.00","Grants paid to organisations including agencies, arms length bodies and educational establishments"
Department for Education,Core,11/03/2021,Grants expenditure,FREE SCHOOL DIRECTORATE,Launceston College,CORE-MAIN-016372,"47,500.00","Grants paid to organisations including agencies, arms length bodies and educational establishments"
Department for Education,Core,11/03/2021,Grants expenditure,FREE SCHOOL DIRECTORATE,GOSFORTH FEDERATED ACADEMIES LTD,CORE-MAIN-016373,"67,500.00","Grants paid to organisations including agencies, arms length bodies and educational establishments"
Department for Education,Core,11/03/2021,Grants expenditure,FREE SCHOOL DIRECTORATE,Big Education Trust,CORE-MAIN-016374,"60,000.00","Grants paid to organisations including agencies, arms length bodies and educational establishments"
Department for Education,Core,11/03/2021,Grants expenditure,FREE SCHOOL DIRECTORATE,River Learning Trust,CORE-MAIN-016375,"25,000.00","Grants paid to organisations including agencies, arms length bodies and educational establishments"
Department for Education,Core,11/03/2021,Grants expenditure,FREE SCHOOL DIRECTORATE,Brooke Weston Academy,CORE-MAIN-016376,"30,000.00","Grants paid to organisations including agencies, arms length bodies and educational establishments"
Department for Education,Core,11/03/2021,Grants expenditure,FREE SCHOOL DIRECTORATE,The Crypt School,CORE-MAIN-016377,"30,000.00","Grants paid to organisations including agencies, arms length bodies and educational establishments"
Department for Education,Core,11/03/2021,Grants expenditure,FREE SCHOOL DIRECTORATE,Cotswold Beacon Academy Trust,CORE-MAIN-016378,"30,000.00","Grants paid to organisations including agencies, arms length bodies and educational establishments"
Department for Education,Core,11/03/2021,Grants expenditure,FREE SCHOOL DIRECTORATE,Diocese of Bristol Academies Trust,CORE-MAIN-016379,"150,000.00","Grants paid to organisations including agencies, arms length bodies and educational establishments"
Department for Education,Core,11/03/2021,Grants expenditure,FREE SCHOOL DIRECTORATE,Alpha Trust,CORE-MAIN-016380,"135,000.00","Grants paid to organisations including agencies, arms length bodies and educational establishments"
Department for Education,Core,31/03/2021,Grants expenditure,FREE SCHOOL DIRECTORATE,Barton Court Grammar School ,CORE-MAIN-017476,"30,000.00","Grants paid to organisations including agencies, arms length bodies and educational establishments"
Department for Education,Core,31/03/2021,Grants expenditure,FREE SCHOOL DIRECTORATE,MAIDEN ERLEGH TRUST,CORE-MAIN-017477,"50,000.00","Grants paid to organisations including agencies, arms length bodies and educational establishments"
Department for Education,Core,31/03/2021,Grants expenditure,FREE SCHOOL DIRECTORATE,Victoria Academies Trust,CORE-MAIN-017478,"80,000.00","Grants paid to organisations including agencies, arms length bodies and educational establishments"
Department for Education,Core,31/03/2021,Grants expenditure,FREE SCHOOL DIRECTORATE,Friars Multi Academy Trust,CORE-MAIN-017479,"56,000.00","Grants paid to organisations including agencies, arms length bodies and educational establishments"
Department for Education,Core,31/03/2021,Grants expenditure,FREE SCHOOL DIRECTORATE,Friars Multi Academy Trust,CORE-MAIN-017480,"66,000.00","Grants paid to organisations including agencies, arms length bodies and educational establishments"
Department for Education,Core,31/03/2021,Grants expenditure,FREE SCHOOL DIRECTORATE,DIXONS ACADEMIES TRUST LTD,CORE-MAIN-017481,"30,000.00","Grants paid to organisations including agencies, arms length bodies and educational establishments"
Department for Education,Core,31/03/2021,Grants expenditure,FREE SCHOOL DIRECTORATE,King's Leadership Academy Warrington,CORE-MAIN-017482,"60,000.00","Grants paid to organisations including agencies, arms length bodies and educational establishments"
Department for Education,Core,31/03/2021,Grants expenditure,FREE SCHOOL DIRECTORATE,Star Academies,CORE-MAIN-017483,"30,000.00","Grants paid to organisations including agencies, arms length bodies and educational establishments"
Department for Education,Core,31/03/2021,Grants expenditure,FREE SCHOOL DIRECTORATE,Trinity Multi Academy Trust,CORE-MAIN-017485,"30,000.00","Grants paid to organisations including agencies, arms length bodies and educational establishments"
Department for Education,Core,31/03/2021,Grants expenditure,FREE SCHOOL DIRECTORATE,Gems Learning Trust,CORE-MAIN-017486,"66,836.00","Grants paid to organisations including agencies, arms length bodies and educational establishments"
Department for Education,Core,31/03/2021,Grants expenditure,FREE SCHOOL DIRECTORATE,Rochdale Sixth Form College,CORE-MAIN-017487,"165,000.00","Grants paid to organisations including agencies, arms length bodies and educational establishments"
Department for Education,Core,11/03/2021,Grants expenditure,ACADEMIES AND REGIONAL DELIVERY TOTAL,SACRED HEART RC PRIMARY SCHOOL,CORE-MAIN-016381,"56,698.00","Grants paid to organisations including agencies, arms length bodies and educational establishments"
Department for Education,Core,31/03/2021,Grants expenditure,ACADEMIES AND REGIONAL DELIVERY TOTAL,The Park Federation Academy Trust,CORE-MAIN-017488,"28,800.00","Grants paid to organisations including agencies, arms length bodies and educational establishments"
Department for Education,Core,31/03/2021,Grants expenditure,ACADEMIES AND REGIONAL DELIVERY TOTAL,West Hill Primary Academy,CORE-MAIN-017489,"94,500.00","Grants paid to organisations including agencies, arms length bodies and educational establishments"
Department for Education,Core,31/03/2021,Grants expenditure,ACADEMIES AND REGIONAL DELIVERY TOTAL,Central RSA Academies Trust,CORE-MAIN-017490,"99,750.00","Grants paid to organisations including agencies, arms length bodies and educational establishments"
Department for Education,Core,11/03/2021,Grants expenditure,ACADEMIES AND REGIONAL DELIVERY TOTAL,North Star Academy Trust,CORE-MAIN-016382,"50,000.00","Grants paid to organisations including agencies, arms length bodies and educational establishments"
Department for Education,Core,11/03/2021,Grants expenditure,ACADEMIES AND REGIONAL DELIVERY TOTAL,Chipping Sodbury School,CORE-MAIN-016383,"25,000.00","Grants paid to organisations including agencies, arms length bodies and educational establishments"
Department for Education,Core,11/03/2021,Grants expenditure,ACADEMIES AND REGIONAL DELIVERY TOTAL,St Chad's Academies Trust,CORE-MAIN-016390,"25,000.00","Grants paid to organisations including agencies, arms length bodies and educational establishments"
Department for Education,Core,11/03/2021,Grants expenditure,ACADEMIES AND REGIONAL DELIVERY TOTAL,Brine Leas School,CORE-MAIN-016391,"25,000.00","Grants paid to organisations including agencies, arms length bodies and educational establishments"
Department for Education,Core,11/03/2021,Grants expenditure,ACADEMIES AND REGIONAL DELIVERY TOTAL,Our Lady and All Saints Catholic MAC,CORE-MAIN-016392,"325,000.00","Grants paid to organisations including agencies, arms length bodies and educational establishments"
Department for Education,Core,31/03/2021,Grants expenditure,ACADEMIES AND REGIONAL DELIVERY TOTAL,St John Bosco Catholic Academy,CORE-MAIN-017515,"25,000.00","Grants paid to organisations including agencies, arms length bodies and educational establishments"
Department for Education,Core,31/03/2021,Grants expenditure,ACADEMIES AND REGIONAL DELIVERY TOTAL,The Societas Trust,CORE-MAIN-017516,"25,000.00","Grants paid to organisations including agencies, arms length bodies and educational establishments"
Department for Education,Core,11/03/2021,Grants expenditure,ACADEMIES AND REGIONAL DELIVERY TOTAL,Shireland Collegiate Academy,CORE-MAIN-016393,"70,000.00","Grants paid to organisations including agencies, arms length bodies and educational establishments"
Department for Education,Core,11/03/2021,Grants expenditure,ACADEMIES AND REGIONAL DELIVERY TOTAL,THE BLACK PEAR TRUST,CORE-MAIN-016394,"40,000.00","Grants paid to organisations including agencies, arms length bodies and educational establishments"
Department for Education,Core,11/03/2021,Grants expenditure,ACADEMIES AND REGIONAL DELIVERY TOTAL,Marches Academy Trust,CORE-MAIN-016395,"110,000.00","Grants paid to organisations including agencies, arms length bodies and educational establishments"
Department for Education,Core,31/03/2021,Grants expenditure,ACADEMIES AND REGIONAL DELIVERY TOTAL,CASTLE PHOENIX TRUST,CORE-MAIN-017518,"70,000.00","Grants paid to organisations including agencies, arms length bodies and educational establishments"
Department for Education,Core,31/03/2021,Grants expenditure,ACADEMIES AND REGIONAL DELIVERY TOTAL,Flying High Trust,CORE-MAIN-017519,"25,000.00","Grants paid to organisations including agencies, arms length bodies and educational establishments"
Department for Education,Core,31/03/2021,Grants expenditure,ACADEMIES AND REGIONAL DELIVERY TOTAL,Diocese of Southwell and Nottingham MAT,CORE-MAIN-017520,"25,000.00","Grants paid to organisations including agencies, arms length bodies and educational establishments"
Department for Education,Core,31/03/2021,Grants expenditure,ACADEMIES AND REGIONAL DELIVERY TOTAL,Outwood Grange Academies Trust,CORE-MAIN-017521,"150,000.00","Grants paid to organisations including agencies, arms length bodies and educational establishments"
Department for Education,Core,03/03/2021,Grants expenditure,ACADEMIES AND REGIONAL DELIVERY TOTAL,Archdiocese of Liverpool Secondary School Academy Trust,CORE-MAIN-015510,"160,000.00","Grants paid to organisations including agencies, arms length bodies and educational establishments"
Department for Education,Core,11/03/2021,Grants expenditure,ACADEMIES AND REGIONAL DELIVERY TOTAL,Outwood Grange Academies Trust,CORE-MAIN-016396,"160,000.00","Grants paid to organisations including agencies, arms length bodies and educational establishments"
Department for Education,Core,11/03/2021,Grants expenditure,ACADEMIES AND REGIONAL DELIVERY TOTAL,Cardinal Hume Catholic School,CORE-MAIN-016397,"100,000.00","Grants paid to organisations including agencies, arms length bodies and educational establishments"
Department for Education,Core,11/03/2021,Grants expenditure,ACADEMIES AND REGIONAL DELIVERY TOTAL,Tees Valley Collaborative Trust,CORE-MAIN-016398,"25,000.00","Grants paid to organisations including agencies, arms length bodies and educational establishments"
Department for Education,Core,11/03/2021,Grants expenditure,ACADEMIES AND REGIONAL DELIVERY TOTAL,THE GOOD SHEPHERD MULTI ACADEMY,CORE-MAIN-016399,"25,000.00","Grants paid to organisations including agencies, arms length bodies and educational establishments"
Department for Education,Core,11/03/2021,Grants expenditure,ACADEMIES AND REGIONAL DELIVERY TOTAL,ADVANCED LEARNING PARTNERSHIP,CORE-MAIN-016400,"25,000.00","Grants paid to organisations including agencies, arms length bodies and educational establishments"
Department for Education,Core,31/03/2021,Grants expenditure,ACADEMIES AND REGIONAL DELIVERY TOTAL,The Bishop Wheeler Catholic Academy Trust,CORE-MAIN-017522,"25,000.00","Grants paid to organisations including agencies, arms length bodies and educational establishments"
Department for Education,Core,31/03/2021,Grants expenditure,ACADEMIES AND REGIONAL DELIVERY TOTAL,St Wilfrid's RC College,CORE-MAIN-017523,"25,000.00","Grants paid to organisations including agencies, arms length bodies and educational establishments"
Department for Education,Core,31/03/2021,Grants expenditure,ACADEMIES AND REGIONAL DELIVERY TOTAL,Consilium Academies,CORE-MAIN-017524,"25,000.00","Grants paid to organisations including agencies, arms length bodies and educational establishments"
Department for Education,Core,31/03/2021,Grants expenditure,ACADEMIES AND REGIONAL DELIVERY TOTAL,Horizons Specialist Academy Trust,CORE-MAIN-017525,"25,000.00","Grants paid to organisations including agencies, arms length bodies and educational establishments"
Department for Education,Core,31/03/2021,Grants expenditure,ACADEMIES AND REGIONAL DELIVERY TOTAL,Roman Fields,CORE-MAIN-017526,"25,000.00","Grants paid to organisations including agencies, arms length bodies and educational establishments"
Department for Education,Core,31/03/2021,Grants expenditure,ACADEMIES AND REGIONAL DELIVERY TOTAL,Stopsley High School,CORE-MAIN-017527,"25,000.00","Grants paid to organisations including agencies, arms length bodies and educational establishments"
Department for Education,Core,31/03/2021,Grants expenditure,ACADEMIES AND REGIONAL DELIVERY TOTAL,Isebrook SEN Cognition & Learning College,CORE-MAIN-017528,"25,000.00","Grants paid to organisations including agencies, arms length bodies and educational establishments"
Department for Education,Core,31/03/2021,Grants expenditure,ACADEMIES AND REGIONAL DELIVERY TOTAL,St Mary's Catholic School,CORE-MAIN-017529,"200,000.00","Grants paid to organisations including agencies, arms length bodies and educational establishments"
Department for Education,Core,31/03/2021,Grants expenditure,ACADEMIES AND REGIONAL DELIVERY TOTAL,Tennyson Road Primary School,CORE-MAIN-017530,"110,000.00","Grants paid to organisations including agencies, arms length bodies and educational establishments"
Department for Education,Core,11/03/2021,Grants expenditure,ACADEMIES AND REGIONAL DELIVERY TOTAL,Every Child Every Day Academy Trust,CORE-MAIN-016401,"25,000.00","Grants paid to organisations including agencies, arms length bodies and educational establishments"
Department for Education,Core,31/03/2021,Grants expenditure,ACADEMIES AND REGIONAL DELIVERY TOTAL,The Cavendish School,CORE-MAIN-017531,"25,000.00","Grants paid to organisations including agencies, arms length bodies and educational establishments"
Department for Education,Core,11/03/2021,Grants expenditure,ACADEMIES AND REGIONAL DELIVERY TOTAL,ST PAULS WAY TRUST SCHOOL,CORE-MAIN-016402,"35,000.00","Grants paid to organisations including agencies, arms length bodies and educational establishments"
Department for Education,Core,31/03/2021,Grants expenditure,ACADEMIES AND REGIONAL DELIVERY TOTAL,Windrush Primary School ,CORE-MAIN-017532,"40,000.00","Grants paid to organisations including agencies, arms length bodies and educational establishments"
Department for Education,Core,31/03/2021,Grants expenditure,ACADEMIES AND REGIONAL DELIVERY TOTAL,Hamwic Education Trust,CORE-MAIN-017533,"115,000.00","Grants paid to organisations including agencies, arms length bodies and educational establishments"
Department for Education,Core,08/03/2021,IS/IT,FUNDING AND ANALYSIS TOTAL,OLIVE JAR DIGITAL LTD,CORE-PINV-016915,"85,160.00",Software Development
Department for Education,Core,29/03/2021,IS/IT,FUNDING AND ANALYSIS TOTAL,OLIVE JAR DIGITAL LTD,CORE-PINV-018472,"96,540.00",Software Development
Department for Education,Core,11/03/2021,Grants expenditure,EARLY YEARS AND SCHOOLS GROUP,TEES VALLEY COMBINED AUTHORITY,CORE-MAIN-016403,"36,943.25",Grants to local authorities
Department for Education,Core,11/03/2021,Grants expenditure,EARLY YEARS AND SCHOOLS GROUP,The North of Tyne Combined Authority,CORE-MAIN-016404,"59,291.00",Grants to local authorities
Department for Education,Core,17/03/2021,Consultancy,EARLY YEARS AND SCHOOLS GROUP,KINGS COLLEGE LONDON,CORE-PINV-014733,"42,380.00","Advisory services including fees, travel and expenses"
Department for Education,Core,31/03/2021,Grants expenditure,EARLY YEARS AND SCHOOLS GROUP,FARRINGDON COMMUNITY ACADEMY,CORE-MAIN-017534,"41,256.00","Grants paid to organisations including agencies, arms length bodies and educational establishments"
Department for Education,Core,29/03/2021,Consultancy,EARLY YEARS AND SCHOOLS GROUP,KINGS COLLEGE LONDON,CORE-PINV-018426,"30,063.00","Advisory services including fees, travel and expenses"
Department for Education,Core,02/03/2021,IS/IT,TEACHING WORKFORCE TOTAL,ANDIGITAL LIMITED,CORE-PINV-016441,"136,050.00",IS/IT Services - Systems Development
Department for Education,Core,10/03/2021,IS/IT,TEACHING WORKFORCE TOTAL,ANDIGITAL LIMITED,CORE-PINV-017027,"35,300.00",IS/IT Services - Systems Development
Department for Education,Core,03/03/2021,Grants expenditure,SYSTEM CAPACITY LEADERSHIP AND GOVERNANCE TOTAL,THORNDEN SCHOOL,CORE-MAIN-015575,"27,500.00","Grants paid to organisations including agencies, arms length bodies and educational establishments"
Department for Education,Core,03/03/2021,Grants expenditure,SYSTEM CAPACITY LEADERSHIP AND GOVERNANCE TOTAL,Bristol Metropolitan Academy,CORE-MAIN-015577,"28,450.00","Grants paid to organisations including agencies, arms length bodies and educational establishments"
Department for Education,Core,03/03/2021,Grants expenditure,SYSTEM CAPACITY LEADERSHIP AND GOVERNANCE TOTAL,THE GREETLAND ACADEMY,CORE-MAIN-015578,"29,125.00","Grants paid to organisations including agencies, arms length bodies and educational establishments"
Department for Education,Core,03/03/2021,Grants expenditure,SYSTEM CAPACITY LEADERSHIP AND GOVERNANCE TOTAL,Histon and Impington Junior School,CORE-MAIN-015579,"27,500.00","Grants paid to organisations including agencies, arms length bodies and educational establishments"
Department for Education,Core,03/03/2021,Grants expenditure,SYSTEM CAPACITY LEADERSHIP AND GOVERNANCE TOTAL,COTGRAVE CANDLEBY LANE SCHOOL TS,CORE-MAIN-015581,"30,000.00","Grants paid to organisations including agencies, arms length bodies and educational establishments"
Department for Education,Core,03/03/2021,Grants expenditure,SYSTEM CAPACITY LEADERSHIP AND GOVERNANCE TOTAL,Copthorne Primary School,CORE-MAIN-015582,"66,432.00","Grants paid to organisations including agencies, arms length bodies and educational establishments"
Department for Education,Core,03/03/2021,Grants expenditure,SYSTEM CAPACITY LEADERSHIP AND GOVERNANCE TOTAL,Kingsbridge Academy,CORE-MAIN-015583,"51,248.00","Grants paid to organisations including agencies, arms length bodies and educational establishments"
Department for Education,Core,03/03/2021,Grants expenditure,SYSTEM CAPACITY LEADERSHIP AND GOVERNANCE TOTAL,Silverdale School,CORE-MAIN-015584,"65,941.00","Grants paid to organisations including agencies, arms length bodies and educational establishments"
Department for Education,Core,03/03/2021,Grants expenditure,SYSTEM CAPACITY LEADERSHIP AND GOVERNANCE TOTAL,Harrogate Grammar School,CORE-MAIN-015585,"56,000.00","Grants paid to organisations including agencies, arms length bodies and educational establishments"
Department for Education,Core,03/03/2021,Grants expenditure,SYSTEM CAPACITY LEADERSHIP AND GOVERNANCE TOTAL,John Taylor MAT,CORE-MAIN-015586,"27,500.00","Grants paid to organisations including agencies, arms length bodies and educational establishments"
Department for Education,Core,03/03/2021,Grants expenditure,SYSTEM CAPACITY LEADERSHIP AND GOVERNANCE TOTAL,Harris Academy Chafford Hundred ,CORE-MAIN-015588,"67,000.00","Grants paid to organisations including agencies, arms length bodies and educational establishments"
Department for Education,Core,03/03/2021,Grants expenditure,SYSTEM CAPACITY LEADERSHIP AND GOVERNANCE TOTAL,Saffron Academy Trust,CORE-MAIN-015589,"69,142.00","Grants paid to organisations including agencies, arms length bodies and educational establishments"
Department for Education,Core,31/03/2021,Grants expenditure,SYSTEM CAPACITY LEADERSHIP AND GOVERNANCE TOTAL,THORNDEN SCHOOL,CORE-MAIN-017536,"30,000.00","Grants paid to organisations including agencies, arms length bodies and educational establishments"
Department for Education,Core,31/03/2021,Grants expenditure,SYSTEM CAPACITY LEADERSHIP AND GOVERNANCE TOTAL,TOR VIEW SCHOOL TS ACCOUNT,CORE-MAIN-017537,"30,000.00","Grants paid to organisations including agencies, arms length bodies and educational establishments"
Department for Education,Core,31/03/2021,Grants expenditure,SYSTEM CAPACITY LEADERSHIP AND GOVERNANCE TOTAL,West Lakes Academy,CORE-MAIN-017538,"30,000.00","Grants paid to organisations including agencies, arms length bodies and educational establishments"
Department for Education,Core,31/03/2021,Grants expenditure,SYSTEM CAPACITY LEADERSHIP AND GOVERNANCE TOTAL,Histon and Impington Junior School,CORE-MAIN-017539,"30,000.00","Grants paid to organisations including agencies, arms length bodies and educational establishments"
Department for Education,Core,31/03/2021,Grants expenditure,SYSTEM CAPACITY LEADERSHIP AND GOVERNANCE TOTAL,ST JOHN VIANNEY SCHOOL TS,CORE-MAIN-017540,"30,000.00",Grants to local authorities
Department for Education,Core,31/03/2021,Grants expenditure,SYSTEM CAPACITY LEADERSHIP AND GOVERNANCE TOTAL,John Taylor MAT,CORE-MAIN-017541,"30,000.00","Grants paid to organisations including agencies, arms length bodies and educational establishments"
Department for Education,Core,31/03/2021,Grants expenditure,SYSTEM CAPACITY LEADERSHIP AND GOVERNANCE TOTAL,ARTHUR TERRY LEARNING PARTNERSHIP,CORE-MAIN-017542,"30,000.00","Grants paid to organisations including agencies, arms length bodies and educational establishments"
Department for Education,Core,31/03/2021,Grants expenditure,SYSTEM CAPACITY LEADERSHIP AND GOVERNANCE TOTAL,The Three Rivers Learning Trust Limited,CORE-MAIN-017543,"30,000.00","Grants paid to organisations including agencies, arms length bodies and educational establishments"
Department for Education,Core,31/03/2021,Grants expenditure,SYSTEM CAPACITY LEADERSHIP AND GOVERNANCE TOTAL,Colchester County High School for Girls,CORE-MAIN-017544,"30,000.00","Grants paid to organisations including agencies, arms length bodies and educational establishments"
Department for Education,Core,31/03/2021,Grants expenditure,SYSTEM CAPACITY LEADERSHIP AND GOVERNANCE TOTAL,Mulberry School for Girls,CORE-MAIN-017545,"30,000.00","Grants paid to organisations including agencies, arms length bodies and educational establishments"
Department for Education,Core,31/03/2021,Grants expenditure,SYSTEM CAPACITY LEADERSHIP AND GOVERNANCE TOTAL,"Notre Dame High School, Norwich",CORE-MAIN-017546,"30,000.00","Grants paid to organisations including agencies, arms length bodies and educational establishments"
Department for Education,Core,31/03/2021,Grants expenditure,SYSTEM CAPACITY LEADERSHIP AND GOVERNANCE TOTAL,Churchill Special Free School,CORE-MAIN-017547,"30,000.00","Grants paid to organisations including agencies, arms length bodies and educational establishments"
Department for Education,Core,31/03/2021,Grants expenditure,SYSTEM CAPACITY LEADERSHIP AND GOVERNANCE TOTAL,Christ The King Catholic Voluntary Academy,CORE-MAIN-017548,"30,000.00","Grants paid to organisations including agencies, arms length bodies and educational establishments"
Department for Education,Core,31/03/2021,Grants expenditure,SYSTEM CAPACITY LEADERSHIP AND GOVERNANCE TOTAL,"Archbishop Holgate's School, A Church of England A",CORE-MAIN-017549,"30,000.00","Grants paid to organisations including agencies, arms length bodies and educational establishments"
Department for Education,Core,31/03/2021,Grants expenditure,SYSTEM CAPACITY LEADERSHIP AND GOVERNANCE TOTAL,Witham St Hughs Academy,CORE-MAIN-017550,"30,000.00","Grants paid to organisations including agencies, arms length bodies and educational establishments"
Department for Education,Core,31/03/2021,Grants expenditure,SYSTEM CAPACITY LEADERSHIP AND GOVERNANCE TOTAL,The Spencer Academies Trust,CORE-MAIN-017551,"30,000.00","Grants paid to organisations including agencies, arms length bodies and educational establishments"
Department for Education,Core,31/03/2021,Grants expenditure,SYSTEM CAPACITY LEADERSHIP AND GOVERNANCE TOTAL,The Blue Coat CofE School,CORE-MAIN-017552,"30,000.00","Grants paid to organisations including agencies, arms length bodies and educational establishments"
Department for Education,Core,31/03/2021,Grants expenditure,SYSTEM CAPACITY LEADERSHIP AND GOVERNANCE TOTAL,SHELLEY COLLEGE,CORE-MAIN-017553,"30,000.00","Grants paid to organisations including agencies, arms length bodies and educational establishments"
Department for Education,Core,31/03/2021,Grants expenditure,SYSTEM CAPACITY LEADERSHIP AND GOVERNANCE TOTAL,Wembley High Technology College,CORE-MAIN-017554,"30,000.00","Grants paid to organisations including agencies, arms length bodies and educational establishments"
Department for Education,Core,31/03/2021,Grants expenditure,SYSTEM CAPACITY LEADERSHIP AND GOVERNANCE TOTAL,The Cherwell School ,CORE-MAIN-017555,"30,000.00","Grants paid to organisations including agencies, arms length bodies and educational establishments"
Department for Education,Core,31/03/2021,Grants expenditure,SYSTEM CAPACITY LEADERSHIP AND GOVERNANCE TOTAL,STEP ACADEMY TRUST,CORE-MAIN-017556,"30,000.00","Grants paid to organisations including agencies, arms length bodies and educational establishments"
Department for Education,Core,31/03/2021,Grants expenditure,SYSTEM CAPACITY LEADERSHIP AND GOVERNANCE TOTAL,Bennett Memorial Diocesan School,CORE-MAIN-017557,"60,000.00","Grants paid to organisations including agencies, arms length bodies and educational establishments"
Department for Education,Core,31/03/2021,Grants expenditure,SYSTEM CAPACITY LEADERSHIP AND GOVERNANCE TOTAL,GLF Schools,CORE-MAIN-017558,"30,000.00","Grants paid to organisations including agencies, arms length bodies and educational establishments"
Department for Education,Core,31/03/2021,Grants expenditure,SYSTEM CAPACITY LEADERSHIP AND GOVERNANCE TOTAL,Xavier Catholic Education Trust,CORE-MAIN-017559,"30,000.00","Grants paid to organisations including agencies, arms length bodies and educational establishments"
Department for Education,Core,31/03/2021,Grants expenditure,SYSTEM CAPACITY LEADERSHIP AND GOVERNANCE TOTAL,Portswood Primary School,CORE-MAIN-017560,"30,000.00","Grants paid to organisations including agencies, arms length bodies and educational establishments"
Department for Education,Core,31/03/2021,Grants expenditure,SYSTEM CAPACITY LEADERSHIP AND GOVERNANCE TOTAL,Nexus Education Schools Trust,CORE-MAIN-017561,"30,000.00","Grants paid to organisations including agencies, arms length bodies and educational establishments"
Department for Education,Core,31/03/2021,Grants expenditure,SYSTEM CAPACITY LEADERSHIP AND GOVERNANCE TOTAL,CHESTERTON PRIMARY SCHOOL TS ACCOUNT,CORE-MAIN-017562,"30,000.00","Grants paid to organisations including agencies, arms length bodies and educational establishments"
Department for Education,Core,31/03/2021,Grants expenditure,SYSTEM CAPACITY LEADERSHIP AND GOVERNANCE TOTAL,Colyton Grammar School,CORE-MAIN-017563,"30,000.00","Grants paid to organisations including agencies, arms length bodies and educational establishments"
Department for Education,Core,31/03/2021,Grants expenditure,SYSTEM CAPACITY LEADERSHIP AND GOVERNANCE TOTAL,GLENMOOR & WINTON ACADEMIES,CORE-MAIN-017564,"30,000.00","Grants paid to organisations including agencies, arms length bodies and educational establishments"
Department for Education,Core,31/03/2021,Grants expenditure,SYSTEM CAPACITY LEADERSHIP AND GOVERNANCE TOTAL,Balcarras School,CORE-MAIN-017565,"30,000.00","Grants paid to organisations including agencies, arms length bodies and educational establishments"
Department for Education,Core,31/03/2021,Grants expenditure,SYSTEM CAPACITY LEADERSHIP AND GOVERNANCE TOTAL,Prince Henry's High school,CORE-MAIN-017566,"30,000.00","Grants paid to organisations including agencies, arms length bodies and educational establishments"
Department for Education,Core,31/03/2021,Grants expenditure,SYSTEM CAPACITY LEADERSHIP AND GOVERNANCE TOTAL,Painsley Catholic College,CORE-MAIN-017567,"30,000.00","Grants paid to organisations including agencies, arms length bodies and educational establishments"
Department for Education,Core,31/03/2021,Grants expenditure,SYSTEM CAPACITY LEADERSHIP AND GOVERNANCE TOTAL,Lawrence Sheriff School ,CORE-MAIN-017568,"30,000.00","Grants paid to organisations including agencies, arms length bodies and educational establishments"
Department for Education,Core,31/03/2021,Grants expenditure,SYSTEM CAPACITY LEADERSHIP AND GOVERNANCE TOTAL,Haybridge High School and Sixth Form,CORE-MAIN-017569,"30,000.00","Grants paid to organisations including agencies, arms length bodies and educational establishments"
Department for Education,Core,31/03/2021,Grants expenditure,SYSTEM CAPACITY LEADERSHIP AND GOVERNANCE TOTAL,St Joseph's College,CORE-MAIN-017570,"30,000.00","Grants paid to organisations including agencies, arms length bodies and educational establishments"
Department for Education,Core,31/03/2021,Grants expenditure,SYSTEM CAPACITY LEADERSHIP AND GOVERNANCE TOTAL,Benedict Biscop Church of England Academy,CORE-MAIN-017571,"30,000.00","Grants paid to organisations including agencies, arms length bodies and educational establishments"
Department for Education,Core,31/03/2021,Grants expenditure,SYSTEM CAPACITY LEADERSHIP AND GOVERNANCE TOTAL,Teesdale School,CORE-MAIN-017572,"30,000.00","Grants paid to organisations including agencies, arms length bodies and educational establishments"
Department for Education,Core,31/03/2021,Grants expenditure,SYSTEM CAPACITY LEADERSHIP AND GOVERNANCE TOTAL,Shaftesbury Primary School,CORE-MAIN-017573,"30,000.00","Grants paid to organisations including agencies, arms length bodies and educational establishments"
Department for Education,Core,31/03/2021,Grants expenditure,SYSTEM CAPACITY LEADERSHIP AND GOVERNANCE TOTAL,WALTHAMSTOW SCHOOL FOR GIRLS,CORE-MAIN-017574,"30,000.00",Grants to local authorities
Department for Education,Core,31/03/2021,Grants expenditure,SYSTEM CAPACITY LEADERSHIP AND GOVERNANCE TOTAL,HETHERSETT ACADEMY,CORE-MAIN-017575,"30,000.00","Grants paid to organisations including agencies, arms length bodies and educational establishments"
Department for Education,Core,31/03/2021,Grants expenditure,SYSTEM CAPACITY LEADERSHIP AND GOVERNANCE TOTAL,The Carlton Junior Academy,CORE-MAIN-017576,"30,000.00","Grants paid to organisations including agencies, arms length bodies and educational establishments"
Department for Education,Core,31/03/2021,Grants expenditure,SYSTEM CAPACITY LEADERSHIP AND GOVERNANCE TOTAL,St Marys College,CORE-MAIN-017577,"30,000.00","Grants paid to organisations including agencies, arms length bodies and educational establishments"
Department for Education,Core,31/03/2021,Grants expenditure,SYSTEM CAPACITY LEADERSHIP AND GOVERNANCE TOTAL,Grange Lane Infant Academy,CORE-MAIN-017578,"30,000.00","Grants paid to organisations including agencies, arms length bodies and educational establishments"
Department for Education,Core,31/03/2021,Grants expenditure,SYSTEM CAPACITY LEADERSHIP AND GOVERNANCE TOTAL,Tauheedul Islam Boys' High School,CORE-MAIN-017579,"30,000.00","Grants paid to organisations including agencies, arms length bodies and educational establishments"
Department for Education,Core,31/03/2021,Grants expenditure,SYSTEM CAPACITY LEADERSHIP AND GOVERNANCE TOTAL,Tauheedul Islam Girls' High School & Sixth Form,CORE-MAIN-017580,"30,000.00","Grants paid to organisations including agencies, arms length bodies and educational establishments"
Department for Education,Core,31/03/2021,Grants expenditure,SYSTEM CAPACITY LEADERSHIP AND GOVERNANCE TOTAL,Altrincham Grammar School for Girls,CORE-MAIN-017581,"60,000.00","Grants paid to organisations including agencies, arms length bodies and educational establishments"
Department for Education,Core,31/03/2021,Grants expenditure,SYSTEM CAPACITY LEADERSHIP AND GOVERNANCE TOTAL,Rainbow Education Multi-Academy Trust,CORE-MAIN-017582,"30,000.00","Grants paid to organisations including agencies, arms length bodies and educational establishments"
Department for Education,Core,31/03/2021,Grants expenditure,SYSTEM CAPACITY LEADERSHIP AND GOVERNANCE TOTAL,Eden Boys' School Bolton,CORE-MAIN-017583,"30,000.00","Grants paid to organisations including agencies, arms length bodies and educational establishments"
Department for Education,Core,31/03/2021,Grants expenditure,SYSTEM CAPACITY LEADERSHIP AND GOVERNANCE TOTAL,Denbigh High School,CORE-MAIN-017584,"30,000.00","Grants paid to organisations including agencies, arms length bodies and educational establishments"
Department for Education,Core,31/03/2021,Grants expenditure,SYSTEM CAPACITY LEADERSHIP AND GOVERNANCE TOTAL,Dr Challoner's Grammar School,CORE-MAIN-017585,"30,000.00","Grants paid to organisations including agencies, arms length bodies and educational establishments"
Department for Education,Core,31/03/2021,Grants expenditure,SYSTEM CAPACITY LEADERSHIP AND GOVERNANCE TOTAL,Sir Joseph Williamson's Mathematical School,CORE-MAIN-017586,"30,000.00","Grants paid to organisations including agencies, arms length bodies and educational establishments"
Department for Education,Core,31/03/2021,Grants expenditure,SYSTEM CAPACITY LEADERSHIP AND GOVERNANCE TOTAL,Pate's Grammar School,CORE-MAIN-017587,"30,000.00","Grants paid to organisations including agencies, arms length bodies and educational establishments"
Department for Education,Core,31/03/2021,Grants expenditure,SYSTEM CAPACITY LEADERSHIP AND GOVERNANCE TOTAL,ARK ST ALBAN'S ACADEMY,CORE-MAIN-017588,"30,000.00","Grants paid to organisations including agencies, arms length bodies and educational establishments"
Department for Education,Core,31/03/2021,Grants expenditure,SYSTEM CAPACITY LEADERSHIP AND GOVERNANCE TOTAL,MORLEY PRIMARY SCHOOL,CORE-MAIN-017589,"30,000.00",Grants to local authorities
Department for Education,Core,31/03/2021,Grants expenditure,SYSTEM CAPACITY LEADERSHIP AND GOVERNANCE TOTAL,Humberston Academy,CORE-MAIN-017590,"30,000.00","Grants paid to organisations including agencies, arms length bodies and educational establishments"
Department for Education,Core,31/03/2021,Grants expenditure,SYSTEM CAPACITY LEADERSHIP AND GOVERNANCE TOTAL,Rushey Mead Academy,CORE-MAIN-017591,"30,000.00","Grants paid to organisations including agencies, arms length bodies and educational establishments"
Department for Education,Core,31/03/2021,Grants expenditure,SYSTEM CAPACITY LEADERSHIP AND GOVERNANCE TOTAL,St John Plessington Catholic College,CORE-MAIN-017592,"30,000.00","Grants paid to organisations including agencies, arms length bodies and educational establishments"
Department for Education,Core,31/03/2021,Grants expenditure,SYSTEM CAPACITY LEADERSHIP AND GOVERNANCE TOTAL,EVELYN STREET PRIMARY SCHOOL BCAP,CORE-MAIN-017593,"30,000.00","Grants paid to organisations including agencies, arms length bodies and educational establishments"
Department for Education,Core,31/03/2021,Grants expenditure,SYSTEM CAPACITY LEADERSHIP AND GOVERNANCE TOTAL,Paddington Academy,CORE-MAIN-017594,"30,000.00","Grants paid to organisations including agencies, arms length bodies and educational establishments"
Department for Education,Core,31/03/2021,Grants expenditure,SYSTEM CAPACITY LEADERSHIP AND GOVERNANCE TOTAL,ALBAN ACADEMIES TRUST,CORE-MAIN-017595,"30,000.00","Grants paid to organisations including agencies, arms length bodies and educational establishments"
Department for Education,Core,31/03/2021,Grants expenditure,SYSTEM CAPACITY LEADERSHIP AND GOVERNANCE TOTAL,Brooke Weston Academy,CORE-MAIN-017596,"30,000.00","Grants paid to organisations including agencies, arms length bodies and educational establishments"
Department for Education,Core,31/03/2021,Grants expenditure,SYSTEM CAPACITY LEADERSHIP AND GOVERNANCE TOTAL,Langley Grammar School,CORE-MAIN-017597,"30,000.00","Grants paid to organisations including agencies, arms length bodies and educational establishments"
Department for Education,Core,31/03/2021,Grants expenditure,SYSTEM CAPACITY LEADERSHIP AND GOVERNANCE TOTAL,Charles Dickens Primary School,CORE-MAIN-017598,"30,000.00","Grants paid to organisations including agencies, arms length bodies and educational establishments"
Department for Education,Core,31/03/2021,Grants expenditure,SYSTEM CAPACITY LEADERSHIP AND GOVERNANCE TOTAL,South Farnham School ,CORE-MAIN-017599,"30,000.00","Grants paid to organisations including agencies, arms length bodies and educational establishments"
Department for Education,Core,31/03/2021,Grants expenditure,SYSTEM CAPACITY LEADERSHIP AND GOVERNANCE TOTAL,Harris City Academy Crystal Palace,CORE-MAIN-017600,"30,000.00","Grants paid to organisations including agencies, arms length bodies and educational establishments"
Department for Education,Core,31/03/2021,Grants expenditure,SYSTEM CAPACITY LEADERSHIP AND GOVERNANCE TOTAL,The Quay School ,CORE-MAIN-017601,"30,000.00","Grants paid to organisations including agencies, arms length bodies and educational establishments"
Department for Education,Core,31/03/2021,Grants expenditure,SYSTEM CAPACITY LEADERSHIP AND GOVERNANCE TOTAL,MANGOTSFIELD CE PRIMARY SCHOOL,CORE-MAIN-017602,"30,000.00",Grants to local authorities
Department for Education,Core,31/03/2021,Grants expenditure,SYSTEM CAPACITY LEADERSHIP AND GOVERNANCE TOTAL,Trenance Learning Academy,CORE-MAIN-017603,"30,000.00","Grants paid to organisations including agencies, arms length bodies and educational establishments"
Department for Education,Core,31/03/2021,Grants expenditure,SYSTEM CAPACITY LEADERSHIP AND GOVERNANCE TOTAL,The Roseland Multi Academy Trust,CORE-MAIN-017604,"30,000.00","Grants paid to organisations including agencies, arms length bodies and educational establishments"
Department for Education,Core,31/03/2021,Grants expenditure,SYSTEM CAPACITY LEADERSHIP AND GOVERNANCE TOTAL,"The Priory School, A Business and Enterprise Colle",CORE-MAIN-017605,"30,000.00","Grants paid to organisations including agencies, arms length bodies and educational establishments"
Department for Education,Core,31/03/2021,Grants expenditure,SYSTEM CAPACITY LEADERSHIP AND GOVERNANCE TOTAL,MANOR PRIMARY SCHOOL,CORE-MAIN-017606,"30,000.00","Grants paid to organisations including agencies, arms length bodies and educational establishments"
Department for Education,Core,31/03/2021,Grants expenditure,SYSTEM CAPACITY LEADERSHIP AND GOVERNANCE TOTAL,Flying High Trust,CORE-MAIN-017607,"30,000.00","Grants paid to organisations including agencies, arms length bodies and educational establishments"
Department for Education,Core,31/03/2021,Grants expenditure,SYSTEM CAPACITY LEADERSHIP AND GOVERNANCE TOTAL,"Tudor Grange Academy, Solihull",CORE-MAIN-017608,"30,000.00","Grants paid to organisations including agencies, arms length bodies and educational establishments"
Department for Education,Core,31/03/2021,Grants expenditure,SYSTEM CAPACITY LEADERSHIP AND GOVERNANCE TOTAL,The GORSE Academies Trust,CORE-MAIN-017609,"30,000.00","Grants paid to organisations including agencies, arms length bodies and educational establishments"
Department for Education,Core,31/03/2021,Grants expenditure,SYSTEM CAPACITY LEADERSHIP AND GOVERNANCE TOTAL,Twyford Church of England High School,CORE-MAIN-017610,"30,000.00","Grants paid to organisations including agencies, arms length bodies and educational establishments"
Department for Education,Core,31/03/2021,Grants expenditure,SYSTEM CAPACITY LEADERSHIP AND GOVERNANCE TOTAL,Grange Lane Infant Academy,CUPS0022804,"30,000.00","Grants paid to organisations including agencies, arms length bodies and educational establishments"
Department for Education,Core,31/03/2021,Grants expenditure,SYSTEM CAPACITY LEADERSHIP AND GOVERNANCE TOTAL,Denbigh High School,CUPS0022805,"30,000.00","Grants paid to organisations including agencies, arms length bodies and educational establishments"
Department for Education,Core,08/03/2021,"Marketing, Media and Comms",FUNDING AND ANALYSIS TOTAL,SOFTWARE FOR DATA ANALYSIS LTD,CORE-PINV-016923,"55,000.00",Printed products
Department for Education,Core,09/03/2021,Learning & Development,FUNDING AND ANALYSIS TOTAL,Entrust Support Services Limited,CORE-PINV-016960,"26,439.89",Training & Development costs
Department for Education,Core,30/03/2021,Learning & Development,FUNDING AND ANALYSIS TOTAL,Entrust Support Services Limited,CORE-PINV-018599,"29,833.76",Training & Development costs
Department for Education,Core,31/03/2021,Grants expenditure,"Governance, School Intervention, Faith and Accountability",Falcon Education Academies Trust,CORE-MAIN-017611,"41,845.00",Grants to educational establishments or not for profit organisations including other businesses
Department for Education,Core,04/03/2021,IS/IT,TEACHING WORKFORCE TOTAL,UCAS,CORE-PINV-016719,"24,500.00",IS/IT Systems Operations
Department for Education,Core,15/03/2021,Other Goods & Services,TEACHING WORKFORCE TOTAL,Digi2al Ltd,CORE-PCR-000619,"-29,090.00",Research and Development
Department for Education,Core,15/03/2021,Other Goods & Services,TEACHING WORKFORCE TOTAL,Digi2al Ltd,CORE-PINV-008865,"29,090.00",Research and Development
Department for Education,Core,15/03/2021,IS/IT,TEACHING WORKFORCE TOTAL,SOFTWIRE TECHNOLOGY LTD,CORE-PINV-016424,"26,325.00",Software Development
Department for Education,Core,15/03/2021,IS/IT,TEACHING WORKFORCE TOTAL,FARSIGHT CONSULTING LIMITED,CORE-PINV-016973,"50,640.00",Software Development
Department for Education,Core,15/03/2021,Other Goods & Services,TEACHING WORKFORCE TOTAL,UCAS,CORE-PINV-016720,"123,675.50",Other Professional Services
Department for Education,Core,11/03/2021,Other Goods & Services,EY AND SCHOOLS STRATEGY TOTAL,PHS GROUP PLC,CORE-PINV-017230,"178,855.08",Other Professional Services
Department for Education,Core,11/03/2021,Other Goods & Services,EY AND SCHOOLS STRATEGY TOTAL,PHS GROUP PLC,CORE-PINV-017230,"12,520.18",Other Professional Services
Department for Education,Core,11/03/2021,Office Costs,EY AND SCHOOLS STRATEGY TOTAL,PHS GROUP PLC,CORE-PINV-017232,"119,245.56",Document Storage
Department for Education,Core,30/03/2021,Office Costs,EY AND SCHOOLS STRATEGY TOTAL,PHS GROUP PLC,CORE-PINV-018586,"61,516.61",Document Storage
Department for Education,Core,30/03/2021,Other Goods & Services,EY AND SCHOOLS STRATEGY TOTAL,PHS GROUP PLC,CORE-PINV-018587,"117,576.42",Other Professional Services
Department for Education,Core,30/03/2021,Other Goods & Services,EY AND SCHOOLS STRATEGY TOTAL,PHS GROUP PLC,CORE-PINV-018587,"16,873.20",Other Professional Services
Department for Education,Core,31/03/2021,Grants expenditure,EARLY YEARS AND SCHOOLS GROUP,LANCASTER UNIVERSITY SCHOOL OF MATHEMATICS,CORE-MAIN-017612,"100,000.00","Grants paid to organisations including agencies, arms length bodies and educational establishments"
Department for Education,Core,03/03/2021,Grants expenditure,TEACHING WORKFORCE TOTAL,UNIVERSITY OF NORTHUMBRIA AT NEWCASTLE,CUPS0020850,"37,349.00",Grants to educational establishments or not for profit organisations including other businesses
Department for Education,Core,03/03/2021,Grants expenditure,TEACHING WORKFORCE TOTAL,Alpha Trust,CUPS0020851,"94,550.00",Grants to educational establishments or not for profit organisations including other businesses
Department for Education,Core,03/03/2021,Grants expenditure,TEACHING WORKFORCE TOTAL,NORTH LINCOLNSHIRE COUNCIL,CUPS0020852,"25,920.00",Grants to educational establishments or not for profit organisations including other businesses
Department for Education,Core,03/03/2021,Grants expenditure,TEACHING WORKFORCE TOTAL,NOTTINGHAM TRENT UNIVERSITY,CUPS0020853,"168,110.00",Grants to educational establishments or not for profit organisations including other businesses
Department for Education,Core,03/03/2021,Grants expenditure,TEACHING WORKFORCE TOTAL,UNIVERSITY OF BRISTOL,CUPS0020854,"356,150.00",Grants to educational establishments or not for profit organisations including other businesses
Department for Education,Core,03/03/2021,Grants expenditure,TEACHING WORKFORCE TOTAL,UNIVERSITY OF EAST LONDON,CUPS0020855,"398,460.00",Grants to educational establishments or not for profit organisations including other businesses
Department for Education,Core,03/03/2021,Grants expenditure,TEACHING WORKFORCE TOTAL,UNIVERSITY OF HERTFORDSHIRE,CUPS0020856,"272,590.00",Grants to educational establishments or not for profit organisations including other businesses
Department for Education,Core,03/03/2021,Grants expenditure,TEACHING WORKFORCE TOTAL,THE UNIVERSITY OF MANCHESTER,CUPS0020857,"555,550.00",Grants to educational establishments or not for profit organisations including other businesses
Department for Education,Core,03/03/2021,Grants expenditure,TEACHING WORKFORCE TOTAL,York St John University,CUPS0020858,"105,000.00",Grants to educational establishments or not for profit organisations including other businesses
Department for Education,Core,03/03/2021,Grants expenditure,TEACHING WORKFORCE TOTAL,MIDDLESEX UNIVERSITY,CUPS0020859,"267,330.00",Grants to educational establishments or not for profit organisations including other businesses
Department for Education,Core,03/03/2021,Grants expenditure,TEACHING WORKFORCE TOTAL,NORTH ESSEX TEACHER TRAINING,CUPS0020860,"96,470.00",Grants to educational establishments or not for profit organisations including other businesses
Department for Education,Core,03/03/2021,Grants expenditure,TEACHING WORKFORCE TOTAL,LEARNING INSTITUTE SOUTH WEST SCITT,CUPS0020862,"36,140.00",Grants to educational establishments or not for profit organisations including other businesses
Department for Education,Core,03/03/2021,Grants expenditure,TEACHING WORKFORCE TOTAL,THE ARTHUR TERRY SCHOOL SCITT,CUPS0020864,"85,410.00",Grants to educational establishments or not for profit organisations including other businesses
Department for Education,Core,03/03/2021,Grants expenditure,TEACHING WORKFORCE TOTAL,LEICESTERSHIRE SECONDARY SCITT,CUPS0020865,"152,400.00",Grants to educational establishments or not for profit organisations including other businesses
Department for Education,Core,03/03/2021,Grants expenditure,TEACHING WORKFORCE TOTAL,EDUCATION MANAGEMENT DIRECT LTD,CUPS0020866,"47,710.00",Grants to educational establishments or not for profit organisations including other businesses
Department for Education,Core,03/03/2021,Grants expenditure,TEACHING WORKFORCE TOTAL,THE HAVERING TEACHER TRAINING PARTNERSHIP,CUPS0020867,"64,680.00",Grants to educational establishments or not for profit organisations including other businesses
Department for Education,Core,03/03/2021,Grants expenditure,TEACHING WORKFORCE TOTAL,POOLE SECONDARY SCHOOLS,CUPS0020868,"50,050.00",Grants to educational establishments or not for profit organisations including other businesses
Department for Education,Core,03/03/2021,Grants expenditure,TEACHING WORKFORCE TOTAL,MID SOMERSET CONSORTIUM FOR TEACHER TRAINING,CUPS0020869,"86,120.00",Grants to educational establishments or not for profit organisations including other businesses
Department for Education,Core,03/03/2021,Grants expenditure,TEACHING WORKFORCE TOTAL,Summit Learning Trust,CUPS0020870,"44,860.00",Grants to educational establishments or not for profit organisations including other businesses
Department for Education,Core,03/03/2021,Grants expenditure,TEACHING WORKFORCE TOTAL,Dove House School,CUPS0020871,"40,730.00",Grants to educational establishments or not for profit organisations including other businesses
Department for Education,Core,03/03/2021,Grants expenditure,TEACHING WORKFORCE TOTAL,ARK Schools,CUPS0020872,"226,130.00",Grants to educational establishments or not for profit organisations including other businesses
Department for Education,Core,03/03/2021,Grants expenditure,TEACHING WORKFORCE TOTAL,THORNDEN SCHOOL,CUPS0020873,"47,060.00",Grants to educational establishments or not for profit organisations including other businesses
Department for Education,Core,03/03/2021,Grants expenditure,TEACHING WORKFORCE TOTAL,DENBIGH ALLIANCE,CUPS0020874,"55,276.00",Grants to educational establishments or not for profit organisations including other businesses
